Department Family,Entity,Payment Date,Expense Type,Expense Area,Supplier,Transaction Number,Amount,Description
BIS,Skills Funding Agency,28/08/2014,Funding Advances,None,ASSET TRAINING & CONSULTANCY LTD,NQEP_19,"17,814.57",Programme Template
BIS,Skills Funding Agency,28/08/2014,Funding Advances,None,ASSET TRAINING & CONSULTANCY LTD,NQEP_20,"130,701.85",Programme Template
BIS,Skills Funding Agency,28/08/2014,Funding Advances,None,DAMAR LTD,NQEP_18,"15,324.79",Programme Template
BIS,Skills Funding Agency,29/08/2014,City Deals Wave 1,Main Funding,NOTTINGHAM CITY COUNCIL,SPINVB_23112,"51,270.00",Purchase Invoice
BIS,Skills Funding Agency,29/08/2014,Communications Team Expenditure,Chief Executive Office - Information Compliance & Security,F-24 UK LIMITED,SPINVB_21453,787.51,Purchase Invoice
BIS,Skills Funding Agency,29/08/2014,Communications Team Expenditure,Chief Executive Office - Information Compliance & Security,F-24 UK LIMITED,SPINVB_21454,"13,399.56",Purchase Invoice
BIS,Skills Funding Agency,29/08/2014,Health and Safety Executive Supplies,HR - Human Resources,HEALTH MANAGEMENT LTD,SPINVB_23404,120.00,Purchase Invoice
BIS,Skills Funding Agency,29/08/2014,Health and Safety Executive Supplies,HR - Human Resources,HEALTH MANAGEMENT LTD,SPINVB_23405,"1,175.35",Purchase Invoice
BIS,Skills Funding Agency,29/08/2014,Implementation,Projects - Programme Delivery Projects,CAPGEMINI UK PLC,SPINVB_23084,"32,666.74",Purchase Invoice
BIS,Skills Funding Agency,29/08/2014,Licences,Operations ICT - Projects,SERVICENOW NEDERLAND B.V.,SPINVB_22732,"171,720.00",Purchase Invoice
BIS,Skills Funding Agency,29/08/2014,Managed IT Service,Operations ICT - Projects,BAE SYSTEMS APPLIED INTELLIGENCE LIMITED,SPINVB_23178,"252,274.30",Purchase Invoice
BIS,Skills Funding Agency,29/08/2014,Managed IT Service,Operations ICT - Projects,BAE SYSTEMS APPLIED INTELLIGENCE LIMITED,SPINVB_23313,"94,380.60",Purchase Invoice
BIS,Skills Funding Agency,29/08/2014,Managed IT Service,Operations ICT - Projects,BAE SYSTEMS APPLIED INTELLIGENCE LIMITED,SPINVB_23314,"325,076.86",Purchase Invoice
BIS,Skills Funding Agency,29/08/2014,Managed IT Service,Operations ICT - Projects,CAPITA BUSINESS SERVICES LTD,SPINVB_23315,"30,512.20",Purchase Invoice
BIS,Skills Funding Agency,29/08/2014,Managed IT Service,Operations ICT - Projects,CAPITA BUSINESS SERVICES LTD,SPINVB_23316,"8,780.48",Purchase Invoice
BIS,Skills Funding Agency,29/08/2014,Managed IT Service,Operations ICT - Projects,NCC GROUP SECURITY SERVICES LTD,SPINVB_23372,"1,920.94",Purchase Invoice
BIS,Skills Funding Agency,29/08/2014,"National Apprenticeship Service - Business, Innovation & Skills - Non-Participation",Communications & Marketing,ICM RESEARCH LTD,SPINVB_23371,"24,660.00",Purchase Invoice
BIS,Skills Funding Agency,29/08/2014,"National Apprenticeship Service - Business, Innovation & Skills - Non-Participation",Communications & Marketing,LITTLE FISH EVENT MANAGEMENT,SPINVB_23399,"1,699.74",Purchase Invoice
BIS,Skills Funding Agency,29/08/2014,"National Apprenticeship Service - Business, Innovation & Skills - Non-Participation",Communications & Marketing,PANLOGIC LTD,SPINVB_23124,"3,060.00",Purchase Invoice
BIS,Skills Funding Agency,29/08/2014,"National Apprenticeship Service - Business, Innovation & Skills - Non-Participation",Communications & Marketing,WEST YORKSHIRE LEARNING PROVIDERS LTD,SPINVB_23424,"3,600.00",Purchase Invoice
BIS,Skills Funding Agency,29/08/2014,"National Apprenticeship Service - Business, Innovation & Skills - Non-Participation",Communications & Marketing,WHITESPACE EXHIBITIONS,SPCRNB_670,"-1,096.80",Purchase Credit Note
BIS,Skills Funding Agency,29/08/2014,"National Apprenticeship Service - Business, Innovation & Skills - Non-Participation",Communications & Marketing,WHITESPACE EXHIBITIONS,SPCRNB_713,-340.31,Purchase Credit Note
BIS,Skills Funding Agency,29/08/2014,"National Apprenticeship Service - Business, Innovation & Skills - Non-Participation",Communications & Marketing,WHITESPACE EXHIBITIONS,SPINVB_23365,"4,892.09",Purchase Invoice
BIS,Skills Funding Agency,29/08/2014,"National Apprenticeship Service - Business, Innovation & Skills - Non-Participation",Main Funding,ANNA MORRISON CONSULTANCY SERVICE,SPINVCHQ_361,"1,800.00",Purchase Invoice
BIS,Skills Funding Agency,29/08/2014,Professional Services,HR - Human Resources,BRAP LIMITED,SPINVB_23423,"3,050.00",Purchase Invoice
BIS,Skills Funding Agency,29/08/2014,Professional Services,Operations ICT - Projects,CAPGEMINI UK PLC,SPINVB_22326,"19,231.13",Purchase Invoice
BIS,Skills Funding Agency,29/08/2014,Professional Services,Operations ICT - Projects,CAPGEMINI UK PLC,SPINVB_23069,"6,638.40",Purchase Invoice
BIS,Skills Funding Agency,29/08/2014,Professional Services,Operations ICT - Projects,CAPGEMINI UK PLC,SPINVB_23083,"3,836.22",Purchase Invoice
BIS,Skills Funding Agency,29/08/2014,Professional Services,Operations ICT - Projects,CAPGEMINI UK PLC,SPINVB_23106,"110,331.02",Purchase Invoice
BIS,Skills Funding Agency,29/08/2014,Professional Services,Operations ICT - Projects,FORDWAY SOLUTIONS LIMITED,SPINVB_22851,"1,890.00",Purchase Invoice
BIS,Skills Funding Agency,29/08/2014,Professional Services,Operations ICT - Projects,SERVICENOW NEDERLAND B.V.,SPINVB_22728,"29,760.00",Purchase Invoice
BIS,Skills Funding Agency,29/08/2014,Temporary Staff,Operations ICT - Project Delivery,BROOK STREET UK LTD,SPINVB_23392,514.80,Purchase Invoice
BIS,Skills Funding Agency,29/08/2014,Temporary Staff,Operations ICT - Project Delivery,SMART SOURCING PLC,SPINVB_23400,"5,846.15",Purchase Invoice
BIS,Skills Funding Agency,29/08/2014,Temporary Staff,Operations ICT - Projects,EXPERIS LIMITED,SPINVB_23308,"16,404.89",Purchase Invoice
BIS,Skills Funding Agency,29/08/2014,Temporary Staff,Operations ICT - Projects,PARITY RESOURCES LTD,SPINVB_22778,"11,235.00",Purchase Invoice
BIS,Skills Funding Agency,01/09/2014,Professional Services,Finance Division - Accounting Services,COMPANIES HOUSE,DD_251,8.00,Purchase Invoice
BIS,Skills Funding Agency,02/09/2014,Design,Operations ICT - Change Delivery,CAPGEMINI UK PLC,SPINVB_23092,"7,860.00",Purchase Invoice
BIS,Skills Funding Agency,02/09/2014,Design,Operations ICT - Change Delivery,CAPGEMINI UK PLC,SPINVB_23094,"29,821.20",Purchase Invoice
BIS,Skills Funding Agency,02/09/2014,Design,Operations ICT - Change Delivery,CAPGEMINI UK PLC,SPINVB_23098,"24,771.60",Purchase Invoice
BIS,Skills Funding Agency,02/09/2014,Design,Programme Delivery - Centre of Excellence,CAPGEMINI UK PLC,SPINVB_23091,"18,894.88",Purchase Invoice
BIS,Skills Funding Agency,02/09/2014,Design,Programme Delivery - Centre of Excellence,CAPGEMINI UK PLC,SPINVB_23100,"25,152.00",Purchase Invoice
BIS,Skills Funding Agency,02/09/2014,Equipment Maintenance,HR - Facilities Central,DE LAGE LANDEN LEASING LIMITED,SPINVB_23496,945.60,Purchase Invoice
BIS,Skills Funding Agency,02/09/2014,Facilities Management,HR - Facilities Divisional,DEPARTMENT FOR BUSINESS INNOVATION & SKILLS (NEWPORT),SPCRNB_709,"-11,463.52",Purchase Credit Note
BIS,Skills Funding Agency,02/09/2014,Facilities Management,HR - Facilities Divisional,DEPARTMENT FOR BUSINESS INNOVATION & SKILLS (NEWPORT),SPINVB_23393,"31,208.69",Purchase Invoice
BIS,Skills Funding Agency,02/09/2014,Fitting Out New Buildings,HR - Facilities Divisional,PREFERRED SPACES LTD,SPINVB_23497,"5,297.63",Purchase Invoice
BIS,Skills Funding Agency,02/09/2014,Funding Advances,None,ENERGY & UTILITY SKILLS LTD,PAYCHAPSAUTO_319,"204,333.00",Programme Template
BIS,Skills Funding Agency,02/09/2014,Landline Telephone Service,Operations ICT - Technical Design Authority,IDN TELECOM LTD,IPINVELECT3_1657,618.94,Purchase Invoice
BIS,Skills Funding Agency,02/09/2014,Licences,Operations ICT - Projects,MICROSOFT IRELAND OPERATIONS LIMITED,SPINVB_23426,"44,880.00",Purchase Invoice
BIS,Skills Funding Agency,02/09/2014,Managed IT Service,Operations ICT - Projects,CGI IT UK LIMITED,SPINVB_22682,"300,217.20",Purchase Invoice
BIS,Skills Funding Agency,02/09/2014,Managed IT Service,Operations ICT - Projects,SERVICENOW NEDERLAND B.V.,SPINVB_22730,"4,160.00",Purchase Invoice
BIS,Skills Funding Agency,02/09/2014,Managed IT Service,Operations ICT - Projects,SERVICENOW NEDERLAND B.V.,SPINVB_22731,"56,840.00",Purchase Invoice
BIS,Skills Funding Agency,02/09/2014,Managed IT Service,Operations ICT - Projects,SERVICENOW NEDERLAND B.V.,SPINVB_23139,"64,960.00",Purchase Invoice
BIS,Skills Funding Agency,02/09/2014,Managed IT Service,Operations ICT - Projects,SERVICENOW NEDERLAND B.V.,SPINVB_23140,"18,240.00",Purchase Invoice
BIS,Skills Funding Agency,02/09/2014,Office Refreshments,Operations Finance - Financial Management,CITY & WEST END DAIRY LIMITED,SPINVB_23436,30.72,Purchase Invoice
BIS,Skills Funding Agency,02/09/2014,Office Refreshments,Operations Finance - Financial Management,CITY & WEST END DAIRY LIMITED,SPINVB_23437,38.40,Purchase Invoice
BIS,Skills Funding Agency,02/09/2014,Office Refreshments,Operations Finance - Financial Management,INTERVEND UK LTD,SPINVB_23438,29.48,Purchase Invoice
BIS,Skills Funding Agency,02/09/2014,Professional Services - Single Assignments,Funding & Programmes - Delivery & Performance,CAPGEMINI UK PLC,SPINVB_23479,"3,964.80",Purchase Invoice
BIS,Skills Funding Agency,02/09/2014,Room Hire,Operations Finance - Financial Management,DEPARTMENT FOR BUSINESS INNOVATION & SKILLS (NEWPORT),SPINVB_23309,"4,287.20",Purchase Invoice
BIS,Skills Funding Agency,02/09/2014,Room Hire,Operations Finance - Financial Management,DEPARTMENT FOR BUSINESS INNOVATION & SKILLS (NEWPORT),SPINVB_23501,"3,221.80",Purchase Invoice
BIS,Skills Funding Agency,02/09/2014,Temporary Staff,HR - Human Resources,SF RECRUITMENT LTD,SPINVB_23379,554.40,Purchase Invoice
BIS,Skills Funding Agency,02/09/2014,Temporary Staff,HR - Human Resources,SF RECRUITMENT LTD,SPINVB_23413,932.40,Purchase Invoice
BIS,Skills Funding Agency,02/09/2014,Temporary Staff,Operations ICT - Agile Developments,MAGNETIC IT LIMITED,SPINVB_23441,"4,520.29",Purchase Invoice
BIS,Skills Funding Agency,03/09/2014,Archiving,Funding & Programmes - Apprenticeships & Employer Policy Implement,IRON MOUNTAIN UK LTD,IPINVELECT3_1656,13.30,Purchase Invoice
BIS,Skills Funding Agency,03/09/2014,Archiving,HR - Facilities Central,IRON MOUNTAIN UK LTD,IPINVELECT3_1656,"5,927.98",Purchase Invoice
BIS,Skills Funding Agency,03/09/2014,Archiving,Operations Finance - Financial Management,IRON MOUNTAIN UK LTD,IPINVELECT3_1656,"13,408.67",Purchase Invoice
BIS,Skills Funding Agency,03/09/2014,Carbon Reduction Commitment Allowances,HR - Facilities Central,DEPARTMENT OF ENERGY AND CLIMATE CHANGE,SPINVNO_3567,"18,492.00",Purchase Invoice
BIS,Skills Funding Agency,03/09/2014,Cleaning Contract,"Operations Finance - Shared Service, ICT Finance & Capital",CHARITY COMMISSION FOR ENGLAND AND WALES,SPINVNO_3565,635.43,Purchase Invoice
BIS,Skills Funding Agency,03/09/2014,Course Fees,Operations Finance - Financial Management,Agency Staff Member,SCLAIM_39100,182.00,Staff Expenses Claim
BIS,Skills Funding Agency,03/09/2014,Diesel Car Mileage Passenger Supplement,Finance Division - Provider Finance,Agency Staff Member,SCLAIM_39122,3.00,Staff Expenses Claim
BIS,Skills Funding Agency,03/09/2014,Diesel Car Mileage Passenger Supplement,Relationship Team - North,Agency Staff Member,SCLAIM_39094,12.10,Staff Expenses Claim
BIS,Skills Funding Agency,03/09/2014,Diesel Car Mileage,"Business Development, Sales & Marketing",Agency Staff Member,SCLAIM_39142,115.20,Staff Expenses Claim
BIS,Skills Funding Agency,03/09/2014,Diesel Car Mileage,"Business Development, Sales & Marketing",Agency Staff Member,SCLAIM_39143,57.60,Staff Expenses Claim
BIS,Skills Funding Agency,03/09/2014,Diesel Car Mileage,"Business Development, Sales & Marketing",Agency Staff Member,SCLAIM_39148,86.40,Staff Expenses Claim
BIS,Skills Funding Agency,03/09/2014,Diesel Car Mileage,"Business Development, Sales & Marketing",Agency Staff Member,SCLAIM_39156,28.80,Staff Expenses Claim
BIS,Skills Funding Agency,03/09/2014,Diesel Car Mileage,Central Delivery Service - European Social Fund - Audit Compliance,Agency Staff Member,SCLAIM_39168,7.20,Staff Expenses Claim
BIS,Skills Funding Agency,03/09/2014,Diesel Car Mileage,Central Division,Agency Staff Member,SCLAIM_39134,184.05,Staff Expenses Claim
BIS,Skills Funding Agency,03/09/2014,Diesel Car Mileage,Central Division,Agency Staff Member,SCLAIM_39139,129.60,Staff Expenses Claim
BIS,Skills Funding Agency,03/09/2014,Diesel Car Mileage,Chief Executive Office - Marketing  ,Agency Staff Member,SCLAIM_39110,189.00,Staff Expenses Claim
BIS,Skills Funding Agency,03/09/2014,Diesel Car Mileage,Employer & Provider Services Midlands,Agency Staff Member,SCLAIM_39125,228.60,Staff Expenses Claim
BIS,Skills Funding Agency,03/09/2014,Diesel Car Mileage,Employer & Provider Services Midlands,Agency Staff Member,SCLAIM_39174,162.00,Staff Expenses Claim
BIS,Skills Funding Agency,03/09/2014,Diesel Car Mileage,Employer & Provider Services North East & Yorkshire,Agency Staff Member,SCLAIM_39097,427.05,Staff Expenses Claim
BIS,Skills Funding Agency,03/09/2014,Diesel Car Mileage,Employer & Provider Services South East,Agency Staff Member,SCLAIM_39098,159.30,Staff Expenses Claim
BIS,Skills Funding Agency,03/09/2014,Diesel Car Mileage,Employer & Provider Services South East,Agency Staff Member,SCLAIM_39135,79.20,Staff Expenses Claim
BIS,Skills Funding Agency,03/09/2014,Diesel Car Mileage,Employer & Provider Services South East,Agency Staff Member,SCLAIM_39150,121.50,Staff Expenses Claim
BIS,Skills Funding Agency,03/09/2014,Diesel Car Mileage,Employer & Provider Services South East,Agency Staff Member,SCLAIM_39151,378.90,Staff Expenses Claim
BIS,Skills Funding Agency,03/09/2014,Diesel Car Mileage,Employer & Provider Services South West,Agency Staff Member,SCLAIM_39186,17.10,Staff Expenses Claim
BIS,Skills Funding Agency,03/09/2014,Diesel Car Mileage,Finance Division - Provider Finance,Agency Staff Member,SCLAIM_39122,99.90,Staff Expenses Claim
BIS,Skills Funding Agency,03/09/2014,Diesel Car Mileage,Funding & Programmes - Apprenticeships & Employer Policy Implement,Agency Staff Member,SCLAIM_39128,523.80,Staff Expenses Claim
BIS,Skills Funding Agency,03/09/2014,Diesel Car Mileage,Funding & Programmes - Apprenticeships & Employer Policy Implement,Agency Staff Member,SCLAIM_39179,215.10,Staff Expenses Claim
BIS,Skills Funding Agency,03/09/2014,Diesel Car Mileage,Funding & Programmes - European Social Fund,Agency Staff Member,SCLAIM_39149,108.00,Staff Expenses Claim
BIS,Skills Funding Agency,03/09/2014,Diesel Car Mileage,Large Companies Unit,Agency Staff Member,SCLAIM_39105,19.80,Staff Expenses Claim
BIS,Skills Funding Agency,03/09/2014,Diesel Car Mileage,Large Companies Unit,Agency Staff Member,SCLAIM_39129,153.00,Staff Expenses Claim
BIS,Skills Funding Agency,03/09/2014,Diesel Car Mileage,Large Companies Unit,Agency Staff Member,SCLAIM_39167,42.75,Staff Expenses Claim
BIS,Skills Funding Agency,03/09/2014,Diesel Car Mileage,Large Companies Unit,Agency Staff Member,SCLAIM_39172,157.50,Staff Expenses Claim
BIS,Skills Funding Agency,03/09/2014,Diesel Car Mileage,Large Companies Unit,Agency Staff Member,SCLAIM_39177,140.40,Staff Expenses Claim
BIS,Skills Funding Agency,03/09/2014,Diesel Car Mileage,Large Companies Unit,Agency Staff Member,SCLAIM_39178,61.65,Staff Expenses Claim
BIS,Skills Funding Agency,03/09/2014,Diesel Car Mileage,Large Companies Unit,Agency Staff Member,SCLAIM_39188,123.30,Staff Expenses Claim
BIS,Skills Funding Agency,03/09/2014,Diesel Car Mileage,National Careers & Learner Services,Agency Staff Member,SCLAIM_39137,181.80,Staff Expenses Claim
BIS,Skills Funding Agency,03/09/2014,Diesel Car Mileage,National Careers & Learner Services,Agency Staff Member,SCLAIM_39164,54.90,Staff Expenses Claim
BIS,Skills Funding Agency,03/09/2014,Diesel Car Mileage,"Operations Finance - Forecasting, Planning, Reporting",Agency Staff Member,SCLAIM_39169,19.80,Staff Expenses Claim
BIS,Skills Funding Agency,03/09/2014,Diesel Car Mileage,Operations Finance - Procurement Services,Agency Staff Member,SCLAIM_39140,372.60,Staff Expenses Claim
BIS,Skills Funding Agency,03/09/2014,Diesel Car Mileage,Programme Development & Vacancy Services,Agency Staff Member,SCLAIM_39182,114.30,Staff Expenses Claim
BIS,Skills Funding Agency,03/09/2014,Diesel Car Mileage,Provider Financial Management & Assurance,Agency Staff Member,SCLAIM_39165,97.20,Staff Expenses Claim
BIS,Skills Funding Agency,03/09/2014,Diesel Car Mileage,Relationship Team - North,Agency Staff Member,SCLAIM_39094,387.90,Staff Expenses Claim
BIS,Skills Funding Agency,03/09/2014,Diesel Car Mileage,Relationship Team - North,Agency Staff Member,SCLAIM_39160,448.20,Staff Expenses Claim
BIS,Skills Funding Agency,03/09/2014,Diesel Car Mileage,Relationship Team - South,Agency Staff Member,SCLAIM_39106,14.40,Staff Expenses Claim
BIS,Skills Funding Agency,03/09/2014,Diesel Car Mileage,Southern Division,Agency Staff Member,SCLAIM_39141,236.70,Staff Expenses Claim
BIS,Skills Funding Agency,03/09/2014,Electricity,HR - Facilities Central,CGI IT UK LIMITED,SPINVB_23381,105.73,Purchase Invoice
BIS,Skills Funding Agency,03/09/2014,Electricity,HR - Facilities Divisional,BRITISH GAS TRADING LTD,SPINVNO_3566,724.87,Purchase Invoice
BIS,Skills Funding Agency,03/09/2014,Electricity,"Operations Finance - Shared Service, ICT Finance & Capital",CHARITY COMMISSION FOR ENGLAND AND WALES,SPINVNO_3565,"1,079.70",Purchase Invoice
BIS,Skills Funding Agency,03/09/2014,Eye Tests,Programme Development & Vacancy Services,Agency Staff Member,SCLAIM_39182,55.00,Staff Expenses Claim
BIS,Skills Funding Agency,03/09/2014,General Maintenance,"Operations Finance - Shared Service, ICT Finance & Capital",CHARITY COMMISSION FOR ENGLAND AND WALES,SPINVNO_3565,"1,479.72",Purchase Invoice
BIS,Skills Funding Agency,03/09/2014,Hospitality,Large Companies Unit,Agency Staff Member,SCLAIM_39187,4.60,Staff Expenses Claim
BIS,Skills Funding Agency,03/09/2014,Hotel Accommodation,National Careers & Learner Services,Agency Staff Member,SCLAIM_39137,89.00,Staff Expenses Claim
BIS,Skills Funding Agency,03/09/2014,Other Fuel Car Mileage,Employer & Provider Services North West,Agency Staff Member,SCLAIM_39189,203.40,Staff Expenses Claim
BIS,Skills Funding Agency,03/09/2014,Other Fuel Car Mileage,"Operations Finance - Forecasting, Planning, Reporting",Agency Staff Member,SCLAIM_39169,12.00,Staff Expenses Claim
BIS,Skills Funding Agency,03/09/2014,Other Travel,Central Delivery Service - European Social Fund - Audit Compliance,Agency Staff Member,SCLAIM_39117,7.66,Staff Expenses Claim
BIS,Skills Funding Agency,03/09/2014,Other Travel,Central Delivery Service - European Social Fund - Audit Compliance,Agency Staff Member,SCLAIM_39121,24.30,Staff Expenses Claim
BIS,Skills Funding Agency,03/09/2014,Other Travel,Central Delivery Service - European Social Fund - Audit Compliance,Agency Staff Member,SCLAIM_39136,13.80,Staff Expenses Claim
BIS,Skills Funding Agency,03/09/2014,Other Travel,Central Delivery Service - European Social Fund - Audit Compliance,Agency Staff Member,SCLAIM_39157,20.00,Staff Expenses Claim
BIS,Skills Funding Agency,03/09/2014,Other Travel,Central Delivery Service - Leeds,Agency Staff Member,SCLAIM_39144,21.00,Staff Expenses Claim
BIS,Skills Funding Agency,03/09/2014,Other Travel,Central Division,Agency Staff Member,SCLAIM_39104,47.50,Staff Expenses Claim
BIS,Skills Funding Agency,03/09/2014,Other Travel,Employer & Provider Services Midlands,Agency Staff Member,SCLAIM_39174,20.80,Staff Expenses Claim
BIS,Skills Funding Agency,03/09/2014,Other Travel,Employer & Provider Services Midlands,Agency Staff Member,SCLAIM_39185,13.40,Staff Expenses Claim
BIS,Skills Funding Agency,03/09/2014,Other Travel,Employer & Provider Services North East & Yorkshire,Agency Staff Member,SCLAIM_39097,2.50,Staff Expenses Claim
BIS,Skills Funding Agency,03/09/2014,Other Travel,Employer & Provider Services North West,Agency Staff Member,SCLAIM_39189,54.50,Staff Expenses Claim
BIS,Skills Funding Agency,03/09/2014,Other Travel,Employer & Provider Services South East,Agency Staff Member,SCLAIM_39150,24.16,Staff Expenses Claim
BIS,Skills Funding Agency,03/09/2014,Other Travel,Employer & Provider Services South East,Agency Staff Member,SCLAIM_39151,4.00,Staff Expenses Claim
BIS,Skills Funding Agency,03/09/2014,Other Travel,Employer & Provider Services South West,Agency Staff Member,SCLAIM_39131,18.40,Staff Expenses Claim
BIS,Skills Funding Agency,03/09/2014,Other Travel,Employer & Provider Services South West,Agency Staff Member,SCLAIM_39132,8.00,Staff Expenses Claim
BIS,Skills Funding Agency,03/09/2014,Other Travel,Finance Division - Provider Financial Assurance Audit,Agency Staff Member,SCLAIM_39112,7.80,Staff Expenses Claim
BIS,Skills Funding Agency,03/09/2014,Other Travel,Finance Division - Provider Financial Assurance Audit,Agency Staff Member,SCLAIM_39133,3.00,Staff Expenses Claim
BIS,Skills Funding Agency,03/09/2014,Other Travel,Finance Division - Provider Financial Assurance Audit,Agency Staff Member,SCLAIM_39147,18.00,Staff Expenses Claim
BIS,Skills Funding Agency,03/09/2014,Other Travel,Finance Division - Provider Financial Assurance Audit,Agency Staff Member,SCLAIM_39171,8.00,Staff Expenses Claim
BIS,Skills Funding Agency,03/09/2014,Other Travel,Funding & Programmes - Apprenticeships & Employer Policy Implement,Agency Staff Member,SCLAIM_39179,37.00,Staff Expenses Claim
BIS,Skills Funding Agency,03/09/2014,Other Travel,Funding & Programmes - European Social Fund,Agency Staff Member,SCLAIM_39149,12.00,Staff Expenses Claim
BIS,Skills Funding Agency,03/09/2014,Other Travel,HR - Human Resources,Agency Staff Member,SCLAIM_39124,17.00,Staff Expenses Claim
BIS,Skills Funding Agency,03/09/2014,Other Travel,Large Companies Unit,Agency Staff Member,SCLAIM_39105,51.40,Staff Expenses Claim
BIS,Skills Funding Agency,03/09/2014,Other Travel,Large Companies Unit,Agency Staff Member,SCLAIM_39138,3.50,Staff Expenses Claim
BIS,Skills Funding Agency,03/09/2014,Other Travel,Large Companies Unit,Agency Staff Member,SCLAIM_39145,48.50,Staff Expenses Claim
BIS,Skills Funding Agency,03/09/2014,Other Travel,Large Companies Unit,Agency Staff Member,SCLAIM_39163,9.00,Staff Expenses Claim
BIS,Skills Funding Agency,03/09/2014,Other Travel,Large Companies Unit,Agency Staff Member,SCLAIM_39178,17.40,Staff Expenses Claim
BIS,Skills Funding Agency,03/09/2014,Other Travel,Large Companies Unit,Agency Staff Member,SCLAIM_39187,80.00,Staff Expenses Claim
BIS,Skills Funding Agency,03/09/2014,Other Travel,Large Companies Unit,Agency Staff Member,SCLAIM_39191,23.90,Staff Expenses Claim
BIS,Skills Funding Agency,03/09/2014,Other Travel,National Careers & Learner Services,Agency Staff Member,SCLAIM_39137,75.90,Staff Expenses Claim
BIS,Skills Funding Agency,03/09/2014,Other Travel,National Careers & Learner Services,Agency Staff Member,SCLAIM_39164,15.20,Staff Expenses Claim
BIS,Skills Funding Agency,03/09/2014,Other Travel,National Careers & Learner Services,Agency Staff Member,SCLAIM_39166,18.00,Staff Expenses Claim
BIS,Skills Funding Agency,03/09/2014,Other Travel,Northern Division,Agency Staff Member,SCLAIM_39111,8.00,Staff Expenses Claim
BIS,Skills Funding Agency,03/09/2014,Other Travel,Operations Finance - Procurement Services,Agency Staff Member,SCLAIM_39140,66.00,Staff Expenses Claim
BIS,Skills Funding Agency,03/09/2014,Other Travel,Provider Financial Management & Assurance,Agency Staff Member,SCLAIM_39114,10.00,Staff Expenses Claim
BIS,Skills Funding Agency,03/09/2014,Other Travel,Provider Financial Management & Assurance,Agency Staff Member,SCLAIM_39123,12.80,Staff Expenses Claim
BIS,Skills Funding Agency,03/09/2014,Other Travel,Provider Financial Management & Assurance,Agency Staff Member,SCLAIM_39159,168.50,Staff Expenses Claim
BIS,Skills Funding Agency,03/09/2014,Other Travel,Provider Financial Management & Assurance,Agency Staff Member,SCLAIM_39165,3.00,Staff Expenses Claim
BIS,Skills Funding Agency,03/09/2014,Other Travel,Relationship Team - North,Agency Staff Member,SCLAIM_39094,5.00,Staff Expenses Claim
BIS,Skills Funding Agency,03/09/2014,Other Travel,Relationship Team - North,Agency Staff Member,SCLAIM_39120,15.10,Staff Expenses Claim
BIS,Skills Funding Agency,03/09/2014,Other Travel,Relationship Team - North,Agency Staff Member,SCLAIM_39160,18.00,Staff Expenses Claim
BIS,Skills Funding Agency,03/09/2014,Other Travel,Relationship Team - North,Agency Staff Member,SCLAIM_39173,9.50,Staff Expenses Claim
BIS,Skills Funding Agency,03/09/2014,Other Travel,Relationship Team - North,Agency Staff Member,SCLAIM_39180,79.00,Staff Expenses Claim
BIS,Skills Funding Agency,03/09/2014,Other Travel,Relationship Team - North,Agency Staff Member,SCLAIM_39183,90.00,Staff Expenses Claim
BIS,Skills Funding Agency,03/09/2014,Other Travel,Relationship Team - North,Agency Staff Member,SCLAIM_39192,9.00,Staff Expenses Claim
BIS,Skills Funding Agency,03/09/2014,Other Travel,Relationship Team - South,Agency Staff Member,SCLAIM_39106,24.70,Staff Expenses Claim
BIS,Skills Funding Agency,03/09/2014,Other Travel,Relationship Team - South,Agency Staff Member,SCLAIM_39116,22.00,Staff Expenses Claim
BIS,Skills Funding Agency,03/09/2014,Other Travel,Southern Division,Agency Staff Member,SCLAIM_39101,14.00,Staff Expenses Claim
BIS,Skills Funding Agency,03/09/2014,Other Travel,Southern Division,Agency Staff Member,SCLAIM_39115,7.70,Staff Expenses Claim
BIS,Skills Funding Agency,03/09/2014,Other Travel,Southern Division,Agency Staff Member,SCLAIM_39175,70.00,Staff Expenses Claim
BIS,Skills Funding Agency,03/09/2014,Petrol Car Mileage Passenger Supplement,Finance Division - Provider Financial Assurance Audit,Agency Staff Member,SCLAIM_39133,5.50,Staff Expenses Claim
BIS,Skills Funding Agency,03/09/2014,Petrol Car Mileage Passenger Supplement,Finance Division - Provider Financial Assurance Audit,Agency Staff Member,SCLAIM_39147,0.60,Staff Expenses Claim
BIS,Skills Funding Agency,03/09/2014,Petrol Car Mileage Passenger Supplement,Large Companies Unit,Agency Staff Member,SCLAIM_39145,10.80,Staff Expenses Claim
BIS,Skills Funding Agency,03/09/2014,Petrol Car Mileage,Central Delivery Service - European Social Fund - Audit Compliance,Agency Staff Member,SCLAIM_39117,37.80,Staff Expenses Claim
BIS,Skills Funding Agency,03/09/2014,Petrol Car Mileage,Central Delivery Service - European Social Fund - Audit Compliance,Agency Staff Member,SCLAIM_39121,247.50,Staff Expenses Claim
BIS,Skills Funding Agency,03/09/2014,Petrol Car Mileage,Central Delivery Service - European Social Fund - Audit Compliance,Agency Staff Member,SCLAIM_39136,150.30,Staff Expenses Claim
BIS,Skills Funding Agency,03/09/2014,Petrol Car Mileage,Central Delivery Service - European Social Fund - Audit Compliance,Agency Staff Member,SCLAIM_39157,86.40,Staff Expenses Claim
BIS,Skills Funding Agency,03/09/2014,Petrol Car Mileage,Central Delivery Service - Leeds,Agency Staff Member,SCLAIM_39144,137.70,Staff Expenses Claim
BIS,Skills Funding Agency,03/09/2014,Petrol Car Mileage,Central Delivery Service - London,Agency Staff Member,SCLAIM_39154,95.40,Staff Expenses Claim
BIS,Skills Funding Agency,03/09/2014,Petrol Car Mileage,Central Division,Agency Staff Member,SCLAIM_39104,67.50,Staff Expenses Claim
BIS,Skills Funding Agency,03/09/2014,Petrol Car Mileage,Chief Executive Office - Marketing  ,Agency Staff Member,SCLAIM_39095,14.40,Staff Expenses Claim
BIS,Skills Funding Agency,03/09/2014,Petrol Car Mileage,Employer & Provider Services Midlands,Agency Staff Member,SCLAIM_39185,187.20,Staff Expenses Claim
BIS,Skills Funding Agency,03/09/2014,Petrol Car Mileage,Employer & Provider Services South West,Agency Staff Member,SCLAIM_39131,374.40,Staff Expenses Claim
BIS,Skills Funding Agency,03/09/2014,Petrol Car Mileage,Employer & Provider Services South West,Agency Staff Member,SCLAIM_39132,567.00,Staff Expenses Claim
BIS,Skills Funding Agency,03/09/2014,Petrol Car Mileage,Finance Division - Provider Financial Assurance Audit,Agency Staff Member,SCLAIM_39112,62.10,Staff Expenses Claim
BIS,Skills Funding Agency,03/09/2014,Petrol Car Mileage,Finance Division - Provider Financial Assurance Audit,Agency Staff Member,SCLAIM_39133,99.00,Staff Expenses Claim
BIS,Skills Funding Agency,03/09/2014,Petrol Car Mileage,Finance Division - Provider Financial Assurance Audit,Agency Staff Member,SCLAIM_39147,377.10,Staff Expenses Claim
BIS,Skills Funding Agency,03/09/2014,Petrol Car Mileage,Finance Division - Provider Financial Assurance Audit,Agency Staff Member,SCLAIM_39171,41.40,Staff Expenses Claim
BIS,Skills Funding Agency,03/09/2014,Petrol Car Mileage,Funding & Programmes - Employer Ownership Programme,Agency Staff Member,SCLAIM_39127,92.70,Staff Expenses Claim
BIS,Skills Funding Agency,03/09/2014,Petrol Car Mileage,Information Management Finance,Agency Staff Member,SCLAIM_39184,129.60,Staff Expenses Claim
BIS,Skills Funding Agency,03/09/2014,Petrol Car Mileage,Large Companies Unit,Agency Staff Member,SCLAIM_39138,517.05,Staff Expenses Claim
BIS,Skills Funding Agency,03/09/2014,Petrol Car Mileage,Large Companies Unit,Agency Staff Member,SCLAIM_39145,183.15,Staff Expenses Claim
BIS,Skills Funding Agency,03/09/2014,Petrol Car Mileage,Large Companies Unit,Agency Staff Member,SCLAIM_39163,51.30,Staff Expenses Claim
BIS,Skills Funding Agency,03/09/2014,Petrol Car Mileage,Large Companies Unit,Agency Staff Member,SCLAIM_39176,125.10,Staff Expenses Claim
BIS,Skills Funding Agency,03/09/2014,Petrol Car Mileage,Large Companies Unit,Agency Staff Member,SCLAIM_39191,105.75,Staff Expenses Claim
BIS,Skills Funding Agency,03/09/2014,Petrol Car Mileage,National Careers & Learner Services,Agency Staff Member,SCLAIM_39096,32.40,Staff Expenses Claim
BIS,Skills Funding Agency,03/09/2014,Petrol Car Mileage,National Careers & Learner Services,Agency Staff Member,SCLAIM_39166,212.40,Staff Expenses Claim
BIS,Skills Funding Agency,03/09/2014,Petrol Car Mileage,Northern Division,Agency Staff Member,SCLAIM_39111,59.40,Staff Expenses Claim
BIS,Skills Funding Agency,03/09/2014,Petrol Car Mileage,Provider Financial Management & Assurance,Agency Staff Member,SCLAIM_39107,232.20,Staff Expenses Claim
BIS,Skills Funding Agency,03/09/2014,Petrol Car Mileage,Provider Financial Management & Assurance,Agency Staff Member,SCLAIM_39114,89.10,Staff Expenses Claim
BIS,Skills Funding Agency,03/09/2014,Petrol Car Mileage,Provider Financial Management & Assurance,Agency Staff Member,SCLAIM_39123,63.00,Staff Expenses Claim
BIS,Skills Funding Agency,03/09/2014,Petrol Car Mileage,Provider Financial Management & Assurance,Agency Staff Member,SCLAIM_39126,13.50,Staff Expenses Claim
BIS,Skills Funding Agency,03/09/2014,Petrol Car Mileage,Provider Financial Management & Assurance,Agency Staff Member,SCLAIM_39161,47.25,Staff Expenses Claim
BIS,Skills Funding Agency,03/09/2014,Petrol Car Mileage,Relationship Team - North,Agency Staff Member,SCLAIM_39120,324.45,Staff Expenses Claim
BIS,Skills Funding Agency,03/09/2014,Petrol Car Mileage,Relationship Team - North,Agency Staff Member,SCLAIM_39173,81.00,Staff Expenses Claim
BIS,Skills Funding Agency,03/09/2014,Petrol Car Mileage,Relationship Team - North,Agency Staff Member,SCLAIM_39183,31.50,Staff Expenses Claim
BIS,Skills Funding Agency,03/09/2014,Petrol Car Mileage,Relationship Team - North,Agency Staff Member,SCLAIM_39192,89.55,Staff Expenses Claim
BIS,Skills Funding Agency,03/09/2014,Petrol Car Mileage,Relationship Team - South,Agency Staff Member,SCLAIM_39116,162.00,Staff Expenses Claim
BIS,Skills Funding Agency,03/09/2014,Petrol Car Mileage,Southern Division,Agency Staff Member,SCLAIM_39101,9.00,Staff Expenses Claim
BIS,Skills Funding Agency,03/09/2014,Petrol Car Mileage,Southern Division,Agency Staff Member,SCLAIM_39115,216.00,Staff Expenses Claim
BIS,Skills Funding Agency,03/09/2014,Petrol Car Mileage,Southern Division,Agency Staff Member,SCLAIM_39175,36.00,Staff Expenses Claim
BIS,Skills Funding Agency,03/09/2014,Prepayment Rents,"Operations Finance - Shared Service, ICT Finance & Capital",CHARITY COMMISSION FOR ENGLAND AND WALES,SPINVNO_3565,"17,597.28",Purchase Invoice
BIS,Skills Funding Agency,03/09/2014,Prepayment Service Charges,"Operations Finance - Shared Service, ICT Finance & Capital",CHARITY COMMISSION FOR ENGLAND AND WALES,SPINVNO_3565,"3,239.10",Purchase Invoice
BIS,Skills Funding Agency,03/09/2014,Professional Subscriptions,Operations Finance - Accounting Services,Agency Staff Member,SCLAIMPRO_747,217.00,Staff Expenses Claim
BIS,Skills Funding Agency,03/09/2014,Professional Subscriptions,Operations Finance - Procurement Services,Agency Staff Member,SCLAIMPRO_746,158.00,Staff Expenses Claim
BIS,Skills Funding Agency,03/09/2014,Rail Warrants & Tickets,Central Delivery Service - London,Agency Staff Member,SCLAIM_39152,3.40,Staff Expenses Claim
BIS,Skills Funding Agency,03/09/2014,Rail Warrants & Tickets,Chief Executive Office - Marketing  ,Agency Staff Member,SCLAIM_39181,47.85,Staff Expenses Claim
BIS,Skills Funding Agency,03/09/2014,Rail Warrants & Tickets,Employer & Provider Services North West,Agency Staff Member,SCLAIM_39189,85.40,Staff Expenses Claim
BIS,Skills Funding Agency,03/09/2014,Rail Warrants & Tickets,Employer & Provider Services South East,Agency Staff Member,SCLAIM_39150,34.20,Staff Expenses Claim
BIS,Skills Funding Agency,03/09/2014,Rail Warrants & Tickets,Finance Division - Provider Financial Assurance Audit,Agency Staff Member,SCLAIM_39146,6.50,Staff Expenses Claim
BIS,Skills Funding Agency,03/09/2014,Rail Warrants & Tickets,Finance Division - Provider Financial Assurance Audit,Agency Staff Member,SCLAIM_39147,16.80,Staff Expenses Claim
BIS,Skills Funding Agency,03/09/2014,Rail Warrants & Tickets,Large Companies Unit,Agency Staff Member,SCLAIM_39105,5.70,Staff Expenses Claim
BIS,Skills Funding Agency,03/09/2014,Rail Warrants & Tickets,Large Companies Unit,Agency Staff Member,SCLAIM_39145,38.10,Staff Expenses Claim
BIS,Skills Funding Agency,03/09/2014,Rail Warrants & Tickets,Large Companies Unit,Agency Staff Member,SCLAIM_39187,62.90,Staff Expenses Claim
BIS,Skills Funding Agency,03/09/2014,Rail Warrants & Tickets,National Careers & Learner Services,Agency Staff Member,SCLAIM_39137,20.00,Staff Expenses Claim
BIS,Skills Funding Agency,03/09/2014,Rail Warrants & Tickets,"Operations Finance - Forecasting, Planning, Reporting",Agency Staff Member,SCLAIM_39169,4.70,Staff Expenses Claim
BIS,Skills Funding Agency,03/09/2014,Rail Warrants & Tickets,Provider Financial Management & Assurance,Agency Staff Member,SCLAIM_39126,7.80,Staff Expenses Claim
BIS,Skills Funding Agency,03/09/2014,Rail Warrants & Tickets,Relationship Team - North,Agency Staff Member,SCLAIM_39180,24.20,Staff Expenses Claim
BIS,Skills Funding Agency,03/09/2014,Rail Warrants & Tickets,Relationship Team - North,Agency Staff Member,SCLAIM_39192,20.50,Staff Expenses Claim
BIS,Skills Funding Agency,03/09/2014,Rates,"Operations Finance - Shared Service, ICT Finance & Capital",CHARITY COMMISSION FOR ENGLAND AND WALES,SPINVNO_3565,"4,572.50",Purchase Invoice
BIS,Skills Funding Agency,03/09/2014,Self-Drive Car Hire,Central Delivery Service - European Social Fund - Audit Compliance,Agency Staff Member,SCLAIM_39117,45.00,Staff Expenses Claim
BIS,Skills Funding Agency,03/09/2014,Self-Drive Car Hire,Central Delivery Service - European Social Fund - Audit Compliance,Agency Staff Member,SCLAIM_39157,21.33,Staff Expenses Claim
BIS,Skills Funding Agency,03/09/2014,Self-Drive Car Hire,Chief Executive Office - Media & Public Affairs,Agency Staff Member,SCLAIM_39099,30.17,Staff Expenses Claim
BIS,Skills Funding Agency,03/09/2014,Self-Drive Car Hire,Employer & Provider Services South West,Agency Staff Member,SCLAIM_39186,24.80,Staff Expenses Claim
BIS,Skills Funding Agency,03/09/2014,Self-Drive Car Hire,Finance Division - Provider Financial Assurance Audit,Agency Staff Member,SCLAIM_39133,36.10,Staff Expenses Claim
BIS,Skills Funding Agency,03/09/2014,Self-Drive Car Hire,HR - Human Resources,Agency Staff Member,SCLAIM_39124,29.00,Staff Expenses Claim
BIS,Skills Funding Agency,03/09/2014,Self-Drive Car Hire,Large Companies Unit,Agency Staff Member,SCLAIM_39105,106.77,Staff Expenses Claim
BIS,Skills Funding Agency,03/09/2014,Self-Drive Car Hire,Large Companies Unit,Agency Staff Member,SCLAIM_39187,32.02,Staff Expenses Claim
BIS,Skills Funding Agency,03/09/2014,Self-Drive Car Hire,National Careers & Learner Services,Agency Staff Member,SCLAIM_39164,32.83,Staff Expenses Claim
BIS,Skills Funding Agency,03/09/2014,Self-Drive Car Hire,Relationship Team - North,Agency Staff Member,SCLAIM_39160,26.37,Staff Expenses Claim
BIS,Skills Funding Agency,03/09/2014,Self-Drive Car Hire,Southern Division,Agency Staff Member,SCLAIM_39141,100.51,Staff Expenses Claim
BIS,Skills Funding Agency,03/09/2014,Subsistence,Central Delivery Service - European Social Fund - Audit Compliance,Agency Staff Member,SCLAIM_39136,9.99,Staff Expenses Claim
BIS,Skills Funding Agency,03/09/2014,Subsistence,Central Delivery Service - Leeds,Agency Staff Member,SCLAIM_39162,25.00,Staff Expenses Claim
BIS,Skills Funding Agency,03/09/2014,Subsistence,Employer & Provider Services North West,Agency Staff Member,SCLAIM_39189,25.00,Staff Expenses Claim
BIS,Skills Funding Agency,03/09/2014,Subsistence,Funding & Programmes - Apprenticeships & Employer Policy Implement,Agency Staff Member,SCLAIM_39179,25.00,Staff Expenses Claim
BIS,Skills Funding Agency,03/09/2014,Subsistence,Funding & Programmes - European Social Fund,Agency Staff Member,SCLAIM_39149,20.00,Staff Expenses Claim
BIS,Skills Funding Agency,03/09/2014,Subsistence,Large Companies Unit,Agency Staff Member,SCLAIM_39105,75.00,Staff Expenses Claim
BIS,Skills Funding Agency,03/09/2014,Subsistence,Large Companies Unit,Agency Staff Member,SCLAIM_39129,105.00,Staff Expenses Claim
BIS,Skills Funding Agency,03/09/2014,Subsistence,Large Companies Unit,Agency Staff Member,SCLAIM_39138,25.00,Staff Expenses Claim
BIS,Skills Funding Agency,03/09/2014,Subsistence,Large Companies Unit,Agency Staff Member,SCLAIM_39145,35.00,Staff Expenses Claim
BIS,Skills Funding Agency,03/09/2014,Subsistence,Large Companies Unit,Agency Staff Member,SCLAIM_39163,10.00,Staff Expenses Claim
BIS,Skills Funding Agency,03/09/2014,Subsistence,Large Companies Unit,Agency Staff Member,SCLAIM_39172,25.00,Staff Expenses Claim
BIS,Skills Funding Agency,03/09/2014,Subsistence,Large Companies Unit,Agency Staff Member,SCLAIM_39187,50.00,Staff Expenses Claim
BIS,Skills Funding Agency,03/09/2014,Subsistence,National Careers & Learner Services,Agency Staff Member,SCLAIM_39137,125.00,Staff Expenses Claim
BIS,Skills Funding Agency,03/09/2014,Subsistence,National Careers & Learner Services,Agency Staff Member,SCLAIM_39164,45.00,Staff Expenses Claim
BIS,Skills Funding Agency,03/09/2014,Subsistence,"Operations Finance - Forecasting, Planning, Reporting",Agency Staff Member,SCLAIM_39169,25.00,Staff Expenses Claim
BIS,Skills Funding Agency,03/09/2014,Subsistence,Operations Finance - Procurement Services,Agency Staff Member,SCLAIM_39102,50.00,Staff Expenses Claim
BIS,Skills Funding Agency,03/09/2014,Subsistence,Operations Finance - Procurement Services,Agency Staff Member,SCLAIM_39103,25.00,Staff Expenses Claim
BIS,Skills Funding Agency,03/09/2014,Subsistence,Provider Financial Management & Assurance,Agency Staff Member,SCLAIM_39123,25.00,Staff Expenses Claim
BIS,Skills Funding Agency,03/09/2014,Subsistence,Provider Financial Management & Assurance,Agency Staff Member,SCLAIM_39161,10.00,Staff Expenses Claim
BIS,Skills Funding Agency,03/09/2014,Subsistence,Relationship Team - North,Agency Staff Member,SCLAIM_39183,150.00,Staff Expenses Claim
BIS,Skills Funding Agency,03/09/2014,Subsistence,Relationship Team - South,Agency Staff Member,SCLAIM_39116,10.00,Staff Expenses Claim
BIS,Skills Funding Agency,03/09/2014,Subsistence,Southern Division,Agency Staff Member,SCLAIM_39175,75.00,Staff Expenses Claim
BIS,Skills Funding Agency,03/09/2014,Sundry Items,Operations Finance - Procurement Services,Agency Staff Member,SCLAIM_39130,112.00,Staff Expenses Claim
BIS,Skills Funding Agency,03/09/2014,Support Services,Operations ICT - Projects,CAPGEMINI UK PLC,SPINVB_23480,"17,202.00",Purchase Invoice
BIS,Skills Funding Agency,03/09/2014,Taxis,Central Delivery Service - European Social Fund - Audit Compliance,Agency Staff Member,SCLAIM_39136,7.90,Staff Expenses Claim
BIS,Skills Funding Agency,03/09/2014,Taxis,Central Delivery Service - Leeds,Agency Staff Member,SCLAIM_39162,2.80,Staff Expenses Claim
BIS,Skills Funding Agency,03/09/2014,Taxis,Chief Executive Office - Media & Public Affairs,Agency Staff Member,SCLAIM_39108,109.40,Staff Expenses Claim
BIS,Skills Funding Agency,03/09/2014,Taxis,Employer & Provider Services North West,Agency Staff Member,SCLAIM_39189,14.60,Staff Expenses Claim
BIS,Skills Funding Agency,03/09/2014,Taxis,Employer & Provider Services South West,Agency Staff Member,SCLAIM_39186,11.00,Staff Expenses Claim
BIS,Skills Funding Agency,03/09/2014,Taxis,Funding & Programmes - Apprenticeships & Employer Policy Implement,Agency Staff Member,SCLAIM_39109,75.00,Staff Expenses Claim
BIS,Skills Funding Agency,03/09/2014,Taxis,Funding & Programmes - Apprenticeships & Employer Policy Implement,Agency Staff Member,SCLAIM_39153,11.40,Staff Expenses Claim
BIS,Skills Funding Agency,03/09/2014,Taxis,Large Companies Unit,Agency Staff Member,SCLAIM_39129,22.00,Staff Expenses Claim
BIS,Skills Funding Agency,03/09/2014,Taxis,Large Companies Unit,Agency Staff Member,SCLAIM_39145,7.70,Staff Expenses Claim
BIS,Skills Funding Agency,03/09/2014,Taxis,Large Companies Unit,Agency Staff Member,SCLAIM_39172,28.10,Staff Expenses Claim
BIS,Skills Funding Agency,03/09/2014,Taxis,Large Companies Unit,Agency Staff Member,SCLAIM_39176,52.00,Staff Expenses Claim
BIS,Skills Funding Agency,03/09/2014,Taxis,Large Companies Unit,Agency Staff Member,SCLAIM_39187,20.00,Staff Expenses Claim
BIS,Skills Funding Agency,03/09/2014,Taxis,Provider Financial Management & Assurance,Agency Staff Member,SCLAIM_39161,14.00,Staff Expenses Claim
BIS,Skills Funding Agency,03/09/2014,Taxis,Relationship Team - North,Agency Staff Member,SCLAIM_39183,34.20,Staff Expenses Claim
BIS,Skills Funding Agency,03/09/2014,Temporary Staff,Operations ICT - Agile Developments,LA INTERNATIONAL,SPINVB_23403,"12,696.00",Purchase Invoice
BIS,Skills Funding Agency,03/09/2014,Temporary Staff,Operations ICT - Business IT - Citizen Services,BADENOCH & CLARK IP LTD,IPINVELECT3_1658,"3,297.84",Purchase Invoice
BIS,Skills Funding Agency,03/09/2014,Temporary Staff,Operations ICT - Business IT - Citizen Services,BADENOCH & CLARK IP LTD,IPINVELECT3_1659,"3,297.84",Purchase Invoice
BIS,Skills Funding Agency,03/09/2014,Temporary Staff,Operations ICT - Change Delivery,BADENOCH & CLARK IP LTD,IPINVELECT3_1658,"2,024.83",Purchase Invoice
BIS,Skills Funding Agency,03/09/2014,Temporary Staff,Operations ICT - Project Delivery,BROOK STREET UK LTD,SPINVB_23433,514.80,Purchase Invoice
BIS,Skills Funding Agency,03/09/2014,Temporary Staff,Operations ICT - Project Delivery,METHODS ADVISORY LTD,SPINVB_23502,"1,680.00",Purchase Invoice
BIS,Skills Funding Agency,03/09/2014,Temporary Staff,Operations ICT - Project Delivery,METHODS ADVISORY LTD,SPINVB_23503,"7,923.91",Purchase Invoice
BIS,Skills Funding Agency,05/09/2014,Application For Payment,None,MITCHELL NICHOLLS PARTNERSHIP,SPAYONACCT_283,"183,186.00",Payment on Account
BIS,Skills Funding Agency,05/09/2014,Application For Payment,None,ORBIT PROPERTY MANAGEMENT LTD,SPAYONACCT_282,"300,000.00",Payment on Account
BIS,Skills Funding Agency,05/09/2014,Building Insurance,HR - Facilities Divisional,CLS ENGLAND AND WALES LTD,SPCRNNO_425,-413.10,Purchase Credit Note
BIS,Skills Funding Agency,05/09/2014,Career Development Loans - Programme Support Costs,Main Funding,EXPERIAN LTD,SPINVB_23528,150.84,Purchase Invoice
BIS,Skills Funding Agency,05/09/2014,Communications Team Expenditure,Chief Executive Office - Media & Public Affairs,GORKANA GROUP LTD,SPINVB_23511,"10,000.78",Purchase Invoice
BIS,Skills Funding Agency,05/09/2014,Course Fees,HR - Human Resources,EAST LANCASHIRE CHAMBER OF COMMERCE AND INDUSTRY,SPINVB_23526,"2,450.00",Purchase Invoice
BIS,Skills Funding Agency,05/09/2014,Electricity,HR - Facilities Central,EDF ENERGY PLC,SPINVNO_3568,"12,134.95",Purchase Invoice
BIS,Skills Funding Agency,05/09/2014,Electricity,HR - Facilities Central,EDF ENERGY PLC,SPINVNO_3570,"4,854.57",Purchase Invoice
BIS,Skills Funding Agency,05/09/2014,Facilities Management,HR - Facilities Divisional,DEPARTMENT FOR BUSINESS INNOVATION & SKILLS (NEWPORT),SPINVB_23512,"38,852.01",Purchase Invoice
BIS,Skills Funding Agency,05/09/2014,Funding Advances,None,NEW COLLEGE DURHAM,NQEP_22,"1,535,900.00",Programme Template
BIS,Skills Funding Agency,05/09/2014,Hosting,Operations ICT - Business IT - Citizen Services,FORDWAY SOLUTIONS LIMITED,SPINVB_23412,480.00,Purchase Invoice
BIS,Skills Funding Agency,05/09/2014,"Information, Advice and Guidance - Local",Main Funding,ECONOMIC SOLUTIONS LTD,SPINVB_23508,"311,869.12",Purchase Invoice
BIS,Skills Funding Agency,05/09/2014,Managed IT Service,Operations ICT - Agile Developments,SOGETI UK LIMITED,SPCRNB_710,-480.00,Purchase Credit Note
BIS,Skills Funding Agency,05/09/2014,Managed IT Service,Operations ICT - Agile Developments,SOGETI UK LIMITED,SPINVB_23163,"7,560.00",Purchase Invoice
BIS,Skills Funding Agency,05/09/2014,Managed IT Service,Operations ICT - Agile Developments,SOGETI UK LIMITED,SPINVB_23164,"5,280.00",Purchase Invoice
BIS,Skills Funding Agency,05/09/2014,Managed IT Service,Operations ICT - Agile Developments,SOGETI UK LIMITED,SPINVB_23165,"9,180.00",Purchase Invoice
BIS,Skills Funding Agency,05/09/2014,Managed IT Service,Operations ICT - Agile Developments,SOGETI UK LIMITED,SPINVB_23166,"8,280.00",Purchase Invoice
BIS,Skills Funding Agency,05/09/2014,Managed IT Service,Operations ICT - Agile Developments,SOGETI UK LIMITED,SPINVB_23167,"8,280.00",Purchase Invoice
BIS,Skills Funding Agency,05/09/2014,Managed IT Service,Operations ICT - Agile Developments,SOGETI UK LIMITED,SPINVB_23168,"11,880.00",Purchase Invoice
BIS,Skills Funding Agency,05/09/2014,Managed IT Service,Operations ICT - Agile Developments,SOGETI UK LIMITED,SPINVB_23169,"12,600.00",Purchase Invoice
BIS,Skills Funding Agency,05/09/2014,Managed IT Service,Operations ICT - Agile Developments,SOGETI UK LIMITED,SPINVB_23285,600.00,Purchase Invoice
BIS,Skills Funding Agency,05/09/2014,Managed IT Service,Operations ICT - Agile Developments,SOGETI UK LIMITED,SPINVB_23516,"6,480.00",Purchase Invoice
BIS,Skills Funding Agency,05/09/2014,Managed IT Service,Operations ICT - Agile Developments,SOGETI UK LIMITED,SPINVB_23517,"7,680.00",Purchase Invoice
BIS,Skills Funding Agency,05/09/2014,Managed IT Service,Operations ICT - Agile Developments,SOGETI UK LIMITED,SPINVB_23518,"3,240.00",Purchase Invoice
BIS,Skills Funding Agency,05/09/2014,Managed IT Service,Operations ICT - Agile Developments,SOGETI UK LIMITED,SPINVB_23520,"12,000.00",Purchase Invoice
BIS,Skills Funding Agency,05/09/2014,Managed IT Service,Operations ICT - Agile Developments,SOGETI UK LIMITED,SPINVB_23521,"6,480.00",Purchase Invoice
BIS,Skills Funding Agency,05/09/2014,Managed IT Service,Operations ICT - Agile Developments,SOGETI UK LIMITED,SPINVB_23522,"4,860.00",Purchase Invoice
BIS,Skills Funding Agency,05/09/2014,Managed IT Service,Operations ICT - Agile Developments,SOGETI UK LIMITED,SPINVB_23523,"7,800.00",Purchase Invoice
BIS,Skills Funding Agency,05/09/2014,Managed IT Service,Operations ICT - Projects,SERVICENOW NEDERLAND B.V.,SPINVB_23141,"14,400.00",Purchase Invoice
BIS,Skills Funding Agency,05/09/2014,"National Apprenticeship Service - Business, Innovation & Skills - Non-Participation",Communications & Marketing,PANLOGIC LTD,SPINVB_23407,"1,020.00",Purchase Invoice
BIS,Skills Funding Agency,05/09/2014,"National Apprenticeship Service - Business, Innovation & Skills - Non-Participation",Communications & Marketing,PANLOGIC LTD,SPINVB_23408,"11,941.20",Purchase Invoice
BIS,Skills Funding Agency,05/09/2014,"National Apprenticeship Service - Business, Innovation & Skills - Non-Participation",Communications & Marketing,PANLOGIC LTD,SPINVB_23410,"12,890.33",Purchase Invoice
BIS,Skills Funding Agency,05/09/2014,"National Apprenticeship Service - Business, Innovation & Skills - Non-Participation",Communications & Marketing,PANLOGIC LTD,SPINVB_23428,"3,060.00",Purchase Invoice
BIS,Skills Funding Agency,05/09/2014,"National Apprenticeship Service - Business, Innovation & Skills - Non-Participation",Communications & Marketing,PANLOGIC LTD,SPINVB_23506,"1,530.00",Purchase Invoice
BIS,Skills Funding Agency,05/09/2014,National Careers Service Development,Main Funding,DEPARTMENT FOR WORK & PENSIONS,SPINVB_23542,"22,384.43",Purchase Invoice
BIS,Skills Funding Agency,05/09/2014,National Careers Service Youth Contract,Main Funding,ECONOMIC SOLUTIONS LTD,SPINVB_23510,"8,060.00",Purchase Invoice
BIS,Skills Funding Agency,05/09/2014,Offender Learning and Skills Service - Information & Guidance,Main Funding,ECONOMIC SOLUTIONS LTD,SPINVB_23509,"27,220.80",Purchase Invoice
BIS,Skills Funding Agency,05/09/2014,Prepayment Rents,"Operations Finance - Shared Service, ICT Finance & Capital",CLS ENGLAND AND WALES LTD,SPINVNO_3569,"49,500.00",Purchase Invoice
BIS,Skills Funding Agency,05/09/2014,Professional Services - Single Assignments,Operations ICT - Projects,ATKINS PLC,SPINVB_23431,"12,711.72",Purchase Invoice
BIS,Skills Funding Agency,05/09/2014,Temporary Staff,Funding & Programmes - Delivery & Performance,HAYS SPECIALIST RECRUITMENT LTD,IPINVELECT3_1660,"1,650.00",Purchase Invoice
BIS,Skills Funding Agency,05/09/2014,Temporary Staff,HR - Human Resources,HAYS SPECIALIST RECRUITMENT LTD,IPINVELECT3_1660,"2,006.16",Purchase Invoice
BIS,Skills Funding Agency,05/09/2014,Temporary Staff,Operations ICT - Mission IT / Business As Usual Major Releases,MAGNETIC IT LIMITED,SPINVB_23377,"3,783.84",Purchase Invoice
BIS,Skills Funding Agency,05/09/2014,Temporary Staff,Operations ICT - Mission IT / Business As Usual Major Releases,MAGNETIC IT LIMITED,SPINVB_23513,"6,621.72",Purchase Invoice
BIS,Skills Funding Agency,05/09/2014,Training Materials,Operations Finance - Accounting Services,UNIT 4 BUSINESS SOFTWARE LTD,SPINVB_23340,"11,145.60",Purchase Invoice
BIS,Skills Funding Agency,08/09/2014,Bank Charges,Strategic Finance - Financial Control Accounting Services,Citi Bank,BANKCHARGES_228,255.00,Bank Charge
BIS,Skills Funding Agency,08/09/2014,Bank Charges,Strategic Finance - Financial Control Accounting Services,ROYAL BANK OF SCOTLAND,BANKCHARGES_232,255.00,Bank Charge
BIS,Skills Funding Agency,09/09/2014,External Relations,Funding & Programmes - Delivery & Performance,DERWEN COLLEGE,SPINVB_23578,19.30,Purchase Invoice
BIS,Skills Funding Agency,09/09/2014,Implementation,Operations ICT - Projects,CAPGEMINI UK PLC,SPINVB_23455,"72,064.80",Purchase Invoice
BIS,Skills Funding Agency,09/09/2014,Information Technology Systems Development,Operations ICT - Projects,CAPGEMINI UK PLC,SPINVB_23456,"40,002.00",Purchase Invoice
BIS,Skills Funding Agency,09/09/2014,Information Technology Systems Development,Operations ICT - Projects,CAPGEMINI UK PLC,SPINVB_23482,"85,445.53",Purchase Invoice
BIS,Skills Funding Agency,09/09/2014,Managed IT Service,Operations ICT - Change Delivery,ACUITY BUSINESS SOLUTIONS LTD,SPINVB_23537,"22,114.70",Purchase Invoice
BIS,Skills Funding Agency,09/09/2014,National Careers Service Development,Communications & Marketing,MUNRO & FORSTER COMMUNICATIONS LIMITED,SPINVB_23527,"11,986.80",Purchase Invoice
BIS,Skills Funding Agency,09/09/2014,Next Step Development,Main Funding,CAPGEMINI UK PLC,SPINVB_23447,"53,572.68",Purchase Invoice
BIS,Skills Funding Agency,09/09/2014,Next Step Development,Main Funding,ICONNECTEL TELCOM LTD,SPINVB_23434,"1,800.00",Purchase Invoice
BIS,Skills Funding Agency,09/09/2014,Next Step Helpline,Main Funding,CGI IT UK LIMITED,SPINVB_23418,"13,019.60",Purchase Invoice
BIS,Skills Funding Agency,09/09/2014,Next Step Helpline,Main Funding,CGI IT UK LIMITED,SPINVB_23419,"13,019.60",Purchase Invoice
BIS,Skills Funding Agency,09/09/2014,Next Step Helpline,Main Funding,ICONNECTEL TELCOM LTD,SPINVB_23543,"14,843.11",Purchase Invoice
BIS,Skills Funding Agency,09/09/2014,PHI Permanent Health Insurance,HR - Human Resources,UNUM LTD,PAYCHAPSAUTO_320,"1,714.66",Payroll
BIS,Skills Funding Agency,09/09/2014,Professional Services,Operations ICT - Projects,CAPGEMINI UK PLC,SPINVB_23466,"67,670.82",Purchase Invoice
BIS,Skills Funding Agency,09/09/2014,Professional Services,Operations ICT - Projects,CAPGEMINI UK PLC,SPINVB_23473,"36,431.60",Purchase Invoice
BIS,Skills Funding Agency,09/09/2014,Professional Services,Operations ICT - Projects,READING ROOM LONDON LTD,SPINVB_23550,"6,892.80",Purchase Invoice
BIS,Skills Funding Agency,09/09/2014,Reissue of Previously Returned Payment,None,PREFERRED SPACES LTD,REISSUE_205,"5,297.63",Payment Reissue
BIS,Skills Funding Agency,09/09/2014,Software Upgrades,Operations ICT - Projects,VALTECH LIMITED,SPINVB_23199,221.42,Purchase Invoice
BIS,Skills Funding Agency,09/09/2014,Software Upgrades,Operations ICT - Projects,VALTECH LIMITED,SPINVB_23200,246.04,Purchase Invoice
BIS,Skills Funding Agency,09/09/2014,Software Upgrades,Operations ICT - Projects,VALTECH LIMITED,SPINVB_23288,"17,280.00",Purchase Invoice
BIS,Skills Funding Agency,09/09/2014,Software Upgrades,Operations ICT - Projects,VALTECH LIMITED,SPINVB_23289,"180,420.00",Purchase Invoice
BIS,Skills Funding Agency,09/09/2014,Temporary Staff,HR - Human Resources,SF RECRUITMENT LTD,SPINVB_23548,932.40,Purchase Invoice
BIS,Skills Funding Agency,09/09/2014,Temporary Staff,Operations ICT - Project Delivery,METHODS ADVISORY LTD,SPINVB_23532,"7,089.82",Purchase Invoice
BIS,Skills Funding Agency,09/09/2014,Temporary Staff,Operations ICT - Project Delivery,SMART SOURCING PLC,SPINVB_23554,"11,042.72",Purchase Invoice
BIS,Skills Funding Agency,09/09/2014,Temporary Staff,Operations ICT - Project Delivery,SMART SOURCING PLC,SPINVB_23555,"6,912.00",Purchase Invoice
BIS,Skills Funding Agency,09/09/2014,Temporary Staff,Operations ICT - Project Delivery,SMART SOURCING PLC,SPINVB_23556,"11,286.00",Purchase Invoice
BIS,Skills Funding Agency,09/09/2014,Temporary Staff,Operations ICT - Project Delivery,SMART SOURCING PLC,SPINVB_23558,"6,520.90",Purchase Invoice
BIS,Skills Funding Agency,09/09/2014,Temporary Staff,Operations ICT - Projects,LA INTERNATIONAL,SPINVB_23530,"12,348.71",Purchase Invoice
BIS,Skills Funding Agency,09/09/2014,Temporary Staff,Operations ICT - Projects,LA INTERNATIONAL,SPINVB_23534,"11,101.50",Purchase Invoice
BIS,Skills Funding Agency,09/09/2014,Temporary Staff,Operations ICT - Projects,LA INTERNATIONAL,SPINVB_23535,"7,813.25",Purchase Invoice
BIS,Skills Funding Agency,09/09/2014,Temporary Staff,Operations ICT - Solution Design & Innovation,SMART SOURCING PLC,SPINVB_23557,"9,088.02",Purchase Invoice
BIS,Skills Funding Agency,10/09/2014,Bicycle Mileage,Chief Executive Office - Information Compliance & Security,Agency Staff Member,SCLAIM_39236,1.20,Staff Expenses Claim
BIS,Skills Funding Agency,10/09/2014,Books,Operations ICT - Information & Communication Technology - Digital,Agency Staff Member,SCLAIM_39212,48.50,Staff Expenses Claim
BIS,Skills Funding Agency,10/09/2014,Career Development Loans - Programme Support Costs,Main Funding,CPM UNITED KINGDOM LTD,SPINVB_23560,"9,150.79",Purchase Invoice
BIS,Skills Funding Agency,10/09/2014,Diesel Car Mileage Passenger Supplement,Central Delivery Service - European Social Fund - Audit Compliance,Agency Staff Member,SCLAIM_39198,3.70,Staff Expenses Claim
BIS,Skills Funding Agency,10/09/2014,Diesel Car Mileage Passenger Supplement,Central Delivery Service - European Social Fund - Audit Compliance,Agency Staff Member,SCLAIM_39259,1.30,Staff Expenses Claim
BIS,Skills Funding Agency,10/09/2014,Diesel Car Mileage Passenger Supplement,Employer & Provider Services South East,Agency Staff Member,SCLAIM_39202,7.10,Staff Expenses Claim
BIS,Skills Funding Agency,10/09/2014,Diesel Car Mileage Passenger Supplement,Employer & Provider Services South West,Agency Staff Member,SCLAIM_39271,20.00,Staff Expenses Claim
BIS,Skills Funding Agency,10/09/2014,Diesel Car Mileage Passenger Supplement,Funding & Programmes - Apprenticeships & Employer Policy Implement,Agency Staff Member,SCLAIM_39262,0.45,Staff Expenses Claim
BIS,Skills Funding Agency,10/09/2014,Diesel Car Mileage,Central Delivery Service - European Social Fund - Audit Compliance,Agency Staff Member,SCLAIM_39196,43.20,Staff Expenses Claim
BIS,Skills Funding Agency,10/09/2014,Diesel Car Mileage,Central Delivery Service - European Social Fund - Audit Compliance,Agency Staff Member,SCLAIM_39197,38.70,Staff Expenses Claim
BIS,Skills Funding Agency,10/09/2014,Diesel Car Mileage,Central Delivery Service - European Social Fund - Audit Compliance,Agency Staff Member,SCLAIM_39198,33.30,Staff Expenses Claim
BIS,Skills Funding Agency,10/09/2014,Diesel Car Mileage,Central Delivery Service - European Social Fund - Audit Compliance,Agency Staff Member,SCLAIM_39199,7.20,Staff Expenses Claim
BIS,Skills Funding Agency,10/09/2014,Diesel Car Mileage,Central Delivery Service - European Social Fund - Audit Compliance,Agency Staff Member,SCLAIM_39200,90.90,Staff Expenses Claim
BIS,Skills Funding Agency,10/09/2014,Diesel Car Mileage,Central Delivery Service - European Social Fund - Audit Compliance,Agency Staff Member,SCLAIM_39201,27.90,Staff Expenses Claim
BIS,Skills Funding Agency,10/09/2014,Diesel Car Mileage,Central Delivery Service - European Social Fund - Audit Compliance,Agency Staff Member,SCLAIM_39259,230.85,Staff Expenses Claim
BIS,Skills Funding Agency,10/09/2014,Diesel Car Mileage,Employer & Provider Services North East & Yorkshire,Agency Staff Member,SCLAIM_39251,210.15,Staff Expenses Claim
BIS,Skills Funding Agency,10/09/2014,Diesel Car Mileage,Employer & Provider Services South East,Agency Staff Member,SCLAIM_39202,404.10,Staff Expenses Claim
BIS,Skills Funding Agency,10/09/2014,Diesel Car Mileage,Employer & Provider Services South East,Agency Staff Member,SCLAIM_39220,82.80,Staff Expenses Claim
BIS,Skills Funding Agency,10/09/2014,Diesel Car Mileage,Employer & Provider Services South East,Agency Staff Member,SCLAIM_39227,47.70,Staff Expenses Claim
BIS,Skills Funding Agency,10/09/2014,Diesel Car Mileage,Employer & Provider Services South West,Agency Staff Member,SCLAIM_39231,275.40,Staff Expenses Claim
BIS,Skills Funding Agency,10/09/2014,Diesel Car Mileage,Employer & Provider Services South West,Agency Staff Member,SCLAIM_39271,90.00,Staff Expenses Claim
BIS,Skills Funding Agency,10/09/2014,Diesel Car Mileage,Finance Division - Provider Finance,Agency Staff Member,SCLAIM_39241,52.20,Staff Expenses Claim
BIS,Skills Funding Agency,10/09/2014,Diesel Car Mileage,Funding & Programmes - Apprenticeships & Employer Policy Implement,Agency Staff Member,SCLAIM_39262,91.80,Staff Expenses Claim
BIS,Skills Funding Agency,10/09/2014,Diesel Car Mileage,Funding & Programmes - Employer Ownership Programme,Agency Staff Member,SCLAIM_39225,198.90,Staff Expenses Claim
BIS,Skills Funding Agency,10/09/2014,Diesel Car Mileage,Funding & Programmes - Funding Systems and Information,Agency Staff Member,SCLAIM_39214,615.60,Staff Expenses Claim
BIS,Skills Funding Agency,10/09/2014,Diesel Car Mileage,Funding & Programmes - Localism Policy Implementation,Agency Staff Member,SCLAIM_39224,832.50,Staff Expenses Claim
BIS,Skills Funding Agency,10/09/2014,Diesel Car Mileage,HR - Human Resources,Agency Staff Member,SCLAIM_39269,406.80,Staff Expenses Claim
BIS,Skills Funding Agency,10/09/2014,Diesel Car Mileage,Information Management Finance,Agency Staff Member,SCLAIM_39254,39.60,Staff Expenses Claim
BIS,Skills Funding Agency,10/09/2014,Diesel Car Mileage,Large Companies Unit,Agency Staff Member,SCLAIM_39194,18.90,Staff Expenses Claim
BIS,Skills Funding Agency,10/09/2014,Diesel Car Mileage,Large Companies Unit,Agency Staff Member,SCLAIM_39206,132.30,Staff Expenses Claim
BIS,Skills Funding Agency,10/09/2014,Diesel Car Mileage,Large Companies Unit,Agency Staff Member,SCLAIM_39229,183.60,Staff Expenses Claim
BIS,Skills Funding Agency,10/09/2014,Diesel Car Mileage,Large Companies Unit,Agency Staff Member,SCLAIM_39248,556.20,Staff Expenses Claim
BIS,Skills Funding Agency,10/09/2014,Diesel Car Mileage,Large Companies Unit,Agency Staff Member,SCLAIM_39266,122.40,Staff Expenses Claim
BIS,Skills Funding Agency,10/09/2014,Diesel Car Mileage,National Careers & Learner Services,Agency Staff Member,SCLAIM_39205,13.50,Staff Expenses Claim
BIS,Skills Funding Agency,10/09/2014,Diesel Car Mileage,Northern Division,Agency Staff Member,SCLAIM_39208,134.10,Staff Expenses Claim
BIS,Skills Funding Agency,10/09/2014,Diesel Car Mileage,Northern Division,Agency Staff Member,SCLAIM_39222,105.30,Staff Expenses Claim
BIS,Skills Funding Agency,10/09/2014,Diesel Car Mileage,Operations Finance - Financial Management,Agency Staff Member,SCLAIM_39223,57.60,Staff Expenses Claim
BIS,Skills Funding Agency,10/09/2014,Diesel Car Mileage,Provider Financial Management & Assurance,Agency Staff Member,SCLAIM_39204,225.00,Staff Expenses Claim
BIS,Skills Funding Agency,10/09/2014,Diesel Car Mileage,Provider Financial Management & Assurance,Agency Staff Member,SCLAIM_39243,122.40,Staff Expenses Claim
BIS,Skills Funding Agency,10/09/2014,Diesel Car Mileage,Provider Financial Management & Assurance,Agency Staff Member,SCLAIM_39253,567.90,Staff Expenses Claim
BIS,Skills Funding Agency,10/09/2014,Diesel Car Mileage,Southern Division,Agency Staff Member,SCLAIM_39238,323.55,Staff Expenses Claim
BIS,Skills Funding Agency,10/09/2014,Eye Tests,Funding & Programmes - Apprenticeships & Employer Policy Implement,Agency Staff Member,SCLAIM_39263,70.00,Staff Expenses Claim
BIS,Skills Funding Agency,10/09/2014,Eye Tests,Large Companies Unit,Agency Staff Member,SCLAIM_39242,80.00,Staff Expenses Claim
BIS,Skills Funding Agency,10/09/2014,Eye Tests,Relationship Team - South,Agency Staff Member,SCLAIM_39219,20.00,Staff Expenses Claim
BIS,Skills Funding Agency,10/09/2014,Hosting,Operations ICT - Business IT - Agency Services,CAPGEMINI UK PLC,SPINVB_23492,"740,211.60",Purchase Invoice
BIS,Skills Funding Agency,10/09/2014,Hosting,Operations ICT - Business IT - Agency Services,CAPGEMINI UK PLC,SPINVB_23494,"602,652.70",Purchase Invoice
BIS,Skills Funding Agency,10/09/2014,"Information, Advice and Guidance - Local",Main Funding,CAREERS SOUTH WEST LTD,SPINVB_23553,"233,995.69",Purchase Invoice
BIS,Skills Funding Agency,10/09/2014,"Information, Advice and Guidance - Local",Main Funding,CAREERS YORKSHIRE & HUMBER LTD,SPINVB_23546,"373,321.00",Purchase Invoice
BIS,Skills Funding Agency,10/09/2014,"Information, Advice and Guidance - Local",Main Funding,CAREERS YORKSHIRE & HUMBER LTD,SPINVB_23547,"98,959.00",Purchase Invoice
BIS,Skills Funding Agency,10/09/2014,"Information, Advice and Guidance - Local",Main Funding,GMCP ENTERPRISE LTD,SPINVB_23561,"125,464.00",Purchase Invoice
BIS,Skills Funding Agency,10/09/2014,"Information, Advice and Guidance - Local",Main Funding,GMCP ENTERPRISE LTD,SPINVB_23562,"43,820.00",Purchase Invoice
BIS,Skills Funding Agency,10/09/2014,"Information, Advice and Guidance - Local",Main Funding,GMCP ENTERPRISE LTD,SPINVB_23563,"152,606.17",Purchase Invoice
BIS,Skills Funding Agency,10/09/2014,Landline Telephone Service,Operational Services - Service Management - Operate,LEVEL 3 COMMUNICATIONS UK LIMITED,SPINVB_23382,"5,921.09",Purchase Invoice
BIS,Skills Funding Agency,10/09/2014,"National Apprenticeship Service - Business, Innovation & Skills - Non-Participation",Communications & Marketing,CITY DIGITAL LTD,SPINVB_23615,"1,368.30",Purchase Invoice
BIS,Skills Funding Agency,10/09/2014,"National Apprenticeship Service - Business, Innovation & Skills - Non-Participation",Communications & Marketing,CITY DIGITAL LTD,SPINVB_23616,237.89,Purchase Invoice
BIS,Skills Funding Agency,10/09/2014,"National Apprenticeship Service - Business, Innovation & Skills - Non-Participation",Communications & Marketing,LATRA LTD,SPINVB_23614,"2,160.00",Purchase Invoice
BIS,Skills Funding Agency,10/09/2014,"National Apprenticeship Service - Business, Innovation & Skills - Non-Participation",Communications & Marketing,LIONEL HEAP PHOTOGRAPHER,SPINVB_23613,"10,800.00",Purchase Invoice
BIS,Skills Funding Agency,10/09/2014,"National Apprenticeship Service - Business, Innovation & Skills - Non-Participation",Communications & Marketing,PANLOGIC LTD,SPINVB_23435,"8,610.00",Purchase Invoice
BIS,Skills Funding Agency,10/09/2014,"National Apprenticeship Service - Business, Innovation & Skills - Non-Participation",Main Funding,MIDDLESEX UNIVERSITY,SPINVB_22546,"110,000.00",Purchase Invoice
BIS,Skills Funding Agency,10/09/2014,National Careers Service Youth Contract,Main Funding,CAREERS SOUTH WEST LTD,SPINVB_23552,"4,800.00",Purchase Invoice
BIS,Skills Funding Agency,10/09/2014,National Careers Service Youth Contract,Main Funding,CAREERS YORKSHIRE & HUMBER LTD,SPINVB_23545,"14,057.00",Purchase Invoice
BIS,Skills Funding Agency,10/09/2014,National Careers Service Youth Contract,Main Funding,GMCP ENTERPRISE LTD,SPINVB_23564,"4,348.00",Purchase Invoice
BIS,Skills Funding Agency,10/09/2014,National Careers Service Youth Contract,Main Funding,GMCP ENTERPRISE LTD,SPINVB_23565,"6,914.00",Purchase Invoice
BIS,Skills Funding Agency,10/09/2014,Offender Learning and Skills Service - Information & Guidance,Main Funding,CAREERS YORKSHIRE & HUMBER LTD,SPINVB_23544,"74,774.00",Purchase Invoice
BIS,Skills Funding Agency,10/09/2014,Offender Learning and Skills Service - Information & Guidance,Main Funding,GMCP ENTERPRISE LTD,SPINVB_23566,"37,134.00",Purchase Invoice
BIS,Skills Funding Agency,10/09/2014,Office Refreshments,Operations Finance - Financial Management,MADELEY DAIRIES,SPINVB_23625,72.52,Purchase Invoice
BIS,Skills Funding Agency,10/09/2014,Office Refreshments,Operations Finance - Financial Management,MADELEY DAIRIES,SPINVB_23626,72.52,Purchase Invoice
BIS,Skills Funding Agency,10/09/2014,Office Refreshments,Operations Finance - Financial Management,MADELEY DAIRIES,SPINVB_23627,90.65,Purchase Invoice
BIS,Skills Funding Agency,10/09/2014,Other Fuel Car Mileage,Chief Executive Office - Media & Public Affairs,Agency Staff Member,SCLAIM_39037,8.10,Staff Expenses Claim
BIS,Skills Funding Agency,10/09/2014,Other Fuel Car Mileage,Large Companies Unit,Agency Staff Member,SCLAIM_39203,165.60,Staff Expenses Claim
BIS,Skills Funding Agency,10/09/2014,Other Travel,Central Delivery Service - European Social Fund - Audit Compliance,Agency Staff Member,SCLAIM_39196,16.00,Staff Expenses Claim
BIS,Skills Funding Agency,10/09/2014,Other Travel,Central Delivery Service - European Social Fund - Audit Compliance,Agency Staff Member,SCLAIM_39197,24.00,Staff Expenses Claim
BIS,Skills Funding Agency,10/09/2014,Other Travel,Central Delivery Service - European Social Fund - Audit Compliance,Agency Staff Member,SCLAIM_39198,4.00,Staff Expenses Claim
BIS,Skills Funding Agency,10/09/2014,Other Travel,Central Delivery Service - European Social Fund - Audit Compliance,Agency Staff Member,SCLAIM_39200,10.20,Staff Expenses Claim
BIS,Skills Funding Agency,10/09/2014,Other Travel,Central Delivery Service - European Social Fund - Audit Compliance,Agency Staff Member,SCLAIM_39201,4.00,Staff Expenses Claim
BIS,Skills Funding Agency,10/09/2014,Other Travel,Central Delivery Service - European Social Fund - Audit Compliance,Agency Staff Member,SCLAIM_39259,41.00,Staff Expenses Claim
BIS,Skills Funding Agency,10/09/2014,Other Travel,Central Delivery Service - European Social Fund - Audit Compliance,Agency Staff Member,SCLAIM_39260,6.80,Staff Expenses Claim
BIS,Skills Funding Agency,10/09/2014,Other Travel,Central Delivery Service - European Social Fund - Audit Compliance,Agency Staff Member,SCLAIM_39270,8.00,Staff Expenses Claim
BIS,Skills Funding Agency,10/09/2014,Other Travel,Central Delivery Service - Leeds,Agency Staff Member,SCLAIM_39258,7.50,Staff Expenses Claim
BIS,Skills Funding Agency,10/09/2014,Other Travel,Central Division,Agency Staff Member,SCLAIM_39213,4.00,Staff Expenses Claim
BIS,Skills Funding Agency,10/09/2014,Other Travel,Chief Executive Office - Marketing  ,Agency Staff Member,SCLAIM_39246,15.00,Staff Expenses Claim
BIS,Skills Funding Agency,10/09/2014,Other Travel,Chief Executive Office - Media & Public Affairs,Agency Staff Member,SCLAIM_39037,19.89,Staff Expenses Claim
BIS,Skills Funding Agency,10/09/2014,Other Travel,Chief Executive Office - Media & Public Affairs,Agency Staff Member,SCLAIM_39265,37.60,Staff Expenses Claim
BIS,Skills Funding Agency,10/09/2014,Other Travel,Employer & Provider Services North East & Yorkshire,Agency Staff Member,SCLAIM_39251,3.90,Staff Expenses Claim
BIS,Skills Funding Agency,10/09/2014,Other Travel,Employer & Provider Services North West,Agency Staff Member,SCLAIM_39230,5.20,Staff Expenses Claim
BIS,Skills Funding Agency,10/09/2014,Other Travel,Employer & Provider Services South East,Agency Staff Member,SCLAIM_39202,6.90,Staff Expenses Claim
BIS,Skills Funding Agency,10/09/2014,Other Travel,Employer & Provider Services South East,Agency Staff Member,SCLAIM_39210,8.00,Staff Expenses Claim
BIS,Skills Funding Agency,10/09/2014,Other Travel,Employer & Provider Services South East,Agency Staff Member,SCLAIM_39220,16.00,Staff Expenses Claim
BIS,Skills Funding Agency,10/09/2014,Other Travel,Employer & Provider Services South East,Agency Staff Member,SCLAIM_39227,18.00,Staff Expenses Claim
BIS,Skills Funding Agency,10/09/2014,Other Travel,Employer & Provider Services South West,Agency Staff Member,SCLAIM_39271,29.70,Staff Expenses Claim
BIS,Skills Funding Agency,10/09/2014,Other Travel,Finance Division - Provider Finance,Agency Staff Member,SCLAIM_39241,8.10,Staff Expenses Claim
BIS,Skills Funding Agency,10/09/2014,Other Travel,Funding & Programmes - Apprenticeships & Employer Policy Implement,Agency Staff Member,SCLAIM_39263,78.00,Staff Expenses Claim
BIS,Skills Funding Agency,10/09/2014,Other Travel,Funding & Programmes - Employer Ownership Programme,Agency Staff Member,SCLAIM_39225,6.40,Staff Expenses Claim
BIS,Skills Funding Agency,10/09/2014,Other Travel,Funding & Programmes - Funding Policy Implementation,Agency Staff Member,SCLAIM_39235,88.80,Staff Expenses Claim
BIS,Skills Funding Agency,10/09/2014,Other Travel,HR - Human Resources,Agency Staff Member,SCLAIM_39195,62.00,Staff Expenses Claim
BIS,Skills Funding Agency,10/09/2014,Other Travel,HR - Human Resources,Agency Staff Member,SCLAIM_39269,47.70,Staff Expenses Claim
BIS,Skills Funding Agency,10/09/2014,Other Travel,Internal Audit,Agency Staff Member,SCLAIM_39228,4.80,Staff Expenses Claim
BIS,Skills Funding Agency,10/09/2014,Other Travel,Large Companies Unit,Agency Staff Member,SCLAIM_39203,2.00,Staff Expenses Claim
BIS,Skills Funding Agency,10/09/2014,Other Travel,Large Companies Unit,Agency Staff Member,SCLAIM_39206,11.40,Staff Expenses Claim
BIS,Skills Funding Agency,10/09/2014,Other Travel,Large Companies Unit,Agency Staff Member,SCLAIM_39211,12.20,Staff Expenses Claim
BIS,Skills Funding Agency,10/09/2014,Other Travel,Large Companies Unit,Agency Staff Member,SCLAIM_39229,17.70,Staff Expenses Claim
BIS,Skills Funding Agency,10/09/2014,Other Travel,Large Companies Unit,Agency Staff Member,SCLAIM_39242,79.00,Staff Expenses Claim
BIS,Skills Funding Agency,10/09/2014,Other Travel,Large Companies Unit,Agency Staff Member,SCLAIM_39247,7.00,Staff Expenses Claim
BIS,Skills Funding Agency,10/09/2014,Other Travel,Large Companies Unit,Agency Staff Member,SCLAIM_39248,33.65,Staff Expenses Claim
BIS,Skills Funding Agency,10/09/2014,Other Travel,Large Companies Unit,Agency Staff Member,SCLAIM_39266,42.00,Staff Expenses Claim
BIS,Skills Funding Agency,10/09/2014,Other Travel,National Careers & Learner Services,Agency Staff Member,SCLAIM_39240,2.60,Staff Expenses Claim
BIS,Skills Funding Agency,10/09/2014,Other Travel,Northern Division,Agency Staff Member,SCLAIM_39222,12.20,Staff Expenses Claim
BIS,Skills Funding Agency,10/09/2014,Other Travel,Operations ICT - Citizen Digital Service,Agency Staff Member,SCLAIM_39218,18.00,Staff Expenses Claim
BIS,Skills Funding Agency,10/09/2014,Other Travel,Operations ICT - Citizen Digital Service,Agency Staff Member,SCLAIM_39232,10.50,Staff Expenses Claim
BIS,Skills Funding Agency,10/09/2014,Other Travel,Provider Financial Management & Assurance,Agency Staff Member,SCLAIM_39204,5.50,Staff Expenses Claim
BIS,Skills Funding Agency,10/09/2014,Other Travel,Provider Financial Management & Assurance,Agency Staff Member,SCLAIM_39243,18.00,Staff Expenses Claim
BIS,Skills Funding Agency,10/09/2014,Other Travel,Provider Financial Management & Assurance,Agency Staff Member,SCLAIM_39253,9.00,Staff Expenses Claim
BIS,Skills Funding Agency,10/09/2014,Other Travel,Relationship Team - South,Agency Staff Member,SCLAIM_39267,24.50,Staff Expenses Claim
BIS,Skills Funding Agency,10/09/2014,Other Travel,Southern Division,Agency Staff Member,SCLAIM_39238,20.60,Staff Expenses Claim
BIS,Skills Funding Agency,10/09/2014,Petrol Car Mileage Passenger Supplement,Large Companies Unit,Agency Staff Member,SCLAIM_39242,9.20,Staff Expenses Claim
BIS,Skills Funding Agency,10/09/2014,Petrol Car Mileage,Central Delivery Service - Birmingham,Agency Staff Member,SCLAIM_39252,157.50,Staff Expenses Claim
BIS,Skills Funding Agency,10/09/2014,Petrol Car Mileage,Central Delivery Service - European Social Fund - Audit Compliance,Agency Staff Member,SCLAIM_39257,198.00,Staff Expenses Claim
BIS,Skills Funding Agency,10/09/2014,Petrol Car Mileage,Central Delivery Service - European Social Fund - Audit Compliance,Agency Staff Member,SCLAIM_39260,306.00,Staff Expenses Claim
BIS,Skills Funding Agency,10/09/2014,Petrol Car Mileage,Central Delivery Service - European Social Fund - Audit Compliance,Agency Staff Member,SCLAIM_39270,48.60,Staff Expenses Claim
BIS,Skills Funding Agency,10/09/2014,Petrol Car Mileage,Central Delivery Service - London,Agency Staff Member,SCLAIM_39216,95.40,Staff Expenses Claim
BIS,Skills Funding Agency,10/09/2014,Petrol Car Mileage,Central Division,Agency Staff Member,SCLAIM_39237,387.00,Staff Expenses Claim
BIS,Skills Funding Agency,10/09/2014,Petrol Car Mileage,Chief Executive Office - Marketing  ,Agency Staff Member,SCLAIM_39215,28.80,Staff Expenses Claim
BIS,Skills Funding Agency,10/09/2014,Petrol Car Mileage,Chief Executive Office - Marketing  ,Agency Staff Member,SCLAIM_39246,175.50,Staff Expenses Claim
BIS,Skills Funding Agency,10/09/2014,Petrol Car Mileage,Employer & Provider Services North East & Yorkshire,Agency Staff Member,SCLAIM_39255,259.20,Staff Expenses Claim
BIS,Skills Funding Agency,10/09/2014,Petrol Car Mileage,Employer & Provider Services North West,Agency Staff Member,SCLAIM_39230,60.30,Staff Expenses Claim
BIS,Skills Funding Agency,10/09/2014,Petrol Car Mileage,Employer & Provider Services South East,Agency Staff Member,SCLAIM_39209,67.50,Staff Expenses Claim
BIS,Skills Funding Agency,10/09/2014,Petrol Car Mileage,Employer & Provider Services South East,Agency Staff Member,SCLAIM_39210,159.30,Staff Expenses Claim
BIS,Skills Funding Agency,10/09/2014,Petrol Car Mileage,Funding & Programmes - Funding Policy Implementation,Agency Staff Member,SCLAIM_39234,478.80,Staff Expenses Claim
BIS,Skills Funding Agency,10/09/2014,Petrol Car Mileage,Funding & Programmes - Funding Policy Implementation,Agency Staff Member,SCLAIM_39235,394.20,Staff Expenses Claim
BIS,Skills Funding Agency,10/09/2014,Petrol Car Mileage,HR - Human Resources,Agency Staff Member,SCLAIM_39250,441.00,Staff Expenses Claim
BIS,Skills Funding Agency,10/09/2014,Petrol Car Mileage,Large Companies Unit,Agency Staff Member,SCLAIM_39211,89.10,Staff Expenses Claim
BIS,Skills Funding Agency,10/09/2014,Petrol Car Mileage,Large Companies Unit,Agency Staff Member,SCLAIM_39226,308.70,Staff Expenses Claim
BIS,Skills Funding Agency,10/09/2014,Petrol Car Mileage,Large Companies Unit,Agency Staff Member,SCLAIM_39242,254.70,Staff Expenses Claim
BIS,Skills Funding Agency,10/09/2014,Petrol Car Mileage,Large Companies Unit,Agency Staff Member,SCLAIM_39247,239.40,Staff Expenses Claim
BIS,Skills Funding Agency,10/09/2014,Petrol Car Mileage,National Careers & Learner Services,Agency Staff Member,SCLAIM_39155,93.60,Staff Expenses Claim
BIS,Skills Funding Agency,10/09/2014,Petrol Car Mileage,National Careers & Learner Services,Agency Staff Member,SCLAIM_39240,22.50,Staff Expenses Claim
BIS,Skills Funding Agency,10/09/2014,Petrol Car Mileage,Northern Division,Agency Staff Member,SCLAIM_39193,227.70,Staff Expenses Claim
BIS,Skills Funding Agency,10/09/2014,Petrol Car Mileage,Operations ICT - Information & Communication Technology - Digital,Agency Staff Member,SCLAIM_39218,72.00,Staff Expenses Claim
BIS,Skills Funding Agency,10/09/2014,Petrol Car Mileage,Provider Financial Management & Assurance,Agency Staff Member,SCLAIM_39207,221.40,Staff Expenses Claim
BIS,Skills Funding Agency,10/09/2014,Petrol Car Mileage,Relationship Team - North,Agency Staff Member,SCLAIM_39249,30.60,Staff Expenses Claim
BIS,Skills Funding Agency,10/09/2014,Petrol Car Mileage,Relationship Team - South,Agency Staff Member,SCLAIM_39267,166.50,Staff Expenses Claim
BIS,Skills Funding Agency,10/09/2014,Professional Services - Single Assignments,Chief Information Officer Services - Enterprise Architecture,CAPGEMINI UK PLC,SPINVB_23462,"25,275.60",Purchase Invoice
BIS,Skills Funding Agency,10/09/2014,Professional Services,Operations ICT - Information & Communication Technology - Technical,CAPGEMINI UK PLC,SPINVB_23491,"18,444.00",Purchase Invoice
BIS,Skills Funding Agency,10/09/2014,Rail Warrants & Tickets,Central Delivery Service - European Social Fund - Audit Compliance,Agency Staff Member,SCLAIM_39199,4.40,Staff Expenses Claim
BIS,Skills Funding Agency,10/09/2014,Rail Warrants & Tickets,Chief Executive Office - Information Compliance & Security,Agency Staff Member,SCLAIM_39236,30.95,Staff Expenses Claim
BIS,Skills Funding Agency,10/09/2014,Rail Warrants & Tickets,Employer & Provider Services South East,Agency Staff Member,SCLAIM_39220,9.00,Staff Expenses Claim
BIS,Skills Funding Agency,10/09/2014,Rail Warrants & Tickets,Finance Division - Provider Financial Assurance Audit,Agency Staff Member,SCLAIM_39244,18.00,Staff Expenses Claim
BIS,Skills Funding Agency,10/09/2014,Rail Warrants & Tickets,Funding & Programmes - Funding Policy Implementation,Agency Staff Member,SCLAIM_39235,17.80,Staff Expenses Claim
BIS,Skills Funding Agency,10/09/2014,Rail Warrants & Tickets,HR - Human Resources,Agency Staff Member,SCLAIM_39250,9.25,Staff Expenses Claim
BIS,Skills Funding Agency,10/09/2014,Rail Warrants & Tickets,Large Companies Unit,Agency Staff Member,SCLAIM_39206,37.50,Staff Expenses Claim
BIS,Skills Funding Agency,10/09/2014,Rail Warrants & Tickets,Provider Financial Management & Assurance,Agency Staff Member,SCLAIM_39243,4.40,Staff Expenses Claim
BIS,Skills Funding Agency,10/09/2014,Rail Warrants & Tickets,Relationship Team - South,Agency Staff Member,SCLAIM_39267,29.60,Staff Expenses Claim
BIS,Skills Funding Agency,10/09/2014,Self-Drive Car Hire,Central Delivery Service - European Social Fund - Audit Compliance,Agency Staff Member,SCLAIM_39200,60.39,Staff Expenses Claim
BIS,Skills Funding Agency,10/09/2014,Self-Drive Car Hire,Central Delivery Service - Leeds,Agency Staff Member,SCLAIM_39258,19.99,Staff Expenses Claim
BIS,Skills Funding Agency,10/09/2014,Self-Drive Car Hire,Internal Audit,Agency Staff Member,SCLAIM_39228,41.80,Staff Expenses Claim
BIS,Skills Funding Agency,10/09/2014,Self-Drive Car Hire,Large Companies Unit,Agency Staff Member,SCLAIM_39211,41.50,Staff Expenses Claim
BIS,Skills Funding Agency,10/09/2014,Self-Drive Car Hire,Large Companies Unit,Agency Staff Member,SCLAIM_39248,28.36,Staff Expenses Claim
BIS,Skills Funding Agency,10/09/2014,Self-Drive Car Hire,National Careers & Learner Services,Agency Staff Member,SCLAIM_39240,47.86,Staff Expenses Claim
BIS,Skills Funding Agency,10/09/2014,Self-Drive Car Hire,Provider Financial Management & Assurance,Agency Staff Member,SCLAIM_39243,48.75,Staff Expenses Claim
BIS,Skills Funding Agency,10/09/2014,Self-Drive Car Hire,Southern Division,Agency Staff Member,SCLAIM_39221,55.70,Staff Expenses Claim
BIS,Skills Funding Agency,10/09/2014,Software Maintenance & Repair,Operational Services - Service Management - Operate,CAPGEMINI UK PLC,SPINVB_23490,"296,267.94",Purchase Invoice
BIS,Skills Funding Agency,10/09/2014,Subsistence,Central Delivery Service - European Social Fund - Audit Compliance,Agency Staff Member,SCLAIM_39196,45.00,Staff Expenses Claim
BIS,Skills Funding Agency,10/09/2014,Subsistence,Central Delivery Service - European Social Fund - Audit Compliance,Agency Staff Member,SCLAIM_39257,10.00,Staff Expenses Claim
BIS,Skills Funding Agency,10/09/2014,Subsistence,Central Delivery Service - European Social Fund - Audit Compliance,Agency Staff Member,SCLAIM_39270,25.00,Staff Expenses Claim
BIS,Skills Funding Agency,10/09/2014,Subsistence,Central Delivery Service - Leeds,Agency Staff Member,SCLAIM_39245,25.00,Staff Expenses Claim
BIS,Skills Funding Agency,10/09/2014,Subsistence,Central Delivery Service - Manchester,Agency Staff Member,SCLAIM_39268,10.00,Staff Expenses Claim
BIS,Skills Funding Agency,10/09/2014,Subsistence,Chief Executive Office - Marketing  ,Agency Staff Member,SCLAIM_39246,50.00,Staff Expenses Claim
BIS,Skills Funding Agency,10/09/2014,Subsistence,Chief Executive Office - Media & Public Affairs,Agency Staff Member,SCLAIM_39037,20.00,Staff Expenses Claim
BIS,Skills Funding Agency,10/09/2014,Subsistence,Chief Executive Office - Media & Public Affairs,Agency Staff Member,SCLAIM_39265,175.00,Staff Expenses Claim
BIS,Skills Funding Agency,10/09/2014,Subsistence,Employer & Provider Services South East,Agency Staff Member,SCLAIM_39220,35.00,Staff Expenses Claim
BIS,Skills Funding Agency,10/09/2014,Subsistence,Funding & Programmes - Apprenticeships & Employer Policy Implement,Agency Staff Member,SCLAIM_39262,65.00,Staff Expenses Claim
BIS,Skills Funding Agency,10/09/2014,Subsistence,Funding & Programmes - Funding Policy Implementation,Agency Staff Member,SCLAIM_39235,110.00,Staff Expenses Claim
BIS,Skills Funding Agency,10/09/2014,Subsistence,HR - Human Resources,Agency Staff Member,SCLAIM_39269,100.00,Staff Expenses Claim
BIS,Skills Funding Agency,10/09/2014,Subsistence,Large Companies Unit,Agency Staff Member,SCLAIM_39248,10.00,Staff Expenses Claim
BIS,Skills Funding Agency,10/09/2014,Subsistence,Marketing & Communications,Agency Staff Member,SCLAIM_39264,10.00,Staff Expenses Claim
BIS,Skills Funding Agency,10/09/2014,Subsistence,National Careers & Learner Services,Agency Staff Member,SCLAIM_39217,25.00,Staff Expenses Claim
BIS,Skills Funding Agency,10/09/2014,Subsistence,Operations Finance - Financial Management,Agency Staff Member,SCLAIM_39223,17.84,Staff Expenses Claim
BIS,Skills Funding Agency,10/09/2014,Subsistence,Operations ICT - Citizen Digital Service,Agency Staff Member,SCLAIM_39218,10.00,Staff Expenses Claim
BIS,Skills Funding Agency,10/09/2014,Subsistence,Operations ICT - Citizen Digital Service,Agency Staff Member,SCLAIM_39232,25.00,Staff Expenses Claim
BIS,Skills Funding Agency,10/09/2014,Subsistence,Southern Division,Agency Staff Member,SCLAIM_39221,10.00,Staff Expenses Claim
BIS,Skills Funding Agency,10/09/2014,Sundry Items,Operations ICT - Citizen Digital Service,Agency Staff Member,SCLAIM_39218,4.40,Staff Expenses Claim
BIS,Skills Funding Agency,10/09/2014,Sundry Items,Operations ICT - Citizen Digital Service,Agency Staff Member,SCLAIM_39232,42.38,Staff Expenses Claim
BIS,Skills Funding Agency,10/09/2014,Support Services,Operations ICT - Information & Communication Technology - Technical,CSA WAVERLEY LIMITED,SPINVB_23391,"1,200.00",Purchase Invoice
BIS,Skills Funding Agency,10/09/2014,Support Services,Operations ICT - Technical Design Authority,CAPGEMINI UK PLC,SPINVB_23493,718.80,Purchase Invoice
BIS,Skills Funding Agency,10/09/2014,Taxis,Central Delivery Service - European Social Fund - Audit Compliance,Agency Staff Member,SCLAIM_39196,22.00,Staff Expenses Claim
BIS,Skills Funding Agency,10/09/2014,Taxis,Central Delivery Service - Leeds,Agency Staff Member,SCLAIM_39245,7.00,Staff Expenses Claim
BIS,Skills Funding Agency,10/09/2014,Taxis,Chief Executive Office - Media & Public Affairs,Agency Staff Member,SCLAIM_39265,12.00,Staff Expenses Claim
BIS,Skills Funding Agency,10/09/2014,Taxis,Employer & Provider Services South East,Agency Staff Member,SCLAIM_39220,42.40,Staff Expenses Claim
BIS,Skills Funding Agency,10/09/2014,Taxis,Funding & Programmes - Funding Policy Implementation,Agency Staff Member,SCLAIM_39235,4.80,Staff Expenses Claim
BIS,Skills Funding Agency,10/09/2014,Taxis,HR - Human Resources,Agency Staff Member,SCLAIM_39195,18.60,Staff Expenses Claim
BIS,Skills Funding Agency,10/09/2014,Taxis,Operations Finance - Financial Management,Agency Staff Member,SCLAIM_39223,4.00,Staff Expenses Claim
BIS,Skills Funding Agency,10/09/2014,Temporary Staff,HR - Human Resources,SF RECRUITMENT LTD,SPINVB_23312,932.40,Purchase Invoice
BIS,Skills Funding Agency,10/09/2014,Temporary Staff,Operations ICT - Project Delivery,BROOK STREET UK LTD,SPINVB_23589,411.84,Purchase Invoice
BIS,Skills Funding Agency,11/09/2014,16-18 Apprenticeship Grant for Employers,Main Funding,AVANTA ENTERPRISE LTD,NUPS14_31469,"-1,500.00",Programme Template
BIS,Skills Funding Agency,11/09/2014,16-18 Apprenticeship Grant for Employers,Main Funding,BE TOTALLY YOU,NUPS14_31490,"1,500.00",Programme Template
BIS,Skills Funding Agency,11/09/2014,16-18 Apprenticeship Grant for Employers,Main Funding,FOCUS TRAINING & DEVELOPMENT LTD,NUPS14_31573,"-13,500.00",Programme Template
BIS,Skills Funding Agency,11/09/2014,16-18 Apprenticeship Grant for Employers,Main Funding,HEREFORDSHIRE GROUP TRAINING ASSOCIATION LTD,NUPS14_31598,"-1,500.00",Programme Template
BIS,Skills Funding Agency,11/09/2014,16-18 Apprenticeship Grant for Employers,Main Funding,KIRKDALE INDUSTRIAL TRAINING SERVICES LTD,NUPS14_31649,"-3,000.00",Programme Template
BIS,Skills Funding Agency,11/09/2014,16-18 Apprenticeship Grant for Employers,Main Funding,LEARNING SKILLS PARTNERSHIP LIMITED,NUPS14_31673,"-1,500.00",Programme Template
BIS,Skills Funding Agency,11/09/2014,16-18 Apprenticeship Grant for Employers,Main Funding,METSKILL LTD,NUPS14_31800,"-1,500.00",Programme Template
BIS,Skills Funding Agency,11/09/2014,16-18 Apprenticeship Grant for Employers,Main Funding,PROFOUND SERVICES LTD,NUPS14_31742,"-1,500.00",Programme Template
BIS,Skills Funding Agency,11/09/2014,16-18 Apprenticeship Grant for Employers,Main Funding,REASEHEATH COLLEGE,NUPS14_32070,"-6,000.00",Programme Template
BIS,Skills Funding Agency,11/09/2014,16-18 Apprenticeship Grant for Employers,Main Funding,RUTLAND COUNTY COUNCIL,NUPS14_32285,"1,500.00",Programme Template
BIS,Skills Funding Agency,11/09/2014,16-18 Apprenticeship Grant for Employers,Main Funding,SOFTMIST LTD,NUPS14_31789,"-1,500.00",Programme Template
BIS,Skills Funding Agency,11/09/2014,16-18 Apprenticeship Grant for Employers,Main Funding,SOUTH TYNESIDE COUNCIL,NUPS14_32287,"-1,500.00",Programme Template
BIS,Skills Funding Agency,11/09/2014,16-18 Apprenticeship Grant for Employers,Main Funding,THE UNIVERSITY OF WEST LONDON,NUPS14_32149,"-1,500.00",Programme Template
BIS,Skills Funding Agency,11/09/2014,16-18 Apprenticeship Grant for Employers,Main Funding,UNIQUE TRAINING NORTH EAST LTD,NUPS14_31841,"1,500.00",Programme Template
BIS,Skills Funding Agency,11/09/2014,16-18 Apprenticeship Grant for Employers,Main Funding,WAKEFIELD COLLEGE,NUPS14_32171,"-4,500.00",Programme Template
BIS,Skills Funding Agency,11/09/2014,16-18 Apprenticeships - Non Centralised Contract Management,Main Funding,5 E LTD,NUPS14_35651,"2,514.00",Programme Template
BIS,Skills Funding Agency,11/09/2014,16-18 Apprenticeships - Non Centralised Contract Management,Main Funding,A4E LTD,NUPS14_35483,"15,374.00",Programme Template
BIS,Skills Funding Agency,11/09/2014,16-18 Apprenticeships - Non Centralised Contract Management,Main Funding,ABINGDON & WITNEY COLLEGE,NUPS14_35435,"21,673.00",Programme Template
BIS,Skills Funding Agency,11/09/2014,16-18 Apprenticeships - Non Centralised Contract Management,Main Funding,ACACIA TRAINING & DEVELOPMENT LTD,NUPS14_36211,"51,801.00",Programme Template
BIS,Skills Funding Agency,11/09/2014,16-18 Apprenticeships - Non Centralised Contract Management,Main Funding,ACACIA TRAINING LTD,NUPS14_35549,"10,228.00",Programme Template
BIS,Skills Funding Agency,11/09/2014,16-18 Apprenticeships - Non Centralised Contract Management,Main Funding,ACADEMIES ENTERPRISE,NUPS14_35637,"3,285.83",Programme Template
BIS,Skills Funding Agency,11/09/2014,16-18 Apprenticeships - Non Centralised Contract Management,Main Funding,ACADEMY EDUCATION LTD,NUPS14_36234,"46,361.00",Programme Template
BIS,Skills Funding Agency,11/09/2014,16-18 Apprenticeships - Non Centralised Contract Management,Main Funding,ACADEMY HAIR & BEAUTY LTD,NUPS14_36362,"26,456.99",Programme Template
BIS,Skills Funding Agency,11/09/2014,16-18 Apprenticeships - Non Centralised Contract Management,Main Funding,ACADEMY TRANSFORMATION TRUST,NUPS14_35624,"4,387.00",Programme Template
BIS,Skills Funding Agency,11/09/2014,16-18 Apprenticeships - Non Centralised Contract Management,Main Funding,ACCESS TO MUSIC LTD,NUPS14_35623,"4,565.00",Programme Template
BIS,Skills Funding Agency,11/09/2014,16-18 Apprenticeships - Non Centralised Contract Management,Main Funding,ACCESS TRAINING EAST MIDLANDS LTD,NUPS14_36254,"42,510.00",Programme Template
BIS,Skills Funding Agency,11/09/2014,16-18 Apprenticeships - Non Centralised Contract Management,Main Funding,ACCESS TRAINING LTD,NUPS14_36251,"43,467.00",Programme Template
BIS,Skills Funding Agency,11/09/2014,16-18 Apprenticeships - Non Centralised Contract Management,Main Funding,ACCRINGTON & ROSSENDALE COLLEGE,NUPS14_36101,"78,977.00",Programme Template
BIS,Skills Funding Agency,11/09/2014,16-18 Apprenticeships - Non Centralised Contract Management,Main Funding,ACHIEVEMENT TRAINING LIMITED,NUPS14_36327,"31,310.00",Programme Template
BIS,Skills Funding Agency,11/09/2014,16-18 Apprenticeships - Non Centralised Contract Management,Main Funding,AGE UK TRADING LTD,NUPS14_36032,"102,744.00",Programme Template
BIS,Skills Funding Agency,11/09/2014,16-18 Apprenticeships - Non Centralised Contract Management,Main Funding,AGILISYS ARCH LTD,NUPS14_36048,"96,293.80",Programme Template
BIS,Skills Funding Agency,11/09/2014,16-18 Apprenticeships - Non Centralised Contract Management,Main Funding,ALDER TRAINING LTD,NUPS14_36174,"58,312.00",Programme Template
BIS,Skills Funding Agency,11/09/2014,16-18 Apprenticeships - Non Centralised Contract Management,Main Funding,ALL TRADES TRAINING LIMITED,NUPS14_35683,"1,278.00",Programme Template
BIS,Skills Funding Agency,11/09/2014,16-18 Apprenticeships - Non Centralised Contract Management,Main Funding,ALLIANCE LEARNING LTD,NUPS14_36099,"80,126.00",Programme Template
BIS,Skills Funding Agency,11/09/2014,16-18 Apprenticeships - Non Centralised Contract Management,Main Funding,ALPHA BUILDING SERVICES ENGINEERING LTD,NUPS14_36179,"57,502.00",Programme Template
BIS,Skills Funding Agency,11/09/2014,16-18 Apprenticeships - Non Centralised Contract Management,Main Funding,ALT VALLEY COMMUNITY TRUST LTD,NUPS14_35460,"18,508.00",Programme Template
BIS,Skills Funding Agency,11/09/2014,16-18 Apprenticeships - Non Centralised Contract Management,Main Funding,AMERSHAM & WYCOMBE COLLEGE,NUPS14_35475,"17,241.00",Programme Template
BIS,Skills Funding Agency,11/09/2014,16-18 Apprenticeships - Non Centralised Contract Management,Main Funding,ANDERSON STOCKLEY ACCREDITED TRAINING LTD,NUPS14_35516,"12,715.91",Programme Template
BIS,Skills Funding Agency,11/09/2014,16-18 Apprenticeships - Non Centralised Contract Management,Main Funding,ANDREW COLLINGE TRAINING LTD,NUPS14_36198,"54,244.00",Programme Template
BIS,Skills Funding Agency,11/09/2014,16-18 Apprenticeships - Non Centralised Contract Management,Main Funding,ANNE CLARKE ASSOCIATES LTD,NUPS14_35502,"13,942.00",Programme Template
BIS,Skills Funding Agency,11/09/2014,16-18 Apprenticeships - Non Centralised Contract Management,Main Funding,APPRENTICE FUNDING ASSISTANT LTD,NUPS14_36044,"96,745.00",Programme Template
BIS,Skills Funding Agency,11/09/2014,16-18 Apprenticeships - Non Centralised Contract Management,Main Funding,APPRENTICE SCHOOL CHARITABLE TRUST,NUPS14_36300,"34,842.00",Programme Template
BIS,Skills Funding Agency,11/09/2014,16-18 Apprenticeships - Non Centralised Contract Management,Main Funding,APPRENTICESHIPS & TRAINING SERVICES CONSORTIUM LIMITED,NUPS14_36203,"53,433.52",Programme Template
BIS,Skills Funding Agency,11/09/2014,16-18 Apprenticeships - Non Centralised Contract Management,Main Funding,APPRIS CHARITY LIMITED,NUPS14_36097,"80,659.00",Programme Template
BIS,Skills Funding Agency,11/09/2014,16-18 Apprenticeships - Non Centralised Contract Management,Main Funding,ASHTON UNDER LYNE SIXTH FORM COLLEGE,NUPS14_35632,"3,580.00",Programme Template
BIS,Skills Funding Agency,11/09/2014,16-18 Apprenticeships - Non Centralised Contract Management,Main Funding,ASKHAM BRYAN COLLEGE,NUPS14_36170,"59,036.00",Programme Template
BIS,Skills Funding Agency,11/09/2014,16-18 Apprenticeships - Non Centralised Contract Management,Main Funding,ASPIRATION TRAINING LTD,NUPS14_36267,"39,286.00",Programme Template
BIS,Skills Funding Agency,11/09/2014,16-18 Apprenticeships - Non Centralised Contract Management,Main Funding,ASPIRE ACHIEVE ADVANCE LIMITED,NUPS14_35896,"502,697.68",Programme Template
BIS,Skills Funding Agency,11/09/2014,16-18 Apprenticeships - Non Centralised Contract Management,Main Funding,ASPIRE TRAINING TEAM,NUPS14_36296,"35,222.67",Programme Template
BIS,Skills Funding Agency,11/09/2014,16-18 Apprenticeships - Non Centralised Contract Management,Main Funding,ASSET TRAINING & CONSULTANCY LTD,NUPS14_36187,"56,130.00",Programme Template
BIS,Skills Funding Agency,11/09/2014,16-18 Apprenticeships - Non Centralised Contract Management,Main Funding,ASTUTE MINDS LTD,NUPS14_36200,"53,930.81",Programme Template
BIS,Skills Funding Agency,11/09/2014,16-18 Apprenticeships - Non Centralised Contract Management,Main Funding,ATG TRAINING,NUPS14_36197,"54,339.00",Programme Template
BIS,Skills Funding Agency,11/09/2014,16-18 Apprenticeships - Non Centralised Contract Management,Main Funding,AURELIA TRAINING LTD,NUPS14_35598,"6,022.00",Programme Template
BIS,Skills Funding Agency,11/09/2014,16-18 Apprenticeships - Non Centralised Contract Management,Main Funding,AVANT PARTNERSHIP LTD,NUPS14_36253,"42,897.00",Programme Template
BIS,Skills Funding Agency,11/09/2014,16-18 Apprenticeships - Non Centralised Contract Management,Main Funding,AVANTA ENTERPRISE LTD,NUPS14_36360,"27,057.63",Programme Template
BIS,Skills Funding Agency,11/09/2014,16-18 Apprenticeships - Non Centralised Contract Management,Main Funding,AWE PLC,NUPS14_35510,"13,273.00",Programme Template
BIS,Skills Funding Agency,11/09/2014,16-18 Apprenticeships - Non Centralised Contract Management,Main Funding,AXIA SOLUTIONS LTD,NUPS14_36363,"26,408.00",Programme Template
BIS,Skills Funding Agency,11/09/2014,16-18 Apprenticeships - Non Centralised Contract Management,Main Funding,AYLESBURY COLLEGE,NUPS14_36117,"72,917.00",Programme Template
BIS,Skills Funding Agency,11/09/2014,16-18 Apprenticeships - Non Centralised Contract Management,Main Funding,B SKILL LTD,NUPS14_35626,"4,252.22",Programme Template
BIS,Skills Funding Agency,11/09/2014,16-18 Apprenticeships - Non Centralised Contract Management,Main Funding,B2B ENGAGE LTD,NUPS14_36030,"103,277.00",Programme Template
BIS,Skills Funding Agency,11/09/2014,16-18 Apprenticeships - Non Centralised Contract Management,Main Funding,BABCOCK SKILLS DEVELOPMENT & TRAINING LTD,NUPS14_35990,"122,872.00",Programme Template
BIS,Skills Funding Agency,11/09/2014,16-18 Apprenticeships - Non Centralised Contract Management,Main Funding,BABCOCK TRAINING LTD,NUPS14_35888,"726,064.00",Programme Template
BIS,Skills Funding Agency,11/09/2014,16-18 Apprenticeships - Non Centralised Contract Management,Main Funding,BABINGTON BUSINESS COLLEGE LTD,NUPS14_35901,"358,572.78",Programme Template
BIS,Skills Funding Agency,11/09/2014,16-18 Apprenticeships - Non Centralised Contract Management,Main Funding,BAE SYSTEMS PLC,NUPS14_35956,"162,285.00",Programme Template
BIS,Skills Funding Agency,11/09/2014,16-18 Apprenticeships - Non Centralised Contract Management,Main Funding,BALTIC TRAINING SERVICES LTD,NUPS14_35924,"219,982.70",Programme Template
BIS,Skills Funding Agency,11/09/2014,16-18 Apprenticeships - Non Centralised Contract Management,Main Funding,BARCHESTER HEALTHCARE LTD,NUPS14_36133,"67,433.00",Programme Template
BIS,Skills Funding Agency,11/09/2014,16-18 Apprenticeships - Non Centralised Contract Management,Main Funding,BARFORD EDUCATION & TRAINING NORTH EAST LTD,NUPS14_35659,"2,286.00",Programme Template
BIS,Skills Funding Agency,11/09/2014,16-18 Apprenticeships - Non Centralised Contract Management,Main Funding,BARKING & DAGENHAM COLLEGE,NUPS14_36006,"114,162.00",Programme Template
BIS,Skills Funding Agency,11/09/2014,16-18 Apprenticeships - Non Centralised Contract Management,Main Funding,BARKING & DAGENHAM LONDON BOROUGH COUNCIL,NUPS14_35559,"9,181.00",Programme Template
BIS,Skills Funding Agency,11/09/2014,16-18 Apprenticeships - Non Centralised Contract Management,Main Funding,BARNARDOS,NUPS14_35467,"17,925.00",Programme Template
BIS,Skills Funding Agency,11/09/2014,16-18 Apprenticeships - Non Centralised Contract Management,Main Funding,BARNET AND SOUTHGATE COLLEGE,NUPS14_35473,"17,410.00",Programme Template
BIS,Skills Funding Agency,11/09/2014,16-18 Apprenticeships - Non Centralised Contract Management,Main Funding,BARNFIELD COLLEGE,NUPS14_36304,"34,412.00",Programme Template
BIS,Skills Funding Agency,11/09/2014,16-18 Apprenticeships - Non Centralised Contract Management,Main Funding,BARNSLEY COLLEGE,NUPS14_35929,"210,094.00",Programme Template
BIS,Skills Funding Agency,11/09/2014,16-18 Apprenticeships - Non Centralised Contract Management,Main Funding,BARROW IN FURNESS SIXTH FORM COLLEGE,NUPS14_35713,136.00,Programme Template
BIS,Skills Funding Agency,11/09/2014,16-18 Apprenticeships - Non Centralised Contract Management,Main Funding,BASINGSTOKE COLLEGE,NUPS14_36072,"86,616.00",Programme Template
BIS,Skills Funding Agency,11/09/2014,16-18 Apprenticeships - Non Centralised Contract Management,Main Funding,BASINGSTOKE YOUTH ACTION TRUST LTD,NUPS14_36303,"34,419.00",Programme Template
BIS,Skills Funding Agency,11/09/2014,16-18 Apprenticeships - Non Centralised Contract Management,Main Funding,BCTG LIMITED,NUPS14_35987,"124,764.42",Programme Template
BIS,Skills Funding Agency,11/09/2014,16-18 Apprenticeships - Non Centralised Contract Management,Main Funding,BE TOTALLY YOU,NUPS14_35595,"6,404.00",Programme Template
BIS,Skills Funding Agency,11/09/2014,16-18 Apprenticeships - Non Centralised Contract Management,Main Funding,BEDFORD COLLEGE,NUPS14_35934,"200,092.00",Programme Template
BIS,Skills Funding Agency,11/09/2014,16-18 Apprenticeships - Non Centralised Contract Management,Main Funding,BERKSHIRE COLLEGE OF AGRICULTURE,NUPS14_35634,"3,474.00",Programme Template
BIS,Skills Funding Agency,11/09/2014,16-18 Apprenticeships - Non Centralised Contract Management,Main Funding,BESTLAND SOLUTIONS LTD,NUPS14_36216,"50,409.33",Programme Template
BIS,Skills Funding Agency,11/09/2014,16-18 Apprenticeships - Non Centralised Contract Management,Main Funding,BEXHILL COLLEGE,NUPS14_35596,"6,173.00",Programme Template
BIS,Skills Funding Agency,11/09/2014,16-18 Apprenticeships - Non Centralised Contract Management,Main Funding,BEXLEY COLLEGE,NUPS14_36232,"46,637.00",Programme Template
BIS,Skills Funding Agency,11/09/2014,16-18 Apprenticeships - Non Centralised Contract Management,Main Funding,BEXLEY YOUTH TRAINING GROUP,NUPS14_36031,"102,923.00",Programme Template
BIS,Skills Funding Agency,11/09/2014,16-18 Apprenticeships - Non Centralised Contract Management,Main Funding,BHS LTD,NUPS14_35538,"11,286.00",Programme Template
BIS,Skills Funding Agency,11/09/2014,16-18 Apprenticeships - Non Centralised Contract Management,Main Funding,BICTON COLLEGE,NUPS14_36241,"45,353.00",Programme Template
BIS,Skills Funding Agency,11/09/2014,16-18 Apprenticeships - Non Centralised Contract Management,Main Funding,BIRMINGHAM ELECTRICAL TRAINING LTD,NUPS14_36293,"35,669.00",Programme Template
BIS,Skills Funding Agency,11/09/2014,16-18 Apprenticeships - Non Centralised Contract Management,Main Funding,BIRMINGHAM METROPOLITAN COLLEGE,NUPS14_35919,"261,834.00",Programme Template
BIS,Skills Funding Agency,11/09/2014,16-18 Apprenticeships - Non Centralised Contract Management,Main Funding,BISHOP AUCKLAND COLLEGE,NUPS14_36276,"37,654.00",Programme Template
BIS,Skills Funding Agency,11/09/2014,16-18 Apprenticeships - Non Centralised Contract Management,Main Funding,BISHOP BURTON COLLEGE,NUPS14_36212,"51,475.00",Programme Template
BIS,Skills Funding Agency,11/09/2014,16-18 Apprenticeships - Non Centralised Contract Management,Main Funding,BL TRAINING LTD,NUPS14_36026,"104,647.00",Programme Template
BIS,Skills Funding Agency,11/09/2014,16-18 Apprenticeships - Non Centralised Contract Management,Main Funding,BLACKBURN COLLEGE,NUPS14_36015,"109,553.00",Programme Template
BIS,Skills Funding Agency,11/09/2014,16-18 Apprenticeships - Non Centralised Contract Management,Main Funding,BLACKPOOL & FLYDE COLLEGE,NUPS14_36039,"99,542.00",Programme Template
BIS,Skills Funding Agency,11/09/2014,16-18 Apprenticeships - Non Centralised Contract Management,Main Funding,BLUE TRAINING UK LTD,NUPS14_35451,"19,477.00",Programme Template
BIS,Skills Funding Agency,11/09/2014,16-18 Apprenticeships - Non Centralised Contract Management,Main Funding,BOLTON COMMUNITY COLLEGE,NUPS14_36086,"84,138.00",Programme Template
BIS,Skills Funding Agency,11/09/2014,16-18 Apprenticeships - Non Centralised Contract Management,Main Funding,BOOTS OPTICANS PROFESSIONAL SERVICES LTD,NUPS14_35599,"5,884.00",Programme Template
BIS,Skills Funding Agency,11/09/2014,16-18 Apprenticeships - Non Centralised Contract Management,Main Funding,BOROUGH OF POOLE,NUPS14_35588,"6,856.00",Programme Template
BIS,Skills Funding Agency,11/09/2014,16-18 Apprenticeships - Non Centralised Contract Management,Main Funding,BOSCH AUTOMOTIVE SERVICE SOLUTIONS LTD,NUPS14_36164,"61,283.00",Programme Template
BIS,Skills Funding Agency,11/09/2014,16-18 Apprenticeships - Non Centralised Contract Management,Main Funding,BOSTON COLLEGE,NUPS14_36195,"54,695.00",Programme Template
BIS,Skills Funding Agency,11/09/2014,16-18 Apprenticeships - Non Centralised Contract Management,Main Funding,BOURNEMOUTH & POOLE COLLEGE,NUPS14_35918,"267,840.00",Programme Template
BIS,Skills Funding Agency,11/09/2014,16-18 Apprenticeships - Non Centralised Contract Management,Main Funding,BOURNVILLE COLLEGE OF HIGHER EDUCATION,NUPS14_36069,"88,416.00",Programme Template
BIS,Skills Funding Agency,11/09/2014,16-18 Apprenticeships - Non Centralised Contract Management,Main Funding,BPP HOLDINGS PLC,NUPS14_36084,"85,073.11",Programme Template
BIS,Skills Funding Agency,11/09/2014,16-18 Apprenticeships - Non Centralised Contract Management,Main Funding,BRACKNELL & WOKINGHAM COLLEGE,NUPS14_36169,"59,071.00",Programme Template
BIS,Skills Funding Agency,11/09/2014,16-18 Apprenticeships - Non Centralised Contract Management,Main Funding,BRADFORD CITY COUNCIL,NUPS14_35594,"6,530.08",Programme Template
BIS,Skills Funding Agency,11/09/2014,16-18 Apprenticeships - Non Centralised Contract Management,Main Funding,BRADFORD COLLEGE,NUPS14_35927,"211,149.00",Programme Template
BIS,Skills Funding Agency,11/09/2014,16-18 Apprenticeships - Non Centralised Contract Management,Main Funding,BRIDGWATER COLLEGE,NUPS14_35951,"171,899.00",Programme Template
BIS,Skills Funding Agency,11/09/2014,16-18 Apprenticeships - Non Centralised Contract Management,Main Funding,BRIGHT HORIZONS FAMILY SOLUTIONS LTD,NUPS14_35597,"6,049.51",Programme Template
BIS,Skills Funding Agency,11/09/2014,16-18 Apprenticeships - Non Centralised Contract Management,Main Funding,BRINSWORTH TRAINING LIMITED,NUPS14_36146,"64,164.00",Programme Template
BIS,Skills Funding Agency,11/09/2014,16-18 Apprenticeships - Non Centralised Contract Management,Main Funding,BRISTOL CITY COUNCIL,NUPS14_36152,"62,947.00",Programme Template
BIS,Skills Funding Agency,11/09/2014,16-18 Apprenticeships - Non Centralised Contract Management,Main Funding,BRITISH ARMY,NUPS14_35887,"998,177.00",Programme Template
BIS,Skills Funding Agency,11/09/2014,16-18 Apprenticeships - Non Centralised Contract Management,Main Funding,BRITISH GAS SERVICES LIMITED,NUPS14_36365,"26,062.00",Programme Template
BIS,Skills Funding Agency,11/09/2014,16-18 Apprenticeships - Non Centralised Contract Management,Main Funding,BRITISH NUCLEAR FUELS PLC,NUPS14_35464,"18,164.00",Programme Template
BIS,Skills Funding Agency,11/09/2014,16-18 Apprenticeships - Non Centralised Contract Management,Main Funding,BRITISH PRINTING INDUSTRIES FEDERATION LTD,NUPS14_36316,"32,739.00",Programme Template
BIS,Skills Funding Agency,11/09/2014,16-18 Apprenticeships - Non Centralised Contract Management,Main Funding,BRITISH TELECOM PLC,NUPS14_36050,"95,415.00",Programme Template
BIS,Skills Funding Agency,11/09/2014,16-18 Apprenticeships - Non Centralised Contract Management,Main Funding,BROADLAND DISTRICT COUNCIL,NUPS14_36173,"58,643.00",Programme Template
BIS,Skills Funding Agency,11/09/2014,16-18 Apprenticeships - Non Centralised Contract Management,Main Funding,BROCKENHURST COLLEGE,NUPS14_36353,"28,069.00",Programme Template
BIS,Skills Funding Agency,11/09/2014,16-18 Apprenticeships - Non Centralised Contract Management,Main Funding,BROMLEY COLLEGE OF FURTHER & HIGHER EDUCATION,NUPS14_36059,"92,796.00",Programme Template
BIS,Skills Funding Agency,11/09/2014,16-18 Apprenticeships - Non Centralised Contract Management,Main Funding,BROOKLANDS TECHNICAL COLLEGE,NUPS14_35916,"273,689.00",Programme Template
BIS,Skills Funding Agency,11/09/2014,16-18 Apprenticeships - Non Centralised Contract Management,Main Funding,BROOKSBY MELTON COLLEGE,NUPS14_36345,"28,705.00",Programme Template
BIS,Skills Funding Agency,11/09/2014,16-18 Apprenticeships - Non Centralised Contract Management,Main Funding,BUCKINGHAMSHIRE COUNTY COUNCIL,NUPS14_35469,"17,760.00",Programme Template
BIS,Skills Funding Agency,11/09/2014,16-18 Apprenticeships - Non Centralised Contract Management,Main Funding,BUILDING CRAFTS COLLEGE,NUPS14_35544,"10,766.00",Programme Template
BIS,Skills Funding Agency,11/09/2014,16-18 Apprenticeships - Non Centralised Contract Management,Main Funding,BUILDING ENGINEERING SERVICES TRAINING LTD,NUPS14_35991,"121,176.00",Programme Template
BIS,Skills Funding Agency,11/09/2014,16-18 Apprenticeships - Non Centralised Contract Management,Main Funding,BURNLEY COLLEGE,NUPS14_35997,"117,323.00",Programme Template
BIS,Skills Funding Agency,11/09/2014,16-18 Apprenticeships - Non Centralised Contract Management,Main Funding,BURTON & SOUTH DERBYSHIRE COLLEGE,NUPS14_36055,"94,241.00",Programme Template
BIS,Skills Funding Agency,11/09/2014,16-18 Apprenticeships - Non Centralised Contract Management,Main Funding,BURY COLLEGE,NUPS14_36027,"104,497.00",Programme Template
BIS,Skills Funding Agency,11/09/2014,16-18 Apprenticeships - Non Centralised Contract Management,Main Funding,BURY METRO BOROUGH COUNCIL,NUPS14_35714,118.00,Programme Template
BIS,Skills Funding Agency,11/09/2014,16-18 Apprenticeships - Non Centralised Contract Management,Main Funding,BUSINESS IMPACT UK LIMITED,NUPS14_35971,"143,303.02",Programme Template
BIS,Skills Funding Agency,11/09/2014,16-18 Apprenticeships - Non Centralised Contract Management,Main Funding,BUSINESS MANAGEMENT RESOURCES UK LTD,NUPS14_35567,"8,700.00",Programme Template
BIS,Skills Funding Agency,11/09/2014,16-18 Apprenticeships - Non Centralised Contract Management,Main Funding,BUSY BEES NURSERIES,NUPS14_36145,"64,727.00",Programme Template
BIS,Skills Funding Agency,11/09/2014,16-18 Apprenticeships - Non Centralised Contract Management,Main Funding,CABLECOM TRAINING LTD,NUPS14_35585,"6,965.00",Programme Template
BIS,Skills Funding Agency,11/09/2014,16-18 Apprenticeships - Non Centralised Contract Management,Main Funding,CADCENTRE UK LTD,NUPS14_35534,"11,396.00",Programme Template
BIS,Skills Funding Agency,11/09/2014,16-18 Apprenticeships - Non Centralised Contract Management,Main Funding,CALDERDALE COLLEGE,NUPS14_36104,"77,865.00",Programme Template
BIS,Skills Funding Agency,11/09/2014,16-18 Apprenticeships - Non Centralised Contract Management,Main Funding,CAMBRIDGE REGIONAL COLLEGE,NUPS14_35915,"277,775.72",Programme Template
BIS,Skills Funding Agency,11/09/2014,16-18 Apprenticeships - Non Centralised Contract Management,Main Funding,CAMBRIDGESHIRE COUNTY COUNCIL,NUPS14_35701,496.00,Programme Template
BIS,Skills Funding Agency,11/09/2014,16-18 Apprenticeships - Non Centralised Contract Management,Main Funding,CANTERBURY COLLEGE,NUPS14_36142,"65,038.00",Programme Template
BIS,Skills Funding Agency,11/09/2014,16-18 Apprenticeships - Non Centralised Contract Management,Main Funding,CAPEL MANOR COLLEGE,NUPS14_35445,"19,734.00",Programme Template
BIS,Skills Funding Agency,11/09/2014,16-18 Apprenticeships - Non Centralised Contract Management,Main Funding,CAPITA PLC,NUPS14_35546,"10,720.00",Programme Template
BIS,Skills Funding Agency,11/09/2014,16-18 Apprenticeships - Non Centralised Contract Management,Main Funding,CAPITAL ENGINEERING GROUP HOLDINGS LTD,NUPS14_36270,"38,395.00",Programme Template
BIS,Skills Funding Agency,11/09/2014,16-18 Apprenticeships - Non Centralised Contract Management,Main Funding,CARE LEARNING CENTRE ISLE OF WIGHT LTD,NUPS14_35536,"11,310.00",Programme Template
BIS,Skills Funding Agency,11/09/2014,16-18 Apprenticeships - Non Centralised Contract Management,Main Funding,CARE TRAINING EAST MIDLANDS LIMITED,NUPS14_36342,"29,386.52",Programme Template
BIS,Skills Funding Agency,11/09/2014,16-18 Apprenticeships - Non Centralised Contract Management,Main Funding,CAREER DEVELOPMENT CENTRE LTD,NUPS14_35532,"11,527.18",Programme Template
BIS,Skills Funding Agency,11/09/2014,16-18 Apprenticeships - Non Centralised Contract Management,Main Funding,CARILLION CONSTRUCTION LTD,NUPS14_35892,"527,053.00",Programme Template
BIS,Skills Funding Agency,11/09/2014,16-18 Apprenticeships - Non Centralised Contract Management,Main Funding,CARLISLE COLLEGE,NUPS14_36226,"48,865.00",Programme Template
BIS,Skills Funding Agency,11/09/2014,16-18 Apprenticeships - Non Centralised Contract Management,Main Funding,CARSHALTON COLLEGE,NUPS14_36156,"62,352.00",Programme Template
BIS,Skills Funding Agency,11/09/2014,16-18 Apprenticeships - Non Centralised Contract Management,Main Funding,CATCH 22 CHARITY LTD,NUPS14_35967,"151,500.74",Programme Template
BIS,Skills Funding Agency,11/09/2014,16-18 Apprenticeships - Non Centralised Contract Management,Main Funding,CENTRAL BEDFORDSHIRE COLLEGE,NUPS14_35462,"18,315.00",Programme Template
BIS,Skills Funding Agency,11/09/2014,16-18 Apprenticeships - Non Centralised Contract Management,Main Funding,CENTRAL BEDFORDSHIRE COUNCIL,NUPS14_35672,"1,703.00",Programme Template
BIS,Skills Funding Agency,11/09/2014,16-18 Apprenticeships - Non Centralised Contract Management,Main Funding,CENTRAL COLLEGE NOTTINGHAM,NUPS14_35942,"185,560.00",Programme Template
BIS,Skills Funding Agency,11/09/2014,16-18 Apprenticeships - Non Centralised Contract Management,Main Funding,CENTRAL SUSSEX COLLEGE,NUPS14_36046,"96,366.00",Programme Template
BIS,Skills Funding Agency,11/09/2014,16-18 Apprenticeships - Non Centralised Contract Management,Main Funding,CENTRAL TRAINING ACADEMY LTD,NUPS14_35941,"190,218.00",Programme Template
BIS,Skills Funding Agency,11/09/2014,16-18 Apprenticeships - Non Centralised Contract Management,Main Funding,CHAMBER TRAINING HUMBER LTD,NUPS14_36135,"66,697.00",Programme Template
BIS,Skills Funding Agency,11/09/2014,16-18 Apprenticeships - Non Centralised Contract Management,Main Funding,CHAPMAN BENNETT ASSOCIATES LIMITED,NUPS14_35459,"18,834.00",Programme Template
BIS,Skills Funding Agency,11/09/2014,16-18 Apprenticeships - Non Centralised Contract Management,Main Funding,CHARNWOOD TRAINING GROUP LTD,NUPS14_36088,"83,892.73",Programme Template
BIS,Skills Funding Agency,11/09/2014,16-18 Apprenticeships - Non Centralised Contract Management,Main Funding,CHEADLE & MARPLE SIXTH FORM COLLEGE,NUPS14_36328,"31,268.00",Programme Template
BIS,Skills Funding Agency,11/09/2014,16-18 Apprenticeships - Non Centralised Contract Management,Main Funding,CHELMSFORD COLLEGE,NUPS14_36249,"43,970.00",Programme Template
BIS,Skills Funding Agency,11/09/2014,16-18 Apprenticeships - Non Centralised Contract Management,Main Funding,CHESHIRE WEST & CHESTER COUNCIL,NUPS14_35678,"1,466.00",Programme Template
BIS,Skills Funding Agency,11/09/2014,16-18 Apprenticeships - Non Centralised Contract Management,Main Funding,CHESTERFIELD COLLEGE,NUPS14_35909,"306,319.00",Programme Template
BIS,Skills Funding Agency,11/09/2014,16-18 Apprenticeships - Non Centralised Contract Management,Main Funding,CHEYNES MANAGEMENT LTD,NUPS14_36057,"93,513.69",Programme Template
BIS,Skills Funding Agency,11/09/2014,16-18 Apprenticeships - Non Centralised Contract Management,Main Funding,CHICHESTER COLLEGE,NUPS14_35986,"126,374.00",Programme Template
BIS,Skills Funding Agency,11/09/2014,16-18 Apprenticeships - Non Centralised Contract Management,Main Funding,CHILDRENS LINKS,NUPS14_35568,"8,651.00",Programme Template
BIS,Skills Funding Agency,11/09/2014,16-18 Apprenticeships - Non Centralised Contract Management,Main Funding,CHILTERN TRAINING LTD,NUPS14_36024,"105,042.45",Programme Template
BIS,Skills Funding Agency,11/09/2014,16-18 Apprenticeships - Non Centralised Contract Management,Main Funding,CIRENCESTER TERTIARY COLLEGE,NUPS14_35443,"20,032.00",Programme Template
BIS,Skills Funding Agency,11/09/2014,16-18 Apprenticeships - Non Centralised Contract Management,Main Funding,CITB CONSTRUCTIONSKILLS,NUPS14_35884,"1,856,009.00",Programme Template
BIS,Skills Funding Agency,11/09/2014,16-18 Apprenticeships - Non Centralised Contract Management,Main Funding,CITROEN UK LTD,NUPS14_36199,"54,149.00",Programme Template
BIS,Skills Funding Agency,11/09/2014,16-18 Apprenticeships - Non Centralised Contract Management,Main Funding,CITY AND ISLINGTON COLLEGE,NUPS14_35537,"11,291.00",Programme Template
BIS,Skills Funding Agency,11/09/2014,16-18 Apprenticeships - Non Centralised Contract Management,Main Funding,CITY COLLEGE BRIGHTON & HOVE,NUPS14_36157,"62,299.00",Programme Template
BIS,Skills Funding Agency,11/09/2014,16-18 Apprenticeships - Non Centralised Contract Management,Main Funding,CITY COLLEGE COVENTRY,NUPS14_36064,"90,155.00",Programme Template
BIS,Skills Funding Agency,11/09/2014,16-18 Apprenticeships - Non Centralised Contract Management,Main Funding,CITY COLLEGE PLYMOUTH,NUPS14_35928,"210,792.00",Programme Template
BIS,Skills Funding Agency,11/09/2014,16-18 Apprenticeships - Non Centralised Contract Management,Main Funding,CITY GATEWAY LTD,NUPS14_36346,"28,540.00",Programme Template
BIS,Skills Funding Agency,11/09/2014,16-18 Apprenticeships - Non Centralised Contract Management,Main Funding,CITY LINK LIMITED,NUPS14_35704,392.00,Programme Template
BIS,Skills Funding Agency,11/09/2014,16-18 Apprenticeships - Non Centralised Contract Management,Main Funding,CITY OF BATH COLLEGE,NUPS14_36246,"44,456.00",Programme Template
BIS,Skills Funding Agency,11/09/2014,16-18 Apprenticeships - Non Centralised Contract Management,Main Funding,CITY OF BRISTOL COLLEGE,NUPS14_35914,"279,916.00",Programme Template
BIS,Skills Funding Agency,11/09/2014,16-18 Apprenticeships - Non Centralised Contract Management,Main Funding,CITY OF LONDON ADULT EDUCATION,NUPS14_35486,"15,235.00",Programme Template
BIS,Skills Funding Agency,11/09/2014,16-18 Apprenticeships - Non Centralised Contract Management,Main Funding,CITY OF SUNDERLAND COLLEGE,NUPS14_36190,"55,458.00",Programme Template
BIS,Skills Funding Agency,11/09/2014,16-18 Apprenticeships - Non Centralised Contract Management,Main Funding,CITY OF WESTMINSTER COLLEGE,NUPS14_35472,"17,470.00",Programme Template
BIS,Skills Funding Agency,11/09/2014,16-18 Apprenticeships - Non Centralised Contract Management,Main Funding,CITY OF WOLVERHAMPTON COLLEGE,NUPS14_35975,"139,139.00",Programme Template
BIS,Skills Funding Agency,11/09/2014,16-18 Apprenticeships - Non Centralised Contract Management,Main Funding,CITY OF YORK COUNCIL,NUPS14_35557,"9,396.00",Programme Template
BIS,Skills Funding Agency,11/09/2014,16-18 Apprenticeships - Non Centralised Contract Management,Main Funding,CLARKSON EVANS TRAINING LIMITED,NUPS14_36347,"28,527.00",Programme Template
BIS,Skills Funding Agency,11/09/2014,16-18 Apprenticeships - Non Centralised Contract Management,Main Funding,CLEVELAND YOUTH ASSOCIATION,NUPS14_35438,"21,261.00",Programme Template
BIS,Skills Funding Agency,11/09/2014,16-18 Apprenticeships - Non Centralised Contract Management,Main Funding,COLCHESTER INSTITUTE,NUPS14_35923,"224,160.00",Programme Template
BIS,Skills Funding Agency,11/09/2014,16-18 Apprenticeships - Non Centralised Contract Management,Main Funding,COLLEGE OF ANIMAL WELFARE LTD,NUPS14_35474,"17,349.00",Programme Template
BIS,Skills Funding Agency,11/09/2014,16-18 Apprenticeships - Non Centralised Contract Management,Main Funding,COLLEGE OF NORTH EAST LONDON,NUPS14_36172,"58,741.00",Programme Template
BIS,Skills Funding Agency,11/09/2014,16-18 Apprenticeships - Non Centralised Contract Management,Main Funding,COLLEGE OF NORTH WEST LONDON,NUPS14_36354,"28,045.00",Programme Template
BIS,Skills Funding Agency,11/09/2014,16-18 Apprenticeships - Non Centralised Contract Management,Main Funding,COLLEGE OF RICHARD COLLYER,NUPS14_35633,"3,484.00",Programme Template
BIS,Skills Funding Agency,11/09/2014,16-18 Apprenticeships - Non Centralised Contract Management,Main Funding,COLLEGE OF WEST ANGLIA,NUPS14_35969,"147,425.00",Programme Template
BIS,Skills Funding Agency,11/09/2014,16-18 Apprenticeships - Non Centralised Contract Management,Main Funding,COMMUNITY SKILLS DEVELOPMENT AGENCY LTD,NUPS14_36271,"38,356.57",Programme Template
BIS,Skills Funding Agency,11/09/2014,16-18 Apprenticeships - Non Centralised Contract Management,Main Funding,COMMUNITY TRAINING SERVICES LTD,NUPS14_36248,"44,175.01",Programme Template
BIS,Skills Funding Agency,11/09/2014,16-18 Apprenticeships - Non Centralised Contract Management,Main Funding,COMPASS GROUP UK & IRELAND LTD,NUPS14_35579,"7,751.00",Programme Template
BIS,Skills Funding Agency,11/09/2014,16-18 Apprenticeships - Non Centralised Contract Management,Main Funding,CONSORTIA TRAINING LIMITED,NUPS14_36191,"55,421.00",Programme Template
BIS,Skills Funding Agency,11/09/2014,16-18 Apprenticeships - Non Centralised Contract Management,Main Funding,CORNWALL COLLEGE,NUPS14_35910,"306,052.00",Programme Template
BIS,Skills Funding Agency,11/09/2014,16-18 Apprenticeships - Non Centralised Contract Management,Main Funding,COVENTRY & WARWICKSHIRE CHAMBERS OF COMMERCE TRAINING LIMITED,NUPS14_36068,"88,435.00",Programme Template
BIS,Skills Funding Agency,11/09/2014,16-18 Apprenticeships - Non Centralised Contract Management,Main Funding,COVET LTD,NUPS14_35436,"21,345.00",Programme Template
BIS,Skills Funding Agency,11/09/2014,16-18 Apprenticeships - Non Centralised Contract Management,Main Funding,CRACKERJACK TRAINING LTD,NUPS14_36115,"73,331.00",Programme Template
BIS,Skills Funding Agency,11/09/2014,16-18 Apprenticeships - Non Centralised Contract Management,Main Funding,CRAVEN COLLEGE,NUPS14_35999,"116,426.00",Programme Template
BIS,Skills Funding Agency,11/09/2014,16-18 Apprenticeships - Non Centralised Contract Management,Main Funding,CREATIVE PROCESS,NUPS14_36291,"35,904.00",Programme Template
BIS,Skills Funding Agency,11/09/2014,16-18 Apprenticeships - Non Centralised Contract Management,Main Funding,CROYDON COLLEGE,NUPS14_36260,"41,981.00",Programme Template
BIS,Skills Funding Agency,11/09/2014,16-18 Apprenticeships - Non Centralised Contract Management,Main Funding,CSM CONSULTING LTD,NUPS14_35700,507.00,Programme Template
BIS,Skills Funding Agency,11/09/2014,16-18 Apprenticeships - Non Centralised Contract Management,Main Funding,CUMBRIA COUNTY COUNCIL,NUPS14_35645,"2,765.00",Programme Template
BIS,Skills Funding Agency,11/09/2014,16-18 Apprenticeships - Non Centralised Contract Management,Main Funding,D M T BUSINESS SERVICES LTD,NUPS14_36245,"44,516.00",Programme Template
BIS,Skills Funding Agency,11/09/2014,16-18 Apprenticeships - Non Centralised Contract Management,Main Funding,DAMAR LTD,NUPS14_36132,"67,488.00",Programme Template
BIS,Skills Funding Agency,11/09/2014,16-18 Apprenticeships - Non Centralised Contract Management,Main Funding,DARLINGTON BOROUGH COUNCIL,NUPS14_35477,"16,724.00",Programme Template
BIS,Skills Funding Agency,11/09/2014,16-18 Apprenticeships - Non Centralised Contract Management,Main Funding,DARLINGTON COLLEGE,NUPS14_36000,"116,146.00",Programme Template
BIS,Skills Funding Agency,11/09/2014,16-18 Apprenticeships - Non Centralised Contract Management,Main Funding,DART LTD,NUPS14_36193,"55,143.00",Programme Template
BIS,Skills Funding Agency,11/09/2014,16-18 Apprenticeships - Non Centralised Contract Management,Main Funding,DAVIDSON TRAINING UK LIMITED,NUPS14_35519,"12,377.00",Programme Template
BIS,Skills Funding Agency,11/09/2014,16-18 Apprenticeships - Non Centralised Contract Management,Main Funding,DAWN HODGE ASSOCIATES LTD,NUPS14_35431,"22,223.00",Programme Template
BIS,Skills Funding Agency,11/09/2014,16-18 Apprenticeships - Non Centralised Contract Management,Main Funding,DEARNE VALLEY COLLEGE,NUPS14_36320,"32,271.00",Programme Template
BIS,Skills Funding Agency,11/09/2014,16-18 Apprenticeships - Non Centralised Contract Management,Main Funding,DERBY BUSINESS COLLEGE,NUPS14_35652,"2,511.00",Programme Template
BIS,Skills Funding Agency,11/09/2014,16-18 Apprenticeships - Non Centralised Contract Management,Main Funding,DERBY CITY COUNCIL,NUPS14_35471,"17,556.87",Programme Template
BIS,Skills Funding Agency,11/09/2014,16-18 Apprenticeships - Non Centralised Contract Management,Main Funding,DERBY COLLEGE,NUPS14_35945,"181,166.00",Programme Template
BIS,Skills Funding Agency,11/09/2014,16-18 Apprenticeships - Non Centralised Contract Management,Main Funding,DERBYSHIRE & NOTTINGHAMSHIRE CHAMBER OF COMMERCE & INDUSTRY,NUPS14_36208,"52,606.00",Programme Template
BIS,Skills Funding Agency,11/09/2014,16-18 Apprenticeships - Non Centralised Contract Management,Main Funding,DERBYSHIRE COUNTY COUNCIL,NUPS14_35664,"2,112.00",Programme Template
BIS,Skills Funding Agency,11/09/2014,16-18 Apprenticeships - Non Centralised Contract Management,Main Funding,DERBYSHIRE NETWORK,NUPS14_36314,"33,220.00",Programme Template
BIS,Skills Funding Agency,11/09/2014,16-18 Apprenticeships - Non Centralised Contract Management,Main Funding,DERWEN COLLEGE,NUPS14_35681,"1,346.00",Programme Template
BIS,Skills Funding Agency,11/09/2014,16-18 Apprenticeships - Non Centralised Contract Management,Main Funding,DERWENTSIDE COLLEGE,NUPS14_36053,"94,408.00",Programme Template
BIS,Skills Funding Agency,11/09/2014,16-18 Apprenticeships - Non Centralised Contract Management,Main Funding,DEVON COUNTY COUNCIL,NUPS14_35709,287.00,Programme Template
BIS,Skills Funding Agency,11/09/2014,16-18 Apprenticeships - Non Centralised Contract Management,Main Funding,DHL INTERNATIONAL UK LTD,NUPS14_35586,"6,907.52",Programme Template
BIS,Skills Funding Agency,11/09/2014,16-18 Apprenticeships - Non Centralised Contract Management,Main Funding,DIDAC LTD,NUPS14_35440,"20,890.64",Programme Template
BIS,Skills Funding Agency,11/09/2014,16-18 Apprenticeships - Non Centralised Contract Management,Main Funding,DIMENSIONS TRAINING SOLUTIONS LTD,NUPS14_36168,"59,754.00",Programme Template
BIS,Skills Funding Agency,11/09/2014,16-18 Apprenticeships - Non Centralised Contract Management,Main Funding,DONCASTER COLLEGE,NUPS14_36028,"104,029.00",Programme Template
BIS,Skills Funding Agency,11/09/2014,16-18 Apprenticeships - Non Centralised Contract Management,Main Funding,DONCASTER METRO BOROUGH COUNCIL,NUPS14_35497,"14,223.00",Programme Template
BIS,Skills Funding Agency,11/09/2014,16-18 Apprenticeships - Non Centralised Contract Management,Main Funding,DONCASTER ROTHERHAM & DISTRICT MOTOR TRADES GROUP TRAINING ASSOCIATION LTD,NUPS14_36141,"65,119.00",Programme Template
BIS,Skills Funding Agency,11/09/2014,16-18 Apprenticeships - Non Centralised Contract Management,Main Funding,DOOSAN BABCOCK LTD,NUPS14_35996,"118,922.00",Programme Template
BIS,Skills Funding Agency,11/09/2014,16-18 Apprenticeships - Non Centralised Contract Management,Main Funding,DUDLEY COLLEGE OF TECHNOLOGY,NUPS14_35913,"280,564.00",Programme Template
BIS,Skills Funding Agency,11/09/2014,16-18 Apprenticeships - Non Centralised Contract Management,Main Funding,DURHAM COUNTY COUNCIL,NUPS14_35654,"2,334.00",Programme Template
BIS,Skills Funding Agency,11/09/2014,16-18 Apprenticeships - Non Centralised Contract Management,Main Funding,E TRAINING LTD,NUPS14_35554,"9,894.14",Programme Template
BIS,Skills Funding Agency,11/09/2014,16-18 Apprenticeships - Non Centralised Contract Management,Main Funding,EALING HAMMERSMITH & WEST LONDON COLLEGE,NUPS14_35496,"14,303.00",Programme Template
BIS,Skills Funding Agency,11/09/2014,16-18 Apprenticeships - Non Centralised Contract Management,Main Funding,EAST BERKSHIRE COLLEGE,NUPS14_36220,"49,914.00",Programme Template
BIS,Skills Funding Agency,11/09/2014,16-18 Apprenticeships - Non Centralised Contract Management,Main Funding,EAST DURHAM COLLEGE,NUPS14_36244,"44,719.00",Programme Template
BIS,Skills Funding Agency,11/09/2014,16-18 Apprenticeships - Non Centralised Contract Management,Main Funding,EAST LINDSEY INFORMATION TECHNOLOGY CENTRE,NUPS14_36287,"36,348.00",Programme Template
BIS,Skills Funding Agency,11/09/2014,16-18 Apprenticeships - Non Centralised Contract Management,Main Funding,EAST RIDING COLLEGE,NUPS14_36312,"33,231.00",Programme Template
BIS,Skills Funding Agency,11/09/2014,16-18 Apprenticeships - Non Centralised Contract Management,Main Funding,EAST RIDING OF YORKSHIRE COUNCIL,NUPS14_35573,"8,187.00",Programme Template
BIS,Skills Funding Agency,11/09/2014,16-18 Apprenticeships - Non Centralised Contract Management,Main Funding,EAST SURREY COLLEGE,NUPS14_36357,"27,467.00",Programme Template
BIS,Skills Funding Agency,11/09/2014,16-18 Apprenticeships - Non Centralised Contract Management,Main Funding,EASTLEIGH COLLEGE,NUPS14_36021,"107,430.00",Programme Template
BIS,Skills Funding Agency,11/09/2014,16-18 Apprenticeships - Non Centralised Contract Management,Main Funding,EASTON & OTLEY COLLEGE,NUPS14_36105,"76,514.00",Programme Template
BIS,Skills Funding Agency,11/09/2014,16-18 Apprenticeships - Non Centralised Contract Management,Main Funding,ECONOMIC SOLUTIONS LTD,NUPS14_35891,"542,735.00",Programme Template
BIS,Skills Funding Agency,11/09/2014,16-18 Apprenticeships - Non Centralised Contract Management,Main Funding,EDEN TRAINING SOLUTIONS LTD,NUPS14_36348,"28,443.61",Programme Template
BIS,Skills Funding Agency,11/09/2014,16-18 Apprenticeships - Non Centralised Contract Management,Main Funding,EDUCATION & TRAINING SKILLS LTD,NUPS14_35540,"11,024.00",Programme Template
BIS,Skills Funding Agency,11/09/2014,16-18 Apprenticeships - Non Centralised Contract Management,Main Funding,EDUCATION & YOUTH SERVICES LTD,NUPS14_35434,"21,785.22",Programme Template
BIS,Skills Funding Agency,11/09/2014,16-18 Apprenticeships - Non Centralised Contract Management,Main Funding,EEF LTD,NUPS14_36087,"83,997.00",Programme Template
BIS,Skills Funding Agency,11/09/2014,16-18 Apprenticeships - Non Centralised Contract Management,Main Funding,ELATT,NUPS14_35649,"2,643.00",Programme Template
BIS,Skills Funding Agency,11/09/2014,16-18 Apprenticeships - Non Centralised Contract Management,Main Funding,ENFIELD LONDON BOROUGH COUNCIL,NUPS14_35470,"17,642.00",Programme Template
BIS,Skills Funding Agency,11/09/2014,16-18 Apprenticeships - Non Centralised Contract Management,Main Funding,ENGLAND & WALES CRICKET BOARD LTD,NUPS14_36336,"30,497.00",Programme Template
BIS,Skills Funding Agency,11/09/2014,16-18 Apprenticeships - Non Centralised Contract Management,Main Funding,ENLIGHTENMENT PARTNERSHIP LIMITED,NUPS14_36333,"30,824.00",Programme Template
BIS,Skills Funding Agency,11/09/2014,16-18 Apprenticeships - Non Centralised Contract Management,Main Funding,EON UK PLC,NUPS14_35525,"12,039.00",Programme Template
BIS,Skills Funding Agency,11/09/2014,16-18 Apprenticeships - Non Centralised Contract Management,Main Funding,EPPING FOREST COLLEGE,NUPS14_36382,"23,234.00",Programme Template
BIS,Skills Funding Agency,11/09/2014,16-18 Apprenticeships - Non Centralised Contract Management,Main Funding,EQL SOLUTIONS LTD,NUPS14_35965,"152,000.00",Programme Template
BIS,Skills Funding Agency,11/09/2014,16-18 Apprenticeships - Non Centralised Contract Management,Main Funding,ESG (SKILLS) LIMITED,NUPS14_35899,"402,948.50",Programme Template
BIS,Skills Funding Agency,11/09/2014,16-18 Apprenticeships - Non Centralised Contract Management,Main Funding,ESSEX COUNTY COUNCIL,NUPS14_35572,"8,225.00",Programme Template
BIS,Skills Funding Agency,11/09/2014,16-18 Apprenticeships - Non Centralised Contract Management,Main Funding,EXEMPLAS HOLDINGS LTD,NUPS14_36074,"86,393.00",Programme Template
BIS,Skills Funding Agency,11/09/2014,16-18 Apprenticeships - Non Centralised Contract Management,Main Funding,EXETER COLLEGE,NUPS14_35957,"161,713.00",Programme Template
BIS,Skills Funding Agency,11/09/2014,16-18 Apprenticeships - Non Centralised Contract Management,Main Funding,EXG LTD,NUPS14_35592,"6,629.00",Programme Template
BIS,Skills Funding Agency,11/09/2014,16-18 Apprenticeships - Non Centralised Contract Management,Main Funding,FAREHAM COLLEGE,NUPS14_36166,"60,845.00",Programme Template
BIS,Skills Funding Agency,11/09/2014,16-18 Apprenticeships - Non Centralised Contract Management,Main Funding,FAREPORT TRAINING ORGANISATION LTD,NUPS14_36233,"46,365.00",Programme Template
BIS,Skills Funding Agency,11/09/2014,16-18 Apprenticeships - Non Centralised Contract Management,Main Funding,FARNBOROUGH COLLEGE,NUPS14_36077,"85,996.00",Programme Template
BIS,Skills Funding Agency,11/09/2014,16-18 Apprenticeships - Non Centralised Contract Management,Main Funding,FASHION RETAIL ACADEMY,NUPS14_35653,"2,421.00",Programme Template
BIS,Skills Funding Agency,11/09/2014,16-18 Apprenticeships - Non Centralised Contract Management,Main Funding,FINMECCANICA UK LTD,NUPS14_36373,"25,060.00",Programme Template
BIS,Skills Funding Agency,11/09/2014,16-18 Apprenticeships - Non Centralised Contract Management,Main Funding,FINNING (UK) LTD,NUPS14_35458,"18,946.00",Programme Template
BIS,Skills Funding Agency,11/09/2014,16-18 Apprenticeships - Non Centralised Contract Management,Main Funding,FIRST CITY TRAINING LTD,NUPS14_35669,"1,850.00",Programme Template
BIS,Skills Funding Agency,11/09/2014,16-18 Apprenticeships - Non Centralised Contract Management,Main Funding,FIRST4SKILLS LIMITED,NUPS14_35900,"389,196.00",Programme Template
BIS,Skills Funding Agency,11/09/2014,16-18 Apprenticeships - Non Centralised Contract Management,Main Funding,FNTC TRAINING & CONSULTANCY LTD,NUPS14_36259,"42,079.00",Programme Template
BIS,Skills Funding Agency,11/09/2014,16-18 Apprenticeships - Non Centralised Contract Management,Main Funding,FOCUS TRAINING & DEVELOPMENT LTD,NUPS14_35960,"158,179.34",Programme Template
BIS,Skills Funding Agency,11/09/2014,16-18 Apprenticeships - Non Centralised Contract Management,Main Funding,FOCUS TRAINING (SW) LTD,NUPS14_36210,"52,284.00",Programme Template
BIS,Skills Funding Agency,11/09/2014,16-18 Apprenticeships - Non Centralised Contract Management,Main Funding,FOOTBALL ASSOCIATION PREMIER LEAGUE LTD,NUPS14_35962,"154,577.00",Programme Template
BIS,Skills Funding Agency,11/09/2014,16-18 Apprenticeships - Non Centralised Contract Management,Main Funding,FORSTER COMMUNITY COLLEGE,NUPS14_35673,"1,683.00",Programme Template
BIS,Skills Funding Agency,11/09/2014,16-18 Apprenticeships - Non Centralised Contract Management,Main Funding,FOUR COUNTIES TRAINING LTD,NUPS14_35446,"19,675.00",Programme Template
BIS,Skills Funding Agency,11/09/2014,16-18 Apprenticeships - Non Centralised Contract Management,Main Funding,FRANCESCO GROUP HOLDINGS LTD,NUPS14_36217,"50,092.00",Programme Template
BIS,Skills Funding Agency,11/09/2014,16-18 Apprenticeships - Non Centralised Contract Management,Main Funding,FURNESS COLLEGE,NUPS14_36186,"56,269.00",Programme Template
BIS,Skills Funding Agency,11/09/2014,16-18 Apprenticeships - Non Centralised Contract Management,Main Funding,FUTURE WIZE LTD,NUPS14_35570,"8,446.00",Programme Template
BIS,Skills Funding Agency,11/09/2014,16-18 Apprenticeships - Non Centralised Contract Management,Main Funding,G B TRAINING UK LTD,NUPS14_36268,"38,644.00",Programme Template
BIS,Skills Funding Agency,11/09/2014,16-18 Apprenticeships - Non Centralised Contract Management,Main Funding,G4S CARE AND JUSTICE SERVICES (UK) LIMITED,NUPS14_35706,324.00,Programme Template
BIS,Skills Funding Agency,11/09/2014,16-18 Apprenticeships - Non Centralised Contract Management,Main Funding,GATESHEAD COLLEGE,NUPS14_36010,"112,177.00",Programme Template
BIS,Skills Funding Agency,11/09/2014,16-18 Apprenticeships - Non Centralised Contract Management,Main Funding,GATESHEAD COUNCIL,NUPS14_36301,"34,597.36",Programme Template
BIS,Skills Funding Agency,11/09/2014,16-18 Apprenticeships - Non Centralised Contract Management,Main Funding,GEN II ENGINEERING & TECHNOLOGY TRAINING LTD,NUPS14_35920,"258,482.00",Programme Template
BIS,Skills Funding Agency,11/09/2014,16-18 Apprenticeships - Non Centralised Contract Management,Main Funding,GHQ TRAINING LTD,NUPS14_36269,"38,434.00",Programme Template
BIS,Skills Funding Agency,11/09/2014,16-18 Apprenticeships - Non Centralised Contract Management,Main Funding,GI GROUP RECRUITMENT LTD,NUPS14_35547,"10,385.35",Programme Template
BIS,Skills Funding Agency,11/09/2014,16-18 Apprenticeships - Non Centralised Contract Management,Main Funding,GLOUCESTERSHIRE COLLEGE OF ARTS & TECHNOLOGY,NUPS14_35953,"167,657.00",Programme Template
BIS,Skills Funding Agency,11/09/2014,16-18 Apprenticeships - Non Centralised Contract Management,Main Funding,GLOUCESTERSHIRE COUNTY COUNCIL,NUPS14_35616,"4,812.00",Programme Template
BIS,Skills Funding Agency,11/09/2014,16-18 Apprenticeships - Non Centralised Contract Management,Main Funding,GORDON FRANKS TRAINING,NUPS14_35479,"15,625.00",Programme Template
BIS,Skills Funding Agency,11/09/2014,16-18 Apprenticeships - Non Centralised Contract Management,Main Funding,GP STRATEGIES TRAINING LTD,NUPS14_35998,"117,046.00",Programme Template
BIS,Skills Funding Agency,11/09/2014,16-18 Apprenticeships - Non Centralised Contract Management,Main Funding,GR & MM BLACKLEDGE PLC,NUPS14_35523,"12,290.00",Programme Template
BIS,Skills Funding Agency,11/09/2014,16-18 Apprenticeships - Non Centralised Contract Management,Main Funding,GRANTHAM COLLEGE,NUPS14_36150,"63,434.00",Programme Template
BIS,Skills Funding Agency,11/09/2014,16-18 Apprenticeships - Non Centralised Contract Management,Main Funding,GREAT YARMOUTH COLLEGE,NUPS14_36202,"53,701.00",Programme Template
BIS,Skills Funding Agency,11/09/2014,16-18 Apprenticeships - Non Centralised Contract Management,Main Funding,GREENBANK SERVICES LTD,NUPS14_35699,524.00,Programme Template
BIS,Skills Funding Agency,11/09/2014,16-18 Apprenticeships - Non Centralised Contract Management,Main Funding,GREENWICH COMMUNITY COLLEGE AT PLUMSTEAD CENTRE,NUPS14_35617,"4,779.00",Programme Template
BIS,Skills Funding Agency,11/09/2014,16-18 Apprenticeships - Non Centralised Contract Management,Main Funding,GRIMSBY INSTITUTE OF FURTHER & HIGHER EDUCATION,NUPS14_35989,"123,250.00",Programme Template
BIS,Skills Funding Agency,11/09/2014,16-18 Apprenticeships - Non Centralised Contract Management,Main Funding,GUILDFORD COLLEGE OF FURTHER & HIGHER EDUCATION,NUPS14_36095,"81,305.00",Programme Template
BIS,Skills Funding Agency,11/09/2014,16-18 Apprenticeships - Non Centralised Contract Management,Main Funding,HACKNEY COMMUNITY COLLEGE,NUPS14_35494,"14,566.53",Programme Template
BIS,Skills Funding Agency,11/09/2014,16-18 Apprenticeships - Non Centralised Contract Management,Main Funding,HADDON TRAINING LTD,NUPS14_36161,"61,712.00",Programme Template
BIS,Skills Funding Agency,11/09/2014,16-18 Apprenticeships - Non Centralised Contract Management,Main Funding,HADLOW COLLEGE,NUPS14_36051,"95,332.00",Programme Template
BIS,Skills Funding Agency,11/09/2014,16-18 Apprenticeships - Non Centralised Contract Management,Main Funding,HAIR & BEAUTY INDUSTRY TRAINING LTD,NUPS14_35492,"14,655.00",Programme Template
BIS,Skills Funding Agency,11/09/2014,16-18 Apprenticeships - Non Centralised Contract Management,Main Funding,HAIR ACADEMY SOUTH WEST LIMITED,NUPS14_36096,"81,120.00",Programme Template
BIS,Skills Funding Agency,11/09/2014,16-18 Apprenticeships - Non Centralised Contract Management,Main Funding,HALESOWEN COLLEGE,NUPS14_36340,"29,873.00",Programme Template
BIS,Skills Funding Agency,11/09/2014,16-18 Apprenticeships - Non Centralised Contract Management,Main Funding,HARINGEY LONDON BOROUGH COUNCIL,NUPS14_35675,"1,587.00",Programme Template
BIS,Skills Funding Agency,11/09/2014,16-18 Apprenticeships - Non Centralised Contract Management,Main Funding,HARLOW COLLEGE,NUPS14_35966,"151,665.00",Programme Template
BIS,Skills Funding Agency,11/09/2014,16-18 Apprenticeships - Non Centralised Contract Management,Main Funding,HARROW COLLEGE,NUPS14_36351,"28,109.00",Programme Template
BIS,Skills Funding Agency,11/09/2014,16-18 Apprenticeships - Non Centralised Contract Management,Main Funding,HARTLEPOOL BOROUGH COUNCIL,NUPS14_35695,816.00,Programme Template
BIS,Skills Funding Agency,11/09/2014,16-18 Apprenticeships - Non Centralised Contract Management,Main Funding,HARTLEPOOL COLLEGE OF HIGHER EDUCATION,NUPS14_35955,"163,156.00",Programme Template
BIS,Skills Funding Agency,11/09/2014,16-18 Apprenticeships - Non Centralised Contract Management,Main Funding,HARTLEPOOL SIXTH FORM COLLEGE,NUPS14_35656,"2,320.00",Programme Template
BIS,Skills Funding Agency,11/09/2014,16-18 Apprenticeships - Non Centralised Contract Management,Main Funding,HARTPURY COLLEGE,NUPS14_35457,"18,992.00",Programme Template
BIS,Skills Funding Agency,11/09/2014,16-18 Apprenticeships - Non Centralised Contract Management,Main Funding,HAVANT COLLEGE,NUPS14_35682,"1,284.00",Programme Template
BIS,Skills Funding Agency,11/09/2014,16-18 Apprenticeships - Non Centralised Contract Management,Main Funding,HAVERING COLLEGE OF FURTHER & HIGHER EDUCATION,NUPS14_36071,"88,005.00",Programme Template
BIS,Skills Funding Agency,11/09/2014,16-18 Apprenticeships - Non Centralised Contract Management,Main Funding,HAVERING LONDON BOROUGH COUNCIL,NUPS14_35577,"7,858.91",Programme Template
BIS,Skills Funding Agency,11/09/2014,16-18 Apprenticeships - Non Centralised Contract Management,Main Funding,HAWK MANAGEMENT UK LTD,NUPS14_35979,"131,829.00",Programme Template
BIS,Skills Funding Agency,11/09/2014,16-18 Apprenticeships - Non Centralised Contract Management,Main Funding,HAYS TRAVEL LIMITED,NUPS14_35582,"7,081.00",Programme Template
BIS,Skills Funding Agency,11/09/2014,16-18 Apprenticeships - Non Centralised Contract Management,Main Funding,HEADMASTERS PARTNERSHIP LTD,NUPS14_36289,"36,110.00",Programme Template
BIS,Skills Funding Agency,11/09/2014,16-18 Apprenticeships - Non Centralised Contract Management,Main Funding,HEALTH EDUCATION NORTH EAST,NUPS14_36213,"51,409.00",Programme Template
BIS,Skills Funding Agency,11/09/2014,16-18 Apprenticeships - Non Centralised Contract Management,Main Funding,HEART OF ENGLAND TRAINING LTD,NUPS14_35968,"150,000.00",Programme Template
BIS,Skills Funding Agency,11/09/2014,16-18 Apprenticeships - Non Centralised Contract Management,Main Funding,HEATHERCROFT TRAINING SERVICES LTD,NUPS14_36335,"30,603.00",Programme Template
BIS,Skills Funding Agency,11/09/2014,16-18 Apprenticeships - Non Centralised Contract Management,Main Funding,HENLEY COLLEGE COVENTRY,NUPS14_36306,"34,029.00",Programme Template
BIS,Skills Funding Agency,11/09/2014,16-18 Apprenticeships - Non Centralised Contract Management,Main Funding,HENLEY COLLEGE,NUPS14_36298,"35,086.00",Programme Template
BIS,Skills Funding Agency,11/09/2014,16-18 Apprenticeships - Non Centralised Contract Management,Main Funding,HERBERT OF LIVERPOOL (TRAINING) LTD,NUPS14_36228,"47,727.00",Programme Template
BIS,Skills Funding Agency,11/09/2014,16-18 Apprenticeships - Non Centralised Contract Management,Main Funding,HEREFORDSHIRE & LUDLOW COLLEGE,NUPS14_36137,"66,227.00",Programme Template
BIS,Skills Funding Agency,11/09/2014,16-18 Apprenticeships - Non Centralised Contract Management,Main Funding,HEREFORDSHIRE GROUP TRAINING ASSOCIATION LTD,NUPS14_36034,"102,226.15",Programme Template
BIS,Skills Funding Agency,11/09/2014,16-18 Apprenticeships - Non Centralised Contract Management,Main Funding,HEREWARD COLLEGE OF HIGHER EDUCATION,NUPS14_35692,889.00,Programme Template
BIS,Skills Funding Agency,11/09/2014,16-18 Apprenticeships - Non Centralised Contract Management,Main Funding,HERTFORD REGIONAL COLLEGE,NUPS14_35981,"131,341.00",Programme Template
BIS,Skills Funding Agency,11/09/2014,16-18 Apprenticeships - Non Centralised Contract Management,Main Funding,HIGHBURY COLLEGE,NUPS14_35974,"140,210.00",Programme Template
BIS,Skills Funding Agency,11/09/2014,16-18 Apprenticeships - Non Centralised Contract Management,Main Funding,HILLINGDON TRAINING LTD,NUPS14_36218,"50,071.00",Programme Template
BIS,Skills Funding Agency,11/09/2014,16-18 Apprenticeships - Non Centralised Contract Management,Main Funding,HIT TRAINING LTD,NUPS14_35926,"214,130.00",Programme Template
BIS,Skills Funding Agency,11/09/2014,16-18 Apprenticeships - Non Centralised Contract Management,Main Funding,HONDA MOTOR EUROPE LTD,NUPS14_36277,"37,636.05",Programme Template
BIS,Skills Funding Agency,11/09/2014,16-18 Apprenticeships - Non Centralised Contract Management,Main Funding,HOOPLE LTD,NUPS14_36258,"42,247.00",Programme Template
BIS,Skills Funding Agency,11/09/2014,16-18 Apprenticeships - Non Centralised Contract Management,Main Funding,HOPWOOD HALL COLLEGE,NUPS14_36242,"45,289.00",Programme Template
BIS,Skills Funding Agency,11/09/2014,16-18 Apprenticeships - Non Centralised Contract Management,Main Funding,HOSPITALITY TRAINING PARTNERSHIP IOW LTD,NUPS14_36081,"85,561.79",Programme Template
BIS,Skills Funding Agency,11/09/2014,16-18 Apprenticeships - Non Centralised Contract Management,Main Funding,HOUSE OF CLIVE HAIR & BEAUTY LTD,NUPS14_35943,"183,489.00",Programme Template
BIS,Skills Funding Agency,11/09/2014,16-18 Apprenticeships - Non Centralised Contract Management,Main Funding,HOUSING 21,NUPS14_35636,"3,299.00",Programme Template
BIS,Skills Funding Agency,11/09/2014,16-18 Apprenticeships - Non Centralised Contract Management,Main Funding,HSBC BANK PLC,NUPS14_35658,"2,289.00",Programme Template
BIS,Skills Funding Agency,11/09/2014,16-18 Apprenticeships - Non Centralised Contract Management,Main Funding,HUDDERSFIELD TEXTILE TRAINING LTD,NUPS14_35505,"13,683.00",Programme Template
BIS,Skills Funding Agency,11/09/2014,16-18 Apprenticeships - Non Centralised Contract Management,Main Funding,HUDSON & HUGHES TRAINING LTD,NUPS14_35610,"5,095.00",Programme Template
BIS,Skills Funding Agency,11/09/2014,16-18 Apprenticeships - Non Centralised Contract Management,Main Funding,HUGH BAIRD COLLEGE,NUPS14_36275,"37,783.00",Programme Template
BIS,Skills Funding Agency,11/09/2014,16-18 Apprenticeships - Non Centralised Contract Management,Main Funding,HULL BUSINESS TRAINING CENTRE LTD,NUPS14_36205,"53,074.00",Programme Template
BIS,Skills Funding Agency,11/09/2014,16-18 Apprenticeships - Non Centralised Contract Management,Main Funding,HULL COLLEGE,NUPS14_35907,"325,724.00",Programme Template
BIS,Skills Funding Agency,11/09/2014,16-18 Apprenticeships - Non Centralised Contract Management,Main Funding,HUMBER LEARNING CONS,NUPS14_35628,"3,960.00",Programme Template
BIS,Skills Funding Agency,11/09/2014,16-18 Apprenticeships - Non Centralised Contract Management,Main Funding,HUMBERSIDE ENGINEERING TRAINING ASSOCIATION LTD,NUPS14_35932,"204,317.00",Programme Template
BIS,Skills Funding Agency,11/09/2014,16-18 Apprenticeships - Non Centralised Contract Management,Main Funding,HUNTINGDONSHIRE REGIONAL COLLEGE,NUPS14_36309,"33,841.00",Programme Template
BIS,Skills Funding Agency,11/09/2014,16-18 Apprenticeships - Non Centralised Contract Management,Main Funding,ICON VOCATIONAL TRAINING LTD,NUPS14_36350,"28,157.00",Programme Template
BIS,Skills Funding Agency,11/09/2014,16-18 Apprenticeships - Non Centralised Contract Management,Main Funding,IMPACT LEARNING & DATA SOLUTIONS LTD,NUPS14_35666,"1,948.00",Programme Template
BIS,Skills Funding Agency,11/09/2014,16-18 Apprenticeships - Non Centralised Contract Management,Main Funding,IN TOUCH CARE LTD,NUPS14_35530,"11,644.00",Programme Template
BIS,Skills Funding Agency,11/09/2014,16-18 Apprenticeships - Non Centralised Contract Management,Main Funding,IN-COMM TRAINING SERVICES LIMITED,NUPS14_36326,"31,408.00",Programme Template
BIS,Skills Funding Agency,11/09/2014,16-18 Apprenticeships - Non Centralised Contract Management,Main Funding,INDEPENDENT TRAINING SERVICES LTD,NUPS14_36264,"39,908.00",Programme Template
BIS,Skills Funding Agency,11/09/2014,16-18 Apprenticeships - Non Centralised Contract Management,Main Funding,INGEUS TRAINING LTD,NUPS14_36279,"37,358.00",Programme Template
BIS,Skills Funding Agency,11/09/2014,16-18 Apprenticeships - Non Centralised Contract Management,Main Funding,INSPIRE TO INDEPENDENCE (i2i) LTD,NUPS14_35630,"3,805.00",Programme Template
BIS,Skills Funding Agency,11/09/2014,16-18 Apprenticeships - Non Centralised Contract Management,Main Funding,INSTITUTE OF SWIMMING LTD,NUPS14_36025,"104,824.00",Programme Template
BIS,Skills Funding Agency,11/09/2014,16-18 Apprenticeships - Non Centralised Contract Management,Main Funding,INTEC BUSINESS COLLEGES PLC,NUPS14_36286,"36,535.00",Programme Template
BIS,Skills Funding Agency,11/09/2014,16-18 Apprenticeships - Non Centralised Contract Management,Main Funding,INTER TRAINING SERVICES LTD,NUPS14_36368,"25,606.00",Programme Template
BIS,Skills Funding Agency,11/09/2014,16-18 Apprenticeships - Non Centralised Contract Management,Main Funding,INTERACTIVE DEVELOPMENT EDUCATION LTD,NUPS14_35509,"13,278.00",Programme Template
BIS,Skills Funding Agency,11/09/2014,16-18 Apprenticeships - Non Centralised Contract Management,Main Funding,INTERSERVE (FACILITIES MANAGEMENT) LTD,NUPS14_35606,"5,276.00",Programme Template
BIS,Skills Funding Agency,11/09/2014,16-18 Apprenticeships - Non Centralised Contract Management,Main Funding,INTRAINING GROUP LTD,NUPS14_35463,"18,251.00",Programme Template
BIS,Skills Funding Agency,11/09/2014,16-18 Apprenticeships - Non Centralised Contract Management,Main Funding,INTROTRAIN (ACE) LTD,NUPS14_36155,"62,376.39",Programme Template
BIS,Skills Funding Agency,11/09/2014,16-18 Apprenticeships - Non Centralised Contract Management,Main Funding,INTUITIONS LTD,NUPS14_36282,"37,060.00",Programme Template
BIS,Skills Funding Agency,11/09/2014,16-18 Apprenticeships - Non Centralised Contract Management,Main Funding,IPS INTERNATIONAL LTD,NUPS14_36093,"81,392.00",Programme Template
BIS,Skills Funding Agency,11/09/2014,16-18 Apprenticeships - Non Centralised Contract Management,Main Funding,ISIS TRAINING SERVICES LTD,NUPS14_36231,"46,653.00",Programme Template
BIS,Skills Funding Agency,11/09/2014,16-18 Apprenticeships - Non Centralised Contract Management,Main Funding,ISLE OF WIGHT COLLEGE,NUPS14_36207,"52,922.00",Programme Template
BIS,Skills Funding Agency,11/09/2014,16-18 Apprenticeships - Non Centralised Contract Management,Main Funding,ISS UK LIMITED,NUPS13_15501,"-1,107.00",Programme Template
BIS,Skills Funding Agency,11/09/2014,16-18 Apprenticeships - Non Centralised Contract Management,Main Funding,ISS UK LIMITED,NUPS13_17248,"-1,107.00",Programme Template
BIS,Skills Funding Agency,11/09/2014,16-18 Apprenticeships - Non Centralised Contract Management,Main Funding,ISS UK LIMITED,NUPS13_19721,"-1,107.00",Programme Template
BIS,Skills Funding Agency,11/09/2014,16-18 Apprenticeships - Non Centralised Contract Management,Main Funding,ISS UK LIMITED,NUPS13_21894,"1,427.92",Programme Template
BIS,Skills Funding Agency,11/09/2014,16-18 Apprenticeships - Non Centralised Contract Management,Main Funding,ISS UK LIMITED,NUPS13_26567,"-1,427.92",Programme Template
BIS,Skills Funding Agency,11/09/2014,16-18 Apprenticeships - Non Centralised Contract Management,Main Funding,ISS UK LIMITED,NUPS13_30694,"1,674.89",Programme Template
BIS,Skills Funding Agency,11/09/2014,16-18 Apprenticeships - Non Centralised Contract Management,Main Funding,ISS UK LIMITED,NUPS13_34835,"-1,674.89",Programme Template
BIS,Skills Funding Agency,11/09/2014,16-18 Apprenticeships - Non Centralised Contract Management,Main Funding,ISS UK LIMITED,NUPS13_37113,"1,921.85",Programme Template
BIS,Skills Funding Agency,11/09/2014,16-18 Apprenticeships - Non Centralised Contract Management,Main Funding,ISS UK LIMITED,NUPS13_40603,"-1,921.85",Programme Template
BIS,Skills Funding Agency,11/09/2014,16-18 Apprenticeships - Non Centralised Contract Management,Main Funding,ISS UK LIMITED,NUPS13_43077,"1,921.85",Programme Template
BIS,Skills Funding Agency,11/09/2014,16-18 Apprenticeships - Non Centralised Contract Management,Main Funding,ISS UK LIMITED,NUPS14_12513,"2,863.55",Programme Template
BIS,Skills Funding Agency,11/09/2014,16-18 Apprenticeships - Non Centralised Contract Management,Main Funding,ISS UK LIMITED,NUPS14_16472,"-2,863.55",Programme Template
BIS,Skills Funding Agency,11/09/2014,16-18 Apprenticeships - Non Centralised Contract Management,Main Funding,ISS UK LIMITED,NUPS14_18527,"2,863.55",Programme Template
BIS,Skills Funding Agency,11/09/2014,16-18 Apprenticeships - Non Centralised Contract Management,Main Funding,ISS UK LIMITED,NUPS14_22500,"-2,863.55",Programme Template
BIS,Skills Funding Agency,11/09/2014,16-18 Apprenticeships - Non Centralised Contract Management,Main Funding,ISS UK LIMITED,NUPS14_24954,"2,863.55",Programme Template
BIS,Skills Funding Agency,11/09/2014,16-18 Apprenticeships - Non Centralised Contract Management,Main Funding,ISS UK LIMITED,NUPS14_2695,"-1,921.85",Programme Template
BIS,Skills Funding Agency,11/09/2014,16-18 Apprenticeships - Non Centralised Contract Management,Main Funding,ISS UK LIMITED,NUPS14_27945,"-2,863.55",Programme Template
BIS,Skills Funding Agency,11/09/2014,16-18 Apprenticeships - Non Centralised Contract Management,Main Funding,ISS UK LIMITED,NUPS14_30441,"2,863.55",Programme Template
BIS,Skills Funding Agency,11/09/2014,16-18 Apprenticeships - Non Centralised Contract Management,Main Funding,ISS UK LIMITED,NUPS14_35688,"1,107.00",Programme Template
BIS,Skills Funding Agency,11/09/2014,16-18 Apprenticeships - Non Centralised Contract Management,Main Funding,ISS UK LIMITED,NUPS14_6046,"1,921.85",Programme Template
BIS,Skills Funding Agency,11/09/2014,16-18 Apprenticeships - Non Centralised Contract Management,Main Funding,ISS UK LIMITED,NUPS14_9258,"-1,921.85",Programme Template
BIS,Skills Funding Agency,11/09/2014,16-18 Apprenticeships - Non Centralised Contract Management,Main Funding,ITEC NORTH EAST LTD,NUPS14_36323,"31,508.00",Programme Template
BIS,Skills Funding Agency,11/09/2014,16-18 Apprenticeships - Non Centralised Contract Management,Main Funding,ITS TRAINING LIMITED,NUPS14_35518,"12,446.00",Programme Template
BIS,Skills Funding Agency,11/09/2014,16-18 Apprenticeships - Non Centralised Contract Management,Main Funding,IXION GROUP CONTRACTS LTD,NUPS14_36297,"35,186.49",Programme Template
BIS,Skills Funding Agency,11/09/2014,16-18 Apprenticeships - Non Centralised Contract Management,Main Funding,J.D. WETHERSPOON PLC,NUPS14_27765,"-121,511.40",Programme Template
BIS,Skills Funding Agency,11/09/2014,16-18 Apprenticeships - Non Centralised Contract Management,Main Funding,J.D. WETHERSPOON PLC,NUPS14_30276,"122,355.29",Programme Template
BIS,Skills Funding Agency,11/09/2014,16-18 Apprenticeships - Non Centralised Contract Management,Main Funding,J.D. WETHERSPOON PLC,NUPS14_35524,"12,145.00",Programme Template
BIS,Skills Funding Agency,11/09/2014,16-18 Apprenticeships - Non Centralised Contract Management,Main Funding,JAGUAR LAND ROVER HOLDINGS LTD,NUPS14_36060,"92,260.80",Programme Template
BIS,Skills Funding Agency,11/09/2014,16-18 Apprenticeships - Non Centralised Contract Management,Main Funding,JANARD TRAINING & ASSESSMENT CENTRE LTD,NUPS14_35607,"5,256.00",Programme Template
BIS,Skills Funding Agency,11/09/2014,16-18 Apprenticeships - Non Centralised Contract Management,Main Funding,JANCETT CHILDCARE & JACE TRAINING LIMITED,NUPS14_36192,"55,288.00",Programme Template
BIS,Skills Funding Agency,11/09/2014,16-18 Apprenticeships - Non Centralised Contract Management,Main Funding,JARVIS TRAINING MANAGEMENT LTD,NUPS14_36037,"101,074.00",Programme Template
BIS,Skills Funding Agency,11/09/2014,16-18 Apprenticeships - Non Centralised Contract Management,Main Funding,JBC COMPUTER TRAINING LIMITED,NUPS14_36235,"46,285.90",Programme Template
BIS,Skills Funding Agency,11/09/2014,16-18 Apprenticeships - Non Centralised Contract Management,Main Funding,JGA LTD,NUPS14_35449,"19,610.00",Programme Template
BIS,Skills Funding Agency,11/09/2014,16-18 Apprenticeships - Non Centralised Contract Management,Main Funding,JOBWISE TRAINING LTD,NUPS14_35528,"11,757.33",Programme Template
BIS,Skills Funding Agency,11/09/2014,16-18 Apprenticeships - Non Centralised Contract Management,Main Funding,JOHN LAING TRAINING LTD,NUPS14_35447,"19,655.00",Programme Template
BIS,Skills Funding Agency,11/09/2014,16-18 Apprenticeships - Non Centralised Contract Management,Main Funding,JOHN RUSKIN COLLEGE,NUPS14_36229,"47,570.55",Programme Template
BIS,Skills Funding Agency,11/09/2014,16-18 Apprenticeships - Non Centralised Contract Management,Main Funding,JOINT LEARNING PARTNERSHIP LTD,NUPS14_36285,"36,757.00",Programme Template
BIS,Skills Funding Agency,11/09/2014,16-18 Apprenticeships - Non Centralised Contract Management,Main Funding,JTL,NUPS14_35886,"1,001,512.00",Programme Template
BIS,Skills Funding Agency,11/09/2014,16-18 Apprenticeships - Non Centralised Contract Management,Main Funding,K & G HAIR LLP,NUPS14_36261,"40,855.00",Programme Template
BIS,Skills Funding Agency,11/09/2014,16-18 Apprenticeships - Non Centralised Contract Management,Main Funding,KAPLAN FINANCIAL LIMITED,NUPS14_35933,"201,836.00",Programme Template
BIS,Skills Funding Agency,11/09/2014,16-18 Apprenticeships - Non Centralised Contract Management,Main Funding,KATS LIMITED,NUPS14_35589,"6,670.00",Programme Template
BIS,Skills Funding Agency,11/09/2014,16-18 Apprenticeships - Non Centralised Contract Management,Main Funding,KEITS TRAINING SERVICES LTD,NUPS14_36003,"115,034.00",Programme Template
BIS,Skills Funding Agency,11/09/2014,16-18 Apprenticeships - Non Centralised Contract Management,Main Funding,KENSINGTON & CHELSEA COLLEGE,NUPS14_35611,"4,955.00",Programme Template
BIS,Skills Funding Agency,11/09/2014,16-18 Apprenticeships - Non Centralised Contract Management,Main Funding,KENT COUNTY COUNCIL,NUPS14_36256,"42,461.00",Programme Template
BIS,Skills Funding Agency,11/09/2014,16-18 Apprenticeships - Non Centralised Contract Management,Main Funding,KENTUCKY FRIED CHICKEN GREAT BRITAIN LTD,NUPS14_35614,"4,857.76",Programme Template
BIS,Skills Funding Agency,11/09/2014,16-18 Apprenticeships - Non Centralised Contract Management,Main Funding,KEY TRAINING LTD,NUPS14_35908,"309,413.00",Programme Template
BIS,Skills Funding Agency,11/09/2014,16-18 Apprenticeships - Non Centralised Contract Management,Main Funding,KINGSTON COLLEGE,NUPS14_36083,"85,084.00",Programme Template
BIS,Skills Funding Agency,11/09/2014,16-18 Apprenticeships - Non Centralised Contract Management,Main Funding,KINGSTON MAURWARD COLLEGE,NUPS14_36194,"55,010.00",Programme Template
BIS,Skills Funding Agency,11/09/2014,16-18 Apprenticeships - Non Centralised Contract Management,Main Funding,KINGSTON UPON HULL CITY COUNCIL,NUPS14_35946,"178,172.00",Programme Template
BIS,Skills Funding Agency,11/09/2014,16-18 Apprenticeships - Non Centralised Contract Management,Main Funding,KIRKDALE INDUSTRIAL TRAINING SERVICES LTD,NUPS14_36111,"74,231.00",Programme Template
BIS,Skills Funding Agency,11/09/2014,16-18 Apprenticeships - Non Centralised Contract Management,Main Funding,KIRKLEES COLLEGE,NUPS14_35930,"208,362.00",Programme Template
BIS,Skills Funding Agency,11/09/2014,16-18 Apprenticeships - Non Centralised Contract Management,Main Funding,KNOWSLEY COMMUNITY COLLEGE,NUPS14_36238,"45,810.00",Programme Template
BIS,Skills Funding Agency,11/09/2014,16-18 Apprenticeships - Non Centralised Contract Management,Main Funding,KWIK FIT GB LTD,NUPS14_35994,"119,458.00",Programme Template
BIS,Skills Funding Agency,11/09/2014,16-18 Apprenticeships - Non Centralised Contract Management,Main Funding,LAGAT LTD,NUPS14_36250,"43,816.00",Programme Template
BIS,Skills Funding Agency,11/09/2014,16-18 Apprenticeships - Non Centralised Contract Management,Main Funding,LAKES COLLEGE WEST CUMBRIA,NUPS14_36065,"89,593.00",Programme Template
BIS,Skills Funding Agency,11/09/2014,16-18 Apprenticeships - Non Centralised Contract Management,Main Funding,LAMBETH COLLEGE AT CLAPHAM CENTRE,NUPS14_35461,"18,405.00",Programme Template
BIS,Skills Funding Agency,11/09/2014,16-18 Apprenticeships - Non Centralised Contract Management,Main Funding,LANCASHIRE COUNTY COUNCIL,NUPS14_35619,"4,712.00",Programme Template
BIS,Skills Funding Agency,11/09/2014,16-18 Apprenticeships - Non Centralised Contract Management,Main Funding,LANCASTER & MORECAMBE COLLEGE,NUPS14_36215,"51,075.00",Programme Template
BIS,Skills Funding Agency,11/09/2014,16-18 Apprenticeships - Non Centralised Contract Management,Main Funding,LANCASTER TRAINING SERVICES LTD,NUPS14_36379,"23,700.00",Programme Template
BIS,Skills Funding Agency,11/09/2014,16-18 Apprenticeships - Non Centralised Contract Management,Main Funding,LAWN TENNIS ASSOCIATION LTD,NUPS14_36278,"37,618.00",Programme Template
BIS,Skills Funding Agency,11/09/2014,16-18 Apprenticeships - Non Centralised Contract Management,Main Funding,LEAGUE FOOTBALL EDUCATION,NUPS14_35889,"570,153.00",Programme Template
BIS,Skills Funding Agency,11/09/2014,16-18 Apprenticeships - Non Centralised Contract Management,Main Funding,LEARNDIRECT LTD,NUPS14_35885,"1,122,888.00",Programme Template
BIS,Skills Funding Agency,11/09/2014,16-18 Apprenticeships - Non Centralised Contract Management,Main Funding,LEARNING CURVE JAA LIMITED,NUPS14_36171,"58,841.49",Programme Template
BIS,Skills Funding Agency,11/09/2014,16-18 Apprenticeships - Non Centralised Contract Management,Main Funding,LEARNING CURVE,NUPS14_35687,"1,145.71",Programme Template
BIS,Skills Funding Agency,11/09/2014,16-18 Apprenticeships - Non Centralised Contract Management,Main Funding,LEARNING PARTNERSHIP FOR CORNWALL AND THE ISLES OF SCILLY LIMITED,NUPS14_35476,"16,907.00",Programme Template
BIS,Skills Funding Agency,11/09/2014,16-18 Apprenticeships - Non Centralised Contract Management,Main Funding,LEARNING SKILLS PARTNERSHIP LIMITED,NUPS14_36322,"31,748.09",Programme Template
BIS,Skills Funding Agency,11/09/2014,16-18 Apprenticeships - Non Centralised Contract Management,Main Funding,LEEDS CITY COLLEGE,NUPS14_35983,"128,718.00",Programme Template
BIS,Skills Funding Agency,11/09/2014,16-18 Apprenticeships - Non Centralised Contract Management,Main Funding,LEEDS COLLEGE OF BUILDING,NUPS14_35954,"165,769.00",Programme Template
BIS,Skills Funding Agency,11/09/2014,16-18 Apprenticeships - Non Centralised Contract Management,Main Funding,LEICESTER CITY COUNCIL,NUPS14_35663,"2,132.00",Programme Template
BIS,Skills Funding Agency,11/09/2014,16-18 Apprenticeships - Non Centralised Contract Management,Main Funding,LEICESTER COLLEGE CO FREEMENS PARK CAMPUS,NUPS14_35952,"169,935.00",Programme Template
BIS,Skills Funding Agency,11/09/2014,16-18 Apprenticeships - Non Centralised Contract Management,Main Funding,LEICESTERSHIRE COUNTY COUNCIL,NUPS14_35562,"8,886.00",Programme Template
BIS,Skills Funding Agency,11/09/2014,16-18 Apprenticeships - Non Centralised Contract Management,Main Funding,LEISURE CONNECTION LTD,NUPS14_35541,"10,976.00",Programme Template
BIS,Skills Funding Agency,11/09/2014,16-18 Apprenticeships - Non Centralised Contract Management,Main Funding,LESLIE FRANCES HAIR FASHIONS LTD,NUPS14_36325,"31,458.00",Programme Template
BIS,Skills Funding Agency,11/09/2014,16-18 Apprenticeships - Non Centralised Contract Management,Main Funding,LESOCO,NUPS14_36255,"42,489.00",Programme Template
BIS,Skills Funding Agency,11/09/2014,16-18 Apprenticeships - Non Centralised Contract Management,Main Funding,LIFESKILLS SOLUTIONS LTD,NUPS14_36100,"79,790.00",Programme Template
BIS,Skills Funding Agency,11/09/2014,16-18 Apprenticeships - Non Centralised Contract Management,Main Funding,LIFETIME TRAINING GROUP LTD,NUPS14_35890,"564,125.00",Programme Template
BIS,Skills Funding Agency,11/09/2014,16-18 Apprenticeships - Non Centralised Contract Management,Main Funding,LIGA (UK) LTD,NUPS14_35569,"8,472.00",Programme Template
BIS,Skills Funding Agency,11/09/2014,16-18 Apprenticeships - Non Centralised Contract Management,Main Funding,LINCOLN COLLEGE,NUPS14_35958,"160,914.00",Programme Template
BIS,Skills Funding Agency,11/09/2014,16-18 Apprenticeships - Non Centralised Contract Management,Main Funding,LITE STOCKPORT LTD,NUPS14_35441,"20,724.00",Programme Template
BIS,Skills Funding Agency,11/09/2014,16-18 Apprenticeships - Non Centralised Contract Management,Main Funding,LITS LTD,NUPS14_35584,"7,044.00",Programme Template
BIS,Skills Funding Agency,11/09/2014,16-18 Apprenticeships - Non Centralised Contract Management,Main Funding,LIVERPOOL CHAMBER TRAINING LTD,NUPS14_36265,"39,890.00",Programme Template
BIS,Skills Funding Agency,11/09/2014,16-18 Apprenticeships - Non Centralised Contract Management,Main Funding,LIVERPOOL CITY COUNCIL,NUPS14_35676,"1,534.00",Programme Template
BIS,Skills Funding Agency,11/09/2014,16-18 Apprenticeships - Non Centralised Contract Management,Main Funding,LOCOMOTIVATION LTD,NUPS14_36383,"22,959.35",Programme Template
BIS,Skills Funding Agency,11/09/2014,16-18 Apprenticeships - Non Centralised Contract Management,Main Funding,LONDON BOROUGH OF HOUNSLOW,NUPS14_35679,"1,447.00",Programme Template
BIS,Skills Funding Agency,11/09/2014,16-18 Apprenticeships - Non Centralised Contract Management,Main Funding,LONDON BOROUGH OF WALTHAM FOREST,NUPS14_35631,"3,651.80",Programme Template
BIS,Skills Funding Agency,11/09/2014,16-18 Apprenticeships - Non Centralised Contract Management,Main Funding,LONDON COLLEGE OF BEAUTY THERAPY LTD,NUPS14_35506,"13,572.94",Programme Template
BIS,Skills Funding Agency,11/09/2014,16-18 Apprenticeships - Non Centralised Contract Management,Main Funding,LONDON LEARNING CONSORTIUM C.I.C.,NUPS14_35578,"7,810.00",Programme Template
BIS,Skills Funding Agency,11/09/2014,16-18 Apprenticeships - Non Centralised Contract Management,Main Funding,LONDON SKILLS & DEVELOPMENT NETWORK LIMITED,NUPS14_35561,"8,895.00",Programme Template
BIS,Skills Funding Agency,11/09/2014,16-18 Apprenticeships - Non Centralised Contract Management,Main Funding,LONDON VESTA COLLEGE LIMITED,NUPS14_35576,"7,922.26",Programme Template
BIS,Skills Funding Agency,11/09/2014,16-18 Apprenticeships - Non Centralised Contract Management,Main Funding,LOOKFANTASTIC TRAINING LIMITED,NUPS14_36162,"61,608.00",Programme Template
BIS,Skills Funding Agency,11/09/2014,16-18 Apprenticeships - Non Centralised Contract Management,Main Funding,LOUGHBOROUGH COLLEGE,NUPS14_35950,"172,250.03",Programme Template
BIS,Skills Funding Agency,11/09/2014,16-18 Apprenticeships - Non Centralised Contract Management,Main Funding,LOWESTOFT COLLEGE,NUPS14_36075,"86,267.00",Programme Template
BIS,Skills Funding Agency,11/09/2014,16-18 Apprenticeships - Non Centralised Contract Management,Main Funding,LUNN POLY LTD,NUPS14_22184,"-248,069.17",Programme Template
BIS,Skills Funding Agency,11/09/2014,16-18 Apprenticeships - Non Centralised Contract Management,Main Funding,LUNN POLY LTD,NUPS14_24655,"248,292.48",Programme Template
BIS,Skills Funding Agency,11/09/2014,16-18 Apprenticeships - Non Centralised Contract Management,Main Funding,LUNN POLY LTD,NUPS14_27646,"-248,292.48",Programme Template
BIS,Skills Funding Agency,11/09/2014,16-18 Apprenticeships - Non Centralised Contract Management,Main Funding,LUNN POLY LTD,NUPS14_30143,"265,917.01",Programme Template
BIS,Skills Funding Agency,11/09/2014,16-18 Apprenticeships - Non Centralised Contract Management,Main Funding,LUNN POLY LTD,NUPS14_36359,"27,097.00",Programme Template
BIS,Skills Funding Agency,11/09/2014,16-18 Apprenticeships - Non Centralised Contract Management,Main Funding,LUTON BOROUGH COUNCIL,NUPS14_36329,"31,010.00",Programme Template
BIS,Skills Funding Agency,11/09/2014,16-18 Apprenticeships - Non Centralised Contract Management,Main Funding,M I T SKILLS LIMITED,NUPS14_36080,"85,577.00",Programme Template
BIS,Skills Funding Agency,11/09/2014,16-18 Apprenticeships - Non Centralised Contract Management,Main Funding,MACCLESFIELD COLLEGE,NUPS14_36371,"25,271.00",Programme Template
BIS,Skills Funding Agency,11/09/2014,16-18 Apprenticeships - Non Centralised Contract Management,Main Funding,MAINSTREAM TRAINING LTD,NUPS14_35615,"4,831.67",Programme Template
BIS,Skills Funding Agency,11/09/2014,16-18 Apprenticeships - Non Centralised Contract Management,Main Funding,MANCHESTER COLLEGE,NUPS14_35940,"190,510.00",Programme Template
BIS,Skills Funding Agency,11/09/2014,16-18 Apprenticeships - Non Centralised Contract Management,Main Funding,MANCHESTER METRO UNIVERSITY,NUPS14_35456,"19,000.00",Programme Template
BIS,Skills Funding Agency,11/09/2014,16-18 Apprenticeships - Non Centralised Contract Management,Main Funding,MANTRA LEARNING LTD,NUPS14_36358,"27,387.00",Programme Template
BIS,Skills Funding Agency,11/09/2014,16-18 Apprenticeships - Non Centralised Contract Management,Main Funding,MARDELL ASSOCIATES LTD,NUPS14_35936,"196,582.00",Programme Template
BIS,Skills Funding Agency,11/09/2014,16-18 Apprenticeships - Non Centralised Contract Management,Main Funding,MARITIME & ENGINEERING COLLEGE NORTH WEST,NUPS14_36125,"70,630.00",Programme Template
BIS,Skills Funding Agency,11/09/2014,16-18 Apprenticeships - Non Centralised Contract Management,Main Funding,MARR CORPORTATION LIMITED,NUPS14_36121,"71,916.00",Programme Template
BIS,Skills Funding Agency,11/09/2014,16-18 Apprenticeships - Non Centralised Contract Management,Main Funding,MARTINEX LTD,NUPS14_35646,"2,733.00",Programme Template
BIS,Skills Funding Agency,11/09/2014,16-18 Apprenticeships - Non Centralised Contract Management,Main Funding,MATRIX TRAINING & DEVELOPMENT LTD,NUPS14_35552,"10,057.00",Programme Template
BIS,Skills Funding Agency,11/09/2014,16-18 Apprenticeships - Non Centralised Contract Management,Main Funding,MCARTHUR DEAN TRAINING LTD,NUPS14_36224,"49,055.97",Programme Template
BIS,Skills Funding Agency,11/09/2014,16-18 Apprenticeships - Non Centralised Contract Management,Main Funding,MCDONALD'S RESTAURANTS LTD,NUPS14_35922,"233,115.00",Programme Template
BIS,Skills Funding Agency,11/09/2014,16-18 Apprenticeships - Non Centralised Contract Management,Main Funding,MEDWAY COUNCIL,NUPS14_35665,"2,007.00",Programme Template
BIS,Skills Funding Agency,11/09/2014,16-18 Apprenticeships - Non Centralised Contract Management,Main Funding,MERCEDES-BENZ UK LTD,NUPS14_35964,"152,013.00",Programme Template
BIS,Skills Funding Agency,11/09/2014,16-18 Apprenticeships - Non Centralised Contract Management,Main Funding,MERCIA PARTNERSHIP UK LTD,NUPS14_35555,"9,779.07",Programme Template
BIS,Skills Funding Agency,11/09/2014,16-18 Apprenticeships - Non Centralised Contract Management,Main Funding,METSKILL LTD,NUPS14_35939,"190,749.00",Programme Template
BIS,Skills Funding Agency,11/09/2014,16-18 Apprenticeships - Non Centralised Contract Management,Main Funding,MI COMPUTSOLUTIONS INCORPORATED,NUPS14_35680,"1,412.00",Programme Template
BIS,Skills Funding Agency,11/09/2014,16-18 Apprenticeships - Non Centralised Contract Management,Main Funding,MICHAEL JOHN OF LIVERPOOL,NUPS14_36257,"42,321.00",Programme Template
BIS,Skills Funding Agency,11/09/2014,16-18 Apprenticeships - Non Centralised Contract Management,Main Funding,MICHAELJOHN TRAINING,NUPS14_36138,"66,132.00",Programme Template
BIS,Skills Funding Agency,11/09/2014,16-18 Apprenticeships - Non Centralised Contract Management,Main Funding,MID CHESHIRE COLLEGE,NUPS14_36136,"66,280.00",Programme Template
BIS,Skills Funding Agency,11/09/2014,16-18 Apprenticeships - Non Centralised Contract Management,Main Funding,MID KENT COLLEGE,NUPS14_36054,"94,274.00",Programme Template
BIS,Skills Funding Agency,11/09/2014,16-18 Apprenticeships - Non Centralised Contract Management,Main Funding,MIDDLESBROUGH COLLEGE,NUPS14_36113,"73,581.00",Programme Template
BIS,Skills Funding Agency,11/09/2014,16-18 Apprenticeships - Non Centralised Contract Management,Main Funding,MIDDLESBROUGH COUNCIL,NUPS14_36318,"32,297.00",Programme Template
BIS,Skills Funding Agency,11/09/2014,16-18 Apprenticeships - Non Centralised Contract Management,Main Funding,MIDLAND GROUP TRAINING SERVICES LTD,NUPS14_36085,"84,527.00",Programme Template
BIS,Skills Funding Agency,11/09/2014,16-18 Apprenticeships - Non Centralised Contract Management,Main Funding,MILLBROOK MANAGEMENT SERVICES LTD,NUPS14_36339,"30,031.00",Programme Template
BIS,Skills Funding Agency,11/09/2014,16-18 Apprenticeships - Non Centralised Contract Management,Main Funding,MILTON KEYNES COLLEGE,NUPS14_36118,"72,812.00",Programme Template
BIS,Skills Funding Agency,11/09/2014,16-18 Apprenticeships - Non Centralised Contract Management,Main Funding,MILTON KEYNES COUNCIL,NUPS14_35690,938.00,Programme Template
BIS,Skills Funding Agency,11/09/2014,16-18 Apprenticeships - Non Centralised Contract Management,Main Funding,MINISTRY OF DEFENCE,NUPS14_35618,"4,770.00",Programme Template
BIS,Skills Funding Agency,11/09/2014,16-18 Apprenticeships - Non Centralised Contract Management,Main Funding,MINISTRY OF DEFENCE,NUPS14_35985,"127,574.00",Programme Template
BIS,Skills Funding Agency,11/09/2014,16-18 Apprenticeships - Non Centralised Contract Management,Main Funding,MINISTRY OF DEFENCE,NUPS14_36128,"69,740.00",Programme Template
BIS,Skills Funding Agency,11/09/2014,16-18 Apprenticeships - Non Centralised Contract Management,Main Funding,MITIE GROUP PLC,NUPS14_35621,"4,697.29",Programme Template
BIS,Skills Funding Agency,11/09/2014,16-18 Apprenticeships - Non Centralised Contract Management,Main Funding,MOBILE CARE QUALIFICATIONS LTD,NUPS14_35450,"19,493.00",Programme Template
BIS,Skills Funding Agency,11/09/2014,16-18 Apprenticeships - Non Centralised Contract Management,Main Funding,MOTOR INSURANCE REPAIR RESEARCH CENTRE,NUPS14_35430,"22,379.00",Programme Template
BIS,Skills Funding Agency,11/09/2014,16-18 Apprenticeships - Non Centralised Contract Management,Main Funding,MOULTON COLLEGE,NUPS14_36103,"78,522.00",Programme Template
BIS,Skills Funding Agency,11/09/2014,16-18 Apprenticeships - Non Centralised Contract Management,Main Funding,MPOWER TRAINING SOLUTIONS LTD,NUPS14_35527,"11,926.00",Programme Template
BIS,Skills Funding Agency,11/09/2014,16-18 Apprenticeships - Non Centralised Contract Management,Main Funding,MYERSCOUGH COLLEGE,NUPS14_36094,"81,372.00",Programme Template
BIS,Skills Funding Agency,11/09/2014,16-18 Apprenticeships - Non Centralised Contract Management,Main Funding,NACRO,NUPS14_35504,"13,799.00",Programme Template
BIS,Skills Funding Agency,11/09/2014,16-18 Apprenticeships - Non Centralised Contract Management,Main Funding,NATIONAL BUSINESS COLLEGE LIMITED,NUPS14_36313,"33,228.00",Programme Template
BIS,Skills Funding Agency,11/09/2014,16-18 Apprenticeships - Non Centralised Contract Management,Main Funding,NATIONAL GRID PLC,NUPS14_27889,"-24,737.75",Programme Template
BIS,Skills Funding Agency,11/09/2014,16-18 Apprenticeships - Non Centralised Contract Management,Main Funding,NATIONAL GRID PLC,NUPS14_30385,"24,737.75",Programme Template
BIS,Skills Funding Agency,11/09/2014,16-18 Apprenticeships - Non Centralised Contract Management,Main Funding,NATIONAL GRID PLC,NUPS14_36364,"26,214.00",Programme Template
BIS,Skills Funding Agency,11/09/2014,16-18 Apprenticeships - Non Centralised Contract Management,Main Funding,NATIONAL TYRE SERVICE LTD,NUPS14_35521,"12,355.00",Programme Template
BIS,Skills Funding Agency,11/09/2014,16-18 Apprenticeships - Non Centralised Contract Management,Main Funding,NELSON & COLNE COLLEGE,NUPS14_36236,"46,154.00",Programme Template
BIS,Skills Funding Agency,11/09/2014,16-18 Apprenticeships - Non Centralised Contract Management,Main Funding,NESTOR PRIMECARE SERVICES LIMITED,NUPS14_35671,"1,706.20",Programme Template
BIS,Skills Funding Agency,11/09/2014,16-18 Apprenticeships - Non Centralised Contract Management,Main Funding,NETA TRAINING TRUST,NUPS14_36153,"62,621.00",Programme Template
BIS,Skills Funding Agency,11/09/2014,16-18 Apprenticeships - Non Centralised Contract Management,Main Funding,NETWORK RAIL INFRASTRUCTURE LTD,NUPS14_36043,"97,427.00",Programme Template
BIS,Skills Funding Agency,11/09/2014,16-18 Apprenticeships - Non Centralised Contract Management,Main Funding,NEW COLLEGE DURHAM,NUPS14_36082,"85,297.00",Programme Template
BIS,Skills Funding Agency,11/09/2014,16-18 Apprenticeships - Non Centralised Contract Management,Main Funding,NEW COLLEGE NOTTINGHAM,NUPS14_35931,"204,538.00",Programme Template
BIS,Skills Funding Agency,11/09/2014,16-18 Apprenticeships - Non Centralised Contract Management,Main Funding,NEW COLLEGE STAMFORD,NUPS14_36315,"32,756.00",Programme Template
BIS,Skills Funding Agency,11/09/2014,16-18 Apprenticeships - Non Centralised Contract Management,Main Funding,NEW COLLEGE SWINDON,NUPS14_36375,"24,501.00",Programme Template
BIS,Skills Funding Agency,11/09/2014,16-18 Apprenticeships - Non Centralised Contract Management,Main Funding,NEW COLLEGE TELFORD,NUPS14_35708,318.00,Programme Template
BIS,Skills Funding Agency,11/09/2014,16-18 Apprenticeships - Non Centralised Contract Management,Main Funding,NEWBURY COLLEGE,NUPS14_36305,"34,062.00",Programme Template
BIS,Skills Funding Agency,11/09/2014,16-18 Apprenticeships - Non Centralised Contract Management,Main Funding,NEWCASTLE COLLEGE,NUPS14_35905,"340,952.00",Programme Template
BIS,Skills Funding Agency,11/09/2014,16-18 Apprenticeships - Non Centralised Contract Management,Main Funding,NEWCASTLE UNDER LYME COLLEGE,NUPS14_36016,"108,620.00",Programme Template
BIS,Skills Funding Agency,11/09/2014,16-18 Apprenticeships - Non Centralised Contract Management,Main Funding,NEWCASTLE UPON TYNE CITY COUNCIL,NUPS14_35515,"12,720.00",Programme Template
BIS,Skills Funding Agency,11/09/2014,16-18 Apprenticeships - Non Centralised Contract Management,Main Funding,NEWHAM COLLEGE OF HIGHER EDUCATION,NUPS14_35437,"21,316.00",Programme Template
BIS,Skills Funding Agency,11/09/2014,16-18 Apprenticeships - Non Centralised Contract Management,Main Funding,NEXT RETAIL LTD,NUPS14_36002,"115,223.37",Programme Template
BIS,Skills Funding Agency,11/09/2014,16-18 Apprenticeships - Non Centralised Contract Management,Main Funding,NHTA LTD,NUPS14_36222,"49,663.00",Programme Template
BIS,Skills Funding Agency,11/09/2014,16-18 Apprenticeships - Non Centralised Contract Management,Main Funding,NLT TRAINING SERVICES LTD,NUPS14_36119,"72,635.00",Programme Template
BIS,Skills Funding Agency,11/09/2014,16-18 Apprenticeships - Non Centralised Contract Management,Main Funding,NORFOLK COUNTY COUNCIL,NUPS14_35657,"2,294.00",Programme Template
BIS,Skills Funding Agency,11/09/2014,16-18 Apprenticeships - Non Centralised Contract Management,Main Funding,NORFOLK TRAINING SERVICES LTD,NUPS14_36159,"61,995.00",Programme Template
BIS,Skills Funding Agency,11/09/2014,16-18 Apprenticeships - Non Centralised Contract Management,Main Funding,NORTH DEVON COLLEGE,NUPS14_35995,"119,116.00",Programme Template
BIS,Skills Funding Agency,11/09/2014,16-18 Apprenticeships - Non Centralised Contract Management,Main Funding,"NORTH EAST CHAMBER OF COMMERCE, TRADE AND INDUSTRY",NUPS14_35973,"141,542.00",Programme Template
BIS,Skills Funding Agency,11/09/2014,16-18 Apprenticeships - Non Centralised Contract Management,Main Funding,NORTH EAST EMPLOYMENT & TRAINING AGENCY LTD,NUPS14_35512,"12,942.54",Programme Template
BIS,Skills Funding Agency,11/09/2014,16-18 Apprenticeships - Non Centralised Contract Management,Main Funding,NORTH EAST LINCOLNSHIRE COUNCIL,NUPS14_35564,"8,852.00",Programme Template
BIS,Skills Funding Agency,11/09/2014,16-18 Apprenticeships - Non Centralised Contract Management,Main Funding,NORTH EAST SURREY COLLEGE OF TECHNOLOGY,NUPS14_36124,"70,955.00",Programme Template
BIS,Skills Funding Agency,11/09/2014,16-18 Apprenticeships - Non Centralised Contract Management,Main Funding,NORTH EAST WORCESTERSHIRE COLLEGE,NUPS14_35925,"218,118.00",Programme Template
BIS,Skills Funding Agency,11/09/2014,16-18 Apprenticeships - Non Centralised Contract Management,Main Funding,NORTH HERTFORDSHIRE COLLEGE,NUPS14_36008,"112,557.00",Programme Template
BIS,Skills Funding Agency,11/09/2014,16-18 Apprenticeships - Non Centralised Contract Management,Main Funding,NORTH LANCS TRAINING GROUP LTD,NUPS14_35906,"329,844.88",Programme Template
BIS,Skills Funding Agency,11/09/2014,16-18 Apprenticeships - Non Centralised Contract Management,Main Funding,NORTH LINCOLNSHIRE COUNCIL,NUPS14_35710,280.00,Programme Template
BIS,Skills Funding Agency,11/09/2014,16-18 Apprenticeships - Non Centralised Contract Management,Main Funding,NORTH LINDSEY COLLEGE,NUPS14_36243,"45,280.74",Programme Template
BIS,Skills Funding Agency,11/09/2014,16-18 Apprenticeships - Non Centralised Contract Management,Main Funding,NORTH LIVERPOOL REGENERATION COMPANY LTD,NUPS14_36206,"53,019.00",Programme Template
BIS,Skills Funding Agency,11/09/2014,16-18 Apprenticeships - Non Centralised Contract Management,Main Funding,NORTH NOTTINGHAMSHIRE COLLEGE,NUPS14_35978,"137,497.00",Programme Template
BIS,Skills Funding Agency,11/09/2014,16-18 Apprenticeships - Non Centralised Contract Management,Main Funding,NORTH TYNESIDE METRO BOROUGH COUNCIL,NUPS14_36376,"24,286.59",Programme Template
BIS,Skills Funding Agency,11/09/2014,16-18 Apprenticeships - Non Centralised Contract Management,Main Funding,NORTH WARWICKSHIRE & HINCKLEY COLLEGE,NUPS14_36017,"108,553.00",Programme Template
BIS,Skills Funding Agency,11/09/2014,16-18 Apprenticeships - Non Centralised Contract Management,Main Funding,NORTH WEST COMMUNITY SERVICES TRAINING LIMITED,NUPS14_36367,"25,785.00",Programme Template
BIS,Skills Funding Agency,11/09/2014,16-18 Apprenticeships - Non Centralised Contract Management,Main Funding,NORTH WEST KENT COLLEGE,NUPS14_36029,"103,532.00",Programme Template
BIS,Skills Funding Agency,11/09/2014,16-18 Apprenticeships - Non Centralised Contract Management,Main Funding,NORTH WEST TRAINING COUNCIL,NUPS14_36047,"96,304.00",Programme Template
BIS,Skills Funding Agency,11/09/2014,16-18 Apprenticeships - Non Centralised Contract Management,Main Funding,NORTH YORKSHIRE COUNTY COUNCIL,NUPS14_35593,"6,553.00",Programme Template
BIS,Skills Funding Agency,11/09/2014,16-18 Apprenticeships - Non Centralised Contract Management,Main Funding,NORTHAMPTON COLLEGE,NUPS14_36131,"67,788.00",Programme Template
BIS,Skills Funding Agency,11/09/2014,16-18 Apprenticeships - Non Centralised Contract Management,Main Funding,NORTHAMPTONSHIRE COUNTY COUNCIL,NUPS14_35484,"15,356.00",Programme Template
BIS,Skills Funding Agency,11/09/2014,16-18 Apprenticeships - Non Centralised Contract Management,Main Funding,NORTHAMPTONSHIRE INDUSTRIAL TRAINING ASSOCIATION LTD,NUPS14_36038,"99,681.93",Programme Template
BIS,Skills Funding Agency,11/09/2014,16-18 Apprenticeships - Non Centralised Contract Management,Main Funding,NORTHBROOK COLLEGE SUSSEX,NUPS14_36013,"110,956.00",Programme Template
BIS,Skills Funding Agency,11/09/2014,16-18 Apprenticeships - Non Centralised Contract Management,Main Funding,NORTHERN CARE TRAINING LTD,NUPS14_35674,"1,655.80",Programme Template
BIS,Skills Funding Agency,11/09/2014,16-18 Apprenticeships - Non Centralised Contract Management,Main Funding,NORTHERN RACING COLLEGE,NUPS14_36369,"25,407.00",Programme Template
BIS,Skills Funding Agency,11/09/2014,16-18 Apprenticeships - Non Centralised Contract Management,Main Funding,NORTHUMBERLAND COLLEGE,NUPS14_36061,"92,094.00",Programme Template
BIS,Skills Funding Agency,11/09/2014,16-18 Apprenticeships - Non Centralised Contract Management,Main Funding,NORTHUMBERLAND COUNTY COUNCIL,NUPS14_36284,"36,758.00",Programme Template
BIS,Skills Funding Agency,11/09/2014,16-18 Apprenticeships - Non Centralised Contract Management,Main Funding,NORTON RADSTOCK COLLEGE,NUPS14_36378,"24,228.00",Programme Template
BIS,Skills Funding Agency,11/09/2014,16-18 Apprenticeships - Non Centralised Contract Management,Main Funding,NORWICH CITY COLLEGE,NUPS14_35984,"128,000.00",Programme Template
BIS,Skills Funding Agency,11/09/2014,16-18 Apprenticeships - Non Centralised Contract Management,Main Funding,NOTTINGHAMSHIRE TRAINING NETWORK,NUPS14_35640,"2,984.00",Programme Template
BIS,Skills Funding Agency,11/09/2014,16-18 Apprenticeships - Non Centralised Contract Management,Main Funding,NOVA RECRUITMENT SERVICES LTD,NUPS14_35648,"2,675.00",Programme Template
BIS,Skills Funding Agency,11/09/2014,16-18 Apprenticeships - Non Centralised Contract Management,Main Funding,OAKLANDS COLLEGE,NUPS14_36020,"107,622.00",Programme Template
BIS,Skills Funding Agency,11/09/2014,16-18 Apprenticeships - Non Centralised Contract Management,Main Funding,OLDHAM COLLEGE,NUPS14_35992,"119,701.00",Programme Template
BIS,Skills Funding Agency,11/09/2014,16-18 Apprenticeships - Non Centralised Contract Management,Main Funding,OLDHAM ENGINEERING GROUP TRAINING ASSOCIATION LTD,NUPS14_36283,"37,056.00",Programme Template
BIS,Skills Funding Agency,11/09/2014,16-18 Apprenticeships - Non Centralised Contract Management,Main Funding,OMEGA TRAINING SERVICES LTD,NUPS14_35575,"8,036.75",Programme Template
BIS,Skills Funding Agency,11/09/2014,16-18 Apprenticeships - Non Centralised Contract Management,Main Funding,OPTIONS 2 WORKPLACE LEARNING LIMITED,NUPS14_35558,"9,292.86",Programme Template
BIS,Skills Funding Agency,11/09/2014,16-18 Apprenticeships - Non Centralised Contract Management,Main Funding,ORACLE TRAINING CONSULTANTS LTD,NUPS14_36209,"52,328.00",Programme Template
BIS,Skills Funding Agency,11/09/2014,16-18 Apprenticeships - Non Centralised Contract Management,Main Funding,OUTSOURCE VOCATIONAL LEARNING LTD,NUPS14_36274,"37,796.00",Programme Template
BIS,Skills Funding Agency,11/09/2014,16-18 Apprenticeships - Non Centralised Contract Management,Main Funding,OXFORD & CHERWELL COLLEGE,NUPS14_35917,"271,362.00",Programme Template
BIS,Skills Funding Agency,11/09/2014,16-18 Apprenticeships - Non Centralised Contract Management,Main Funding,PARAGON EDUCATION & SKILLS LTD,NUPS14_35903,"347,134.00",Programme Template
BIS,Skills Funding Agency,11/09/2014,16-18 Apprenticeships - Non Centralised Contract Management,Main Funding,PATHWAY FIRST LIMITED,NUPS14_35498,"14,134.00",Programme Template
BIS,Skills Funding Agency,11/09/2014,16-18 Apprenticeships - Non Centralised Contract Management,Main Funding,PDM TRAINING & CONSULTANCY LTD,NUPS14_36381,"23,283.00",Programme Template
BIS,Skills Funding Agency,11/09/2014,16-18 Apprenticeships - Non Centralised Contract Management,Main Funding,PEARSON PLC,NUPS14_35703,404.00,Programme Template
BIS,Skills Funding Agency,11/09/2014,16-18 Apprenticeships - Non Centralised Contract Management,Main Funding,PEOPLE & BUSINESS DEVELOPMENT LTD,NUPS14_35489,"14,905.00",Programme Template
BIS,Skills Funding Agency,11/09/2014,16-18 Apprenticeships - Non Centralised Contract Management,Main Funding,PERA TRAINING LTD,NUPS14_35972,"142,018.00",Programme Template
BIS,Skills Funding Agency,11/09/2014,16-18 Apprenticeships - Non Centralised Contract Management,Main Funding,PERTEMPS PEOPLE DEVELOPMENT GROUP LTD,NUPS14_35574,"8,076.00",Programme Template
BIS,Skills Funding Agency,11/09/2014,16-18 Apprenticeships - Non Centralised Contract Management,Main Funding,PETA LTD,NUPS14_36073,"86,461.00",Programme Template
BIS,Skills Funding Agency,11/09/2014,16-18 Apprenticeships - Non Centralised Contract Management,Main Funding,PETERBOROUGH CITY COUNCIL,NUPS14_36307,"33,884.22",Programme Template
BIS,Skills Funding Agency,11/09/2014,16-18 Apprenticeships - Non Centralised Contract Management,Main Funding,PETERBOROUGH REGIONAL COLLEGE,NUPS14_36007,"113,066.00",Programme Template
BIS,Skills Funding Agency,11/09/2014,16-18 Apprenticeships - Non Centralised Contract Management,Main Funding,PGL TRAINING PLUMBING LTD,NUPS14_35466,"17,931.00",Programme Template
BIS,Skills Funding Agency,11/09/2014,16-18 Apprenticeships - Non Centralised Contract Management,Main Funding,PHILIPS HAIR SALONS LTD,NUPS14_36324,"31,464.00",Programme Template
BIS,Skills Funding Agency,11/09/2014,16-18 Apprenticeships - Non Centralised Contract Management,Main Funding,PHONES 4U LTD,NUPS14_36352,"28,087.15",Programme Template
BIS,Skills Funding Agency,11/09/2014,16-18 Apprenticeships - Non Centralised Contract Management,Main Funding,PILOT IMS LTD,NUPS14_35707,321.00,Programme Template
BIS,Skills Funding Agency,11/09/2014,16-18 Apprenticeships - Non Centralised Contract Management,Main Funding,PLUMPTON COLLEGE,NUPS14_35511,"13,152.00",Programme Template
BIS,Skills Funding Agency,11/09/2014,16-18 Apprenticeships - Non Centralised Contract Management,Main Funding,PLYMOUTH CITY COUNCIL,NUPS14_35641,"2,981.00",Programme Template
BIS,Skills Funding Agency,11/09/2014,16-18 Apprenticeships - Non Centralised Contract Management,Main Funding,PLYMOUTH COLLEGE OF ART & DESIGN,NUPS14_35556,"9,770.00",Programme Template
BIS,Skills Funding Agency,11/09/2014,16-18 Apprenticeships - Non Centralised Contract Management,Main Funding,PORTSMOUTH COLLEGE,NUPS14_35603,"5,371.76",Programme Template
BIS,Skills Funding Agency,11/09/2014,16-18 Apprenticeships - Non Centralised Contract Management,Main Funding,POSITIVE OUTCOMES LTD,NUPS14_35963,"153,420.08",Programme Template
BIS,Skills Funding Agency,11/09/2014,16-18 Apprenticeships - Non Centralised Contract Management,Main Funding,POULTEC TRAINING LTD,NUPS14_35495,"14,484.63",Programme Template
BIS,Skills Funding Agency,11/09/2014,16-18 Apprenticeships - Non Centralised Contract Management,Main Funding,PRESTON COLLEGE,NUPS14_36089,"83,594.00",Programme Template
BIS,Skills Funding Agency,11/09/2014,16-18 Apprenticeships - Non Centralised Contract Management,Main Funding,PREVISTA LTD,NUPS14_35627,"4,103.00",Programme Template
BIS,Skills Funding Agency,11/09/2014,16-18 Apprenticeships - Non Centralised Contract Management,Main Funding,PRIOR PURSGLOVE COLLEGE,NUPS14_35545,"10,763.00",Programme Template
BIS,Skills Funding Agency,11/09/2014,16-18 Apprenticeships - Non Centralised Contract Management,Main Funding,PRIORY CENTRAL SERVICE LIMITED,NUPS14_35685,"1,237.00",Programme Template
BIS,Skills Funding Agency,11/09/2014,16-18 Apprenticeships - Non Centralised Contract Management,Main Funding,PROCO NW LTD,NUPS14_36165,"60,941.00",Programme Template
BIS,Skills Funding Agency,11/09/2014,16-18 Apprenticeships - Non Centralised Contract Management,Main Funding,PROFOUND SERVICES LTD,NUPS14_35581,"7,602.97",Programme Template
BIS,Skills Funding Agency,11/09/2014,16-18 Apprenticeships - Non Centralised Contract Management,Main Funding,PROGRESS TO EXCELLENCE LTD,NUPS14_35529,"11,672.00",Programme Template
BIS,Skills Funding Agency,11/09/2014,16-18 Apprenticeships - Non Centralised Contract Management,Main Funding,PROJECT MANAGEMENT STAFFORDSHIRE LTD,NUPS14_36049,"96,142.00",Programme Template
BIS,Skills Funding Agency,11/09/2014,16-18 Apprenticeships - Non Centralised Contract Management,Main Funding,PROSPECT TRAINING SERVICES TD,NUPS14_35650,"2,534.00",Programme Template
BIS,Skills Funding Agency,11/09/2014,16-18 Apprenticeships - Non Centralised Contract Management,Main Funding,PROSPECTS LEARNING FOUNDATION LTD,NUPS14_35935,"197,817.00",Programme Template
BIS,Skills Funding Agency,11/09/2014,16-18 Apprenticeships - Non Centralised Contract Management,Main Funding,PROSPECTS SERVICES LTD,NUPS14_36063,"90,586.00",Programme Template
BIS,Skills Funding Agency,11/09/2014,16-18 Apprenticeships - Non Centralised Contract Management,Main Funding,PROVQ LIMITED,NUPS14_36134,"66,771.11",Programme Template
BIS,Skills Funding Agency,11/09/2014,16-18 Apprenticeships - Non Centralised Contract Management,Main Funding,PTP TRAINING LTD,NUPS14_36139,"66,055.00",Programme Template
BIS,Skills Funding Agency,11/09/2014,16-18 Apprenticeships - Non Centralised Contract Management,Main Funding,QA LIMITED,NUPS14_35895,"507,729.00",Programme Template
BIS,Skills Funding Agency,11/09/2014,16-18 Apprenticeships - Non Centralised Contract Management,Main Funding,QDOS TRAINING LTD,NUPS14_35550,"10,222.00",Programme Template
BIS,Skills Funding Agency,11/09/2014,16-18 Apprenticeships - Non Centralised Contract Management,Main Funding,QINETIQ PLC,NUPS14_35453,"19,097.11",Programme Template
BIS,Skills Funding Agency,11/09/2014,16-18 Apprenticeships - Non Centralised Contract Management,Main Funding,QUBE QUALIFICATIONS AND DEVELOPMENT LTD,NUPS14_36144,"64,934.00",Programme Template
BIS,Skills Funding Agency,11/09/2014,16-18 Apprenticeships - Non Centralised Contract Management,Main Funding,RATHBONE TRAINING,NUPS14_35949,"172,467.00",Programme Template
BIS,Skills Funding Agency,11/09/2014,16-18 Apprenticeships - Non Centralised Contract Management,Main Funding,RAYTHEON SYSTEMS LTD,NUPS14_36149,"63,642.00",Programme Template
BIS,Skills Funding Agency,11/09/2014,16-18 Apprenticeships - Non Centralised Contract Management,Main Funding,REASEHEATH COLLEGE,NUPS14_36239,"45,807.00",Programme Template
BIS,Skills Funding Agency,11/09/2014,16-18 Apprenticeships - Non Centralised Contract Management,Main Funding,REDBRIDGE COLLEGE,NUPS14_36225,"49,052.02",Programme Template
BIS,Skills Funding Agency,11/09/2014,16-18 Apprenticeships - Non Centralised Contract Management,Main Funding,REDCAR & CLEVELAND BOROUGH COUNCIL,NUPS14_35686,"1,224.00",Programme Template
BIS,Skills Funding Agency,11/09/2014,16-18 Apprenticeships - Non Centralised Contract Management,Main Funding,REDCAR & CLEVELAND COLLEGE,NUPS14_35452,"19,111.00",Programme Template
BIS,Skills Funding Agency,11/09/2014,16-18 Apprenticeships - Non Centralised Contract Management,Main Funding,REDWOOD EDUCATION AND SKILLS LIMITED,NUPS14_35912,"294,575.00",Programme Template
BIS,Skills Funding Agency,11/09/2014,16-18 Apprenticeships - Non Centralised Contract Management,Main Funding,REED IN PARTNERSHIP LIMITED,NUPS14_27925,"-8,270.47",Programme Template
BIS,Skills Funding Agency,11/09/2014,16-18 Apprenticeships - Non Centralised Contract Management,Main Funding,REED IN PARTNERSHIP LIMITED,NUPS14_30425,"7,799.41",Programme Template
BIS,Skills Funding Agency,11/09/2014,16-18 Apprenticeships - Non Centralised Contract Management,Main Funding,REED IN PARTNERSHIP LIMITED,NUPS14_35691,918.00,Programme Template
BIS,Skills Funding Agency,11/09/2014,16-18 Apprenticeships - Non Centralised Contract Management,Main Funding,REGENT COLLEGE,NUPS14_35693,862.00,Programme Template
BIS,Skills Funding Agency,11/09/2014,16-18 Apprenticeships - Non Centralised Contract Management,Main Funding,RELEASE POTENTIAL LIMITED,NUPS14_35647,"2,725.00",Programme Template
BIS,Skills Funding Agency,11/09/2014,16-18 Apprenticeships - Non Centralised Contract Management,Main Funding,REMIT LTD,NUPS14_35893,"521,792.00",Programme Template
BIS,Skills Funding Agency,11/09/2014,16-18 Apprenticeships - Non Centralised Contract Management,Main Funding,RESOURCES N E LTD,NUPS14_36058,"93,409.19",Programme Template
BIS,Skills Funding Agency,11/09/2014,16-18 Apprenticeships - Non Centralised Contract Management,Main Funding,REWARDS TRAINING RECRUITMENT CONSULTANCY LTD,NUPS14_36122,"71,875.23",Programme Template
BIS,Skills Funding Agency,11/09/2014,16-18 Apprenticeships - Non Centralised Contract Management,Main Funding,REYNOLDS GROUP LTD,NUPS14_35517,"12,610.00",Programme Template
BIS,Skills Funding Agency,11/09/2014,16-18 Apprenticeships - Non Centralised Contract Management,Main Funding,RICHARD HUISH COLLEGE,NUPS14_36338,"30,197.00",Programme Template
BIS,Skills Funding Agency,11/09/2014,16-18 Apprenticeships - Non Centralised Contract Management,Main Funding,RICHMOND UPON THAMES BOROUGH COUNCIL,NUPS14_35439,"21,223.00",Programme Template
BIS,Skills Funding Agency,11/09/2014,16-18 Apprenticeships - Non Centralised Contract Management,Main Funding,RICHMOND UPON THAMES COLLEGE,NUPS14_35580,"7,750.00",Programme Template
BIS,Skills Funding Agency,11/09/2014,16-18 Apprenticeships - Non Centralised Contract Management,Main Funding,RIVERSIDE COLLEGE HALTON,NUPS14_36098,"80,432.00",Programme Template
BIS,Skills Funding Agency,11/09/2014,16-18 Apprenticeships - Non Centralised Contract Management,Main Funding,RIVERSIDE TRAINING LTD,NUPS14_36361,"27,044.00",Programme Template
BIS,Skills Funding Agency,11/09/2014,16-18 Apprenticeships - Non Centralised Contract Management,Main Funding,ROCHDALE TRAINING ASSOCIATION LTD,NUPS14_36160,"61,771.00",Programme Template
BIS,Skills Funding Agency,11/09/2014,16-18 Apprenticeships - Non Centralised Contract Management,Main Funding,ROCKET TRAINING LTD,NUPS14_35481,"15,541.00",Programme Template
BIS,Skills Funding Agency,11/09/2014,16-18 Apprenticeships - Non Centralised Contract Management,Main Funding,ROLLS ROYCE PLC,NUPS14_36018,"108,210.00",Programme Template
BIS,Skills Funding Agency,11/09/2014,16-18 Apprenticeships - Non Centralised Contract Management,Main Funding,ROLLS ROYCE POWER ENGINEERING PLC,NUPS14_36123,"71,542.00",Programme Template
BIS,Skills Funding Agency,11/09/2014,16-18 Apprenticeships - Non Centralised Contract Management,Main Funding,ROTHERHAM COLLEGE OF ARTS & TECHNOLOGY,NUPS14_36143,"64,978.00",Programme Template
BIS,Skills Funding Agency,11/09/2014,16-18 Apprenticeships - Non Centralised Contract Management,Main Funding,ROYAL BOROUGH OF KINGSTON UPON THAMES COUNCIL,NUPS14_35560,"9,051.00",Programme Template
BIS,Skills Funding Agency,11/09/2014,16-18 Apprenticeships - Non Centralised Contract Management,Main Funding,RUNSHAW COLLEGE,NUPS14_36223,"49,197.00",Programme Template
BIS,Skills Funding Agency,11/09/2014,16-18 Apprenticeships - Non Centralised Contract Management,Main Funding,RUTLAND COUNTY COUNCIL,NUPS14_35583,"7,068.00",Programme Template
BIS,Skills Funding Agency,11/09/2014,16-18 Apprenticeships - Non Centralised Contract Management,Main Funding,RWP TRAINING LTD,NUPS14_36183,"56,864.00",Programme Template
BIS,Skills Funding Agency,11/09/2014,16-18 Apprenticeships - Non Centralised Contract Management,Main Funding,S & B AUTOMOTIVE ACADEMY LTD,NUPS14_36035,"101,954.00",Programme Template
BIS,Skills Funding Agency,11/09/2014,16-18 Apprenticeships - Non Centralised Contract Management,Main Funding,SAKS EDUCATION LTD,NUPS14_36078,"85,752.00",Programme Template
BIS,Skills Funding Agency,11/09/2014,16-18 Apprenticeships - Non Centralised Contract Management,Main Funding,SALFORD & TRAFFORD ENGINEERING GROUP TRAINING ASSOCIATION LTD,NUPS14_36201,"53,859.00",Programme Template
BIS,Skills Funding Agency,11/09/2014,16-18 Apprenticeships - Non Centralised Contract Management,Main Funding,SALFORD CITY COLLEGE,NUPS14_36112,"73,883.00",Programme Template
BIS,Skills Funding Agency,11/09/2014,16-18 Apprenticeships - Non Centralised Contract Management,Main Funding,SANDWELL COLLEGE,NUPS14_36106,"76,429.00",Programme Template
BIS,Skills Funding Agency,11/09/2014,16-18 Apprenticeships - Non Centralised Contract Management,Main Funding,SANDWELL METRO BOROUGH COUNCIL,NUPS14_36090,"81,688.00",Programme Template
BIS,Skills Funding Agency,11/09/2014,16-18 Apprenticeships - Non Centralised Contract Management,Main Funding,SANDWELL TRAINING ASSOCIATION LTD,NUPS14_36188,"55,942.00",Programme Template
BIS,Skills Funding Agency,11/09/2014,16-18 Apprenticeships - Non Centralised Contract Management,Main Funding,SBC TRAINING LIMITED,NUPS14_36280,"37,343.00",Programme Template
BIS,Skills Funding Agency,11/09/2014,16-18 Apprenticeships - Non Centralised Contract Management,Main Funding,SEETEC BUSINESS TECHNOLOGY CENTRE LTD,NUPS14_36374,"24,867.00",Programme Template
BIS,Skills Funding Agency,11/09/2014,16-18 Apprenticeships - Non Centralised Contract Management,Main Funding,SEEVIC COLLEGE,NUPS14_36247,"44,296.00",Programme Template
BIS,Skills Funding Agency,11/09/2014,16-18 Apprenticeships - Non Centralised Contract Management,Main Funding,SELBY COLLEGE,NUPS14_36341,"29,647.00",Programme Template
BIS,Skills Funding Agency,11/09/2014,16-18 Apprenticeships - Non Centralised Contract Management,Main Funding,SELECT SERVICE PARTNER UK LTD,NUPS14_35629,"3,868.00",Programme Template
BIS,Skills Funding Agency,11/09/2014,16-18 Apprenticeships - Non Centralised Contract Management,Main Funding,SELETA TRAINING & PERSONNEL SERVICES LTD,NUPS14_35696,778.00,Programme Template
BIS,Skills Funding Agency,11/09/2014,16-18 Apprenticeships - Non Centralised Contract Management,Main Funding,SERCO LTD,NUPS14_36240,"45,387.86",Programme Template
BIS,Skills Funding Agency,11/09/2014,16-18 Apprenticeships - Non Centralised Contract Management,Main Funding,SETA LTD,NUPS14_36129,"69,588.00",Programme Template
BIS,Skills Funding Agency,11/09/2014,16-18 Apprenticeships - Non Centralised Contract Management,Main Funding,SHAW TRUST LTD,NUPS14_35609,"5,110.17",Programme Template
BIS,Skills Funding Agency,11/09/2014,16-18 Apprenticeships - Non Centralised Contract Management,Main Funding,SHEFFIELD CITY COUNCIL,NUPS14_36262,"40,735.00",Programme Template
BIS,Skills Funding Agency,11/09/2014,16-18 Apprenticeships - Non Centralised Contract Management,Main Funding,SHEFFIELD COLLEGE,NUPS14_35980,"131,617.00",Programme Template
BIS,Skills Funding Agency,11/09/2014,16-18 Apprenticeships - Non Centralised Contract Management,Main Funding,SHIPLEY COLLEGE,NUPS14_35442,"20,228.00",Programme Template
